Body Name,Body,Service Label,Service Code,CIPFA Detailed Expenditure Type,CIPFA Detailed Expenditure Code,Date,Transaction Number,Net Amount,Supplier Name,,,,,,,,,,,#REF!
Nottinghamshire County Council,1111/1001,Surplus or Deficit from Trading Undertak,TRADING,Supplies & Services,DDA,17/11/2014,10-10001,549,Charles Letts & Co.,,,,,,,,,,,
Nottinghamshire County Council,1111/1001,Surplus or Deficit from Trading Undertak,TRADING,Supplies & Services,DDA,03/11/2014,10-10001,695.28,Henkel Loctite Adhesives Ltd,,,,,,,,,,,
Nottinghamshire County Council,1111/1001,Surplus or Deficit from Trading Undertak,TRADING,Supplies & Services,DDA,05/11/2014,10-10001,1573,Henkel Loctite Adhesives Ltd,,,,,,,,,,,
Nottinghamshire County Council,1111/1001,Surplus or Deficit from Trading Undertak,TRADING,Supplies & Services,DDA,07/11/2014,10-10001,2015,Henkel Loctite Adhesives Ltd,,,,,,,,,,,
Nottinghamshire County Council,1111/1001,Surplus or Deficit from Trading Undertak,TRADING,Supplies & Services,DDA,25/11/2014,10-10001,586,Henkel Loctite Adhesives Ltd,,,,,,,,,,,
Nottinghamshire County Council,1111/1001,Surplus or Deficit from Trading Undertak,TRADING,Supplies & Services,DDA,25/11/2014,10-10001,540.8,Henkel Loctite Adhesives Ltd,,,,,,,,,,,
Nottinghamshire County Council,1111/1001,Surplus or Deficit from Trading Undertak,TRADING,Supplies & Services,DDA,26/11/2014,10-10001,1730.4,Henkel Loctite Adhesives Ltd,,,,,,,,,,,
Nottinghamshire County Council,1111/1001,Surplus or Deficit from Trading Undertak,TRADING,Supplies & Services,DAA,03/11/2014,10-10001,628.1,Reliance Medical Ltd,,,,,,,,,,,
Nottinghamshire County Council,1111/1001,Surplus or Deficit from Trading Undertak,TRADING,Supplies & Services,DAA,28/11/2014,10-10001,593.8,Reliance Medical Ltd,,,,,,,,,,,
Nottinghamshire County Council,1111/1001,Surplus or Deficit from Trading Undertak,TRADING,Supplies & Services,DAA,27/11/2014,10-10001,696.64,Steroplast Healthcare,,,,,,,,,,,
Nottinghamshire County Council,1111/1001,Surplus or Deficit from Trading Undertak,TRADING,Supplies & Services,DAA,03/11/2014,10-10001,892.8,Vivid Laminating Technologies Ltd,,,,,,,,,,,
Nottinghamshire County Council,1111/1001,Surplus or Deficit from Trading Undertak,TRADING,Supplies & Services,DAA,07/11/2014,10-10001,1520,Vivid Laminating Technologies Ltd,,,,,,,,,,,
Nottinghamshire County Council,1111/1001,Surplus or Deficit from Trading Undertak,TRADING,Supplies & Services,DAA,25/11/2014,10-10001,530.18,Vivid Laminating Technologies Ltd,,,,,,,,,,,
Nottinghamshire County Council,1111/1001,Surplus or Deficit from Trading Undertak,TRADING,Supplies & Services,DAA,03/11/2014,10-10001,1338,Premier Paper Group Ltd,,,,,,,,,,,
Nottinghamshire County Council,1111/1001,Surplus or Deficit from Trading Undertak,TRADING,Supplies & Services,DAA,03/11/2014,10-10001,638.4,Heritage Envelopes Ltd,,,,,,,,,,,
Nottinghamshire County Council,1111/1001,Surplus or Deficit from Trading Undertak,TRADING,Supplies & Services,DAA,05/11/2014,10-10001,686.63,Heritage Envelopes Ltd,,,,,,,,,,,
Nottinghamshire County Council,1111/1001,Surplus or Deficit from Trading Undertak,TRADING,Supplies & Services,DAA,03/11/2014,10-10001,1049.6,Antalis Key Accounts,,,,,,,,,,,
Nottinghamshire County Council,1111/1001,Surplus or Deficit from Trading Undertak,TRADING,Supplies & Services,DAA,07/11/2014,10-10001,621.8,Antalis Key Accounts,,,,,,,,,,,
Nottinghamshire County Council,1111/1001,Surplus or Deficit from Trading Undertak,TRADING,Supplies & Services,DAA,21/11/2014,10-10001,1341.3,Antalis Key Accounts,,,,,,,,,,,
Nottinghamshire County Council,1111/1001,Surplus or Deficit from Trading Undertak,TRADING,Supplies & Services,DAA,25/11/2014,10-10001,1561.3,Antalis Key Accounts,,,,,,,,,,,
Nottinghamshire County Council,1111/1001,Surplus or Deficit from Trading Undertak,TRADING,Supplies & Services,DAA,26/11/2014,10-10001,796.5,Antalis Key Accounts,,,,,,,,,,,
Nottinghamshire County Council,1111/1001,Surplus or Deficit from Trading Undertak,TRADING,Supplies & Services,DAA,26/11/2014,10-10001,1114.4,Antalis Key Accounts,,,,,,,,,,,
Nottinghamshire County Council,1111/1001,Surplus or Deficit from Trading Undertak,TRADING,Supplies & Services,DAA,17/11/2014,10-10001,555.83,Xma Ltd,,,,,,,,,,,
Nottinghamshire County Council,1111/1001,Surplus or Deficit from Trading Undertak,TRADING,Premises Related,BAA,25/11/2014,10-10001,738,Helix Trading Ltd,,,,,,,,,,,
Nottinghamshire County Council,1111/1001,Surplus or Deficit from Trading Undertak,TRADING,Premises Related,BAA,05/11/2014,10-10001,516.35,Avery Uk,,,,,,,,,,,
Nottinghamshire County Council,1111/1001,Surplus or Deficit from Trading Undertak,TRADING,Premises Related,BAA,12/11/2014,10-10001,514.85,Avery Uk,,,,,,,,,,,
Nottinghamshire County Council,1111/1001,Surplus or Deficit from Trading Undertak,TRADING,Premises Related,BJA,05/11/2014,10-10001,552.63,Polystar Plastics Ltd,,,,,,,,,,,
Nottinghamshire County Council,1111/1001,Surplus or Deficit from Trading Undertak,TRADING,Premises Related,BJA,19/11/2014,10-10001,3137.62,Kimberley Clark European Services Ltd,,,,,,,,,,,
Nottinghamshire County Council,1111/1001,Surplus or Deficit from Trading Undertak,TRADING,Premises Related,BJA,21/11/2014,10-10001,1386,Kimberley Clark European Services Ltd,,,,,,,,,,,
Nottinghamshire County Council,1111/1001,Surplus or Deficit from Trading Undertak,TRADING,Premises Related,BJA,03/11/2014,10-10001,840,Macfarlane Group (Uk) Ltd,,,,,,,,,,,
Nottinghamshire County Council,1111/1001,Surplus or Deficit from Trading Undertak,TRADING,Premises Related,BJA,07/11/2014,10-10001,600.96,Ecover (Uk) Ltd,,,,,,,,,,,
Nottinghamshire County Council,1111/1001,Surplus or Deficit from Trading Undertak,TRADING,Premises Related,BJA,17/11/2014,10-10001,552.66,Linton Metalware Ltd,,,,,,,,,,,
Nottinghamshire County Council,1111/1001,Surplus or Deficit from Trading Undertak,TRADING,Premises Related,BJA,17/11/2014,10-10001,552.66,Linton Metalware Ltd,,,,,,,,,,,
Nottinghamshire County Council,1111/1001,Surplus or Deficit from Trading Undertak,TRADING,Premises Related,BJA,27/11/2014,10-10001,538.48,G & S Corporate Supplies,,,,,,,,,,,
Nottinghamshire County Council,1111/1001,Surplus or Deficit from Trading Undertak,TRADING,Premises Related,BJA,17/11/2014,10-10001,546.4,Cromwell Polythene Ltd,,,,,,,,,,,
Nottinghamshire County Council,1111/1001,Surplus or Deficit from Trading Undertak,TRADING,Premises Related,BJA,03/11/2014,10-10001,632.16,Mst Toileteries Ltd,,,,,,,,,,,
Nottinghamshire County Council,1111/1001,Surplus or Deficit from Trading Undertak,TRADING,Premises Related,BJA,28/11/2014,10-10001,555.54,Mst Toileteries Ltd,,,,,,,,,,,
Nottinghamshire County Council,1111/1001,Surplus or Deficit from Trading Undertak,TRADING,Premises Related,BJA,07/11/2014,10-10001,1195,Johnson Diversey,,,,,,,,,,,
Nottinghamshire County Council,1111/1001,Surplus or Deficit from Trading Undertak,TRADING,Premises Related,BJA,19/11/2014,10-10001,883.63,Johnson Diversey,,,,,,,,,,,
Nottinghamshire County Council,1111/1001,Surplus or Deficit from Trading Undertak,TRADING,Premises Related,BJA,07/11/2014,10-10001,1965.64,Premiere Products,,,,,,,,,,,
Nottinghamshire County Council,1111/1001,Surplus or Deficit from Trading Undertak,TRADING,Premises Related,BJA,19/11/2014,10-10001,732,Premiere Products,,,,,,,,,,,
Nottinghamshire County Council,1111/1001,Surplus or Deficit from Trading Undertak,TRADING,Premises Related,BJA,21/11/2014,10-10001,5753.68,Premiere Products,,,,,,,,,,,
Nottinghamshire County Council,1111/1001,Surplus or Deficit from Trading Undertak,TRADING,Premises Related,BJA,28/11/2014,10-10001,1157.76,Premiere Products,,,,,,,,,,,
Nottinghamshire County Council,1111/1001,Surplus or Deficit from Trading Undertak,TRADING,Premises Related,BJA,05/11/2014,10-10001,890,Candor Services,,,,,,,,,,,
Nottinghamshire County Council,1111/1001,Surplus or Deficit from Trading Undertak,TRADING,Premises Related,BJA,25/11/2014,10-10001,709.5,Candor Services,,,,,,,,,,,
Nottinghamshire County Council,1111/1001,Surplus or Deficit from Trading Undertak,TRADING,Supplies & Services,DAA,12/11/2014,10-10001,716.01,W V Howe (Hardware) Ltd,,,,,,,,,,,
Nottinghamshire County Council,1111/1001,Surplus or Deficit from Trading Undertak,TRADING,Supplies & Services,DAA,19/11/2014,10-10001,988.67,W V Howe (Hardware) Ltd,,,,,,,,,,,
Nottinghamshire County Council,1111/1001,Surplus or Deficit from Trading Undertak,TRADING,Supplies & Services,DAA,25/11/2014,10-10001,511.8,Catering Supplies (Wakefield) Ltd,,,,,,,,,,,
Nottinghamshire County Council,1111/1001,Surplus or Deficit from Trading Undertak,TRADING,Supplies & Services,DAA,05/11/2014,10-10001,2292.3,Sca Hygiene,,,,,,,,,,,
Nottinghamshire County Council,1111/1001,Surplus or Deficit from Trading Undertak,TRADING,Supplies & Services,DAA,07/11/2014,10-10001,2364.56,Sca Hygiene,,,,,,,,,,,
Nottinghamshire County Council,1111/1001,Surplus or Deficit from Trading Undertak,TRADING,Supplies & Services,DAA,12/11/2014,10-10001,3707.34,Sca Hygiene,,,,,,,,,,,
Nottinghamshire County Council,1111/1001,Surplus or Deficit from Trading Undertak,TRADING,Supplies & Services,DAA,17/11/2014,10-10001,4905.1,Sca Hygiene,,,,,,,,,,,
Nottinghamshire County Council,1111/1001,Surplus or Deficit from Trading Undertak,TRADING,Supplies & Services,DAA,21/11/2014,10-10001,3336.35,Sca Hygiene,,,,,,,,,,,
Nottinghamshire County Council,1111/1001,Surplus or Deficit from Trading Undertak,TRADING,Supplies & Services,DAA,28/11/2014,10-10001,3871.03,Sca Hygiene,,,,,,,,,,,
Nottinghamshire County Council,1111/1001,Surplus or Deficit from Trading Undertak,TRADING,Supplies & Services,DBA,05/11/2014,10-10001,644.76,North West Tea Service Ltd,,,,,,,,,,,
Nottinghamshire County Council,1111/1001,Surplus or Deficit from Trading Undertak,TRADING,Supplies & Services,DAA,21/11/2014,10-10001,1420,Stearn Electric Company Ltd,,,,,,,,,,,
Nottinghamshire County Council,1111/1001,Surplus or Deficit from Trading Undertak,TRADING,Supplies & Services,DAA,26/11/2014,10-10001,506,Stearn Electric Company Ltd,,,,,,,,,,,
Nottinghamshire County Council,1111/1001,Surplus or Deficit from Trading Undertak,TRADING,Supplies & Services,DCA,05/11/2014,10-10001,922,Freudenberg Household Products Lp,,,,,,,,,,,
Nottinghamshire County Council,1111/1001,Surplus or Deficit from Trading Undertak,TRADING,Supplies & Services,DCA,05/11/2014,10-10001,1126.5,Freudenberg Household Products Lp,,,,,,,,,,,
Nottinghamshire County Council,1111/1001,Surplus or Deficit from Trading Undertak,TRADING,Supplies & Services,DCA,05/11/2014,10-10001,507,Freudenberg Household Products Lp,,,,,,,,,,,
Nottinghamshire County Council,1111/1001,Surplus or Deficit from Trading Undertak,TRADING,Supplies & Services,DCA,05/11/2014,10-10001,1192.48,Shermond,,,,,,,,,,,
Nottinghamshire County Council,1111/1001,Surplus or Deficit from Trading Undertak,TRADING,Supplies & Services,DCA,17/11/2014,10-10001,726.89,Shermond,,,,,,,,,,,
Nottinghamshire County Council,1111/1001,Surplus or Deficit from Trading Undertak,TRADING,Supplies & Services,DCA,19/11/2014,10-10001,507.05,Shermond,,,,,,,,,,,
Nottinghamshire County Council,1111/1001,Surplus or Deficit from Trading Undertak,TRADING,Supplies & Services,DCA,25/11/2014,10-10001,1650.98,Shermond,,,,,,,,,,,
Nottinghamshire County Council,1111/1001,Surplus or Deficit from Trading Undertak,TRADING,Supplies & Services,DCA,28/11/2014,10-10001,540.48,Shermond,,,,,,,,,,,
Nottinghamshire County Council,1111/1001,Surplus or Deficit from Trading Undertak,TRADING,Supplies & Services,DKA,07/11/2014,10-10001,1252.02,Bunzl Cleaning & Hygiene Supplies,,,,,,,,,,,
Nottinghamshire County Council,1111/1001,Surplus or Deficit from Trading Undertak,TRADING,Supplies & Services,DKA,17/11/2014,10-10001,527.48,Bunzl Cleaning & Hygiene Supplies,,,,,,,,,,,
Nottinghamshire County Council,1111/1001,Surplus or Deficit from Trading Undertak,TRADING,Supplies & Services,DKA,17/11/2014,10-10001,513.2,Bunzl Cleaning & Hygiene Supplies,,,,,,,,,,,
Nottinghamshire County Council,1111/1001,Surplus or Deficit from Trading Undertak,TRADING,Supplies & Services,DAA,05/11/2014,10-10001,1098,R Scott & Sons Ltd,,,,,,,,,,,
Nottinghamshire County Council,1111/1001,Surplus or Deficit from Trading Undertak,TRADING,Supplies & Services,DAA,05/11/2014,10-10001,1764.71,R Scott & Sons Ltd,,,,,,,,,,,
Nottinghamshire County Council,1111/1001,Surplus or Deficit from Trading Undertak,TRADING,Supplies & Services,DAA,10/11/2014,10-10001,829.5,R Scott & Sons Ltd,,,,,,,,,,,
Nottinghamshire County Council,1111/1001,Surplus or Deficit from Trading Undertak,TRADING,Supplies & Services,DAA,19/11/2014,10-10001,1444.8,R Scott & Sons Ltd,,,,,,,,,,,
Nottinghamshire County Council,1111/1001,Surplus or Deficit from Trading Undertak,TRADING,Supplies & Services,DAA,28/11/2014,10-10001,657.8,R Scott & Sons Ltd,,,,,,,,,,,
Nottinghamshire County Council,1111/1001,Surplus or Deficit from Trading Undertak,TRADING,Supplies & Services,DAA,19/11/2014,10-10001,1086.4,Principal Furniture,,,,,,,,,,,
Nottinghamshire County Council,1111/1001,Surplus or Deficit from Trading Undertak,TRADING,Supplies & Services,DAA,07/11/2014,10-10001,974.4,Advanced Moulds Ltd,,,,,,,,,,,
Nottinghamshire County Council,1111/1001,Surplus or Deficit from Trading Undertak,TRADING,Supplies & Services,DAA,07/11/2014,10-10001,1370.25,Advanced Moulds Ltd,,,,,,,,,,,
Nottinghamshire County Council,1111/1001,Surplus or Deficit from Trading Undertak,TRADING,Supplies & Services,DAA,25/11/2014,10-10001,908.21,Niels Larsen Ltd,,,,,,,,,,,
Nottinghamshire County Council,1111/1001,Surplus or Deficit from Trading Undertak,TRADING,Supplies & Services,DAA,12/11/2014,10-10001,577.5,Combined Office Interiors Ltd,,,,,,,,,,,
Nottinghamshire County Council,1111/1001,Surplus or Deficit from Trading Undertak,TRADING,Supplies & Services,DAA,27/11/2014,10-10001,645.96,Combined Office Interiors Ltd,,,,,,,,,,,
Nottinghamshire County Council,1111/1001,Surplus or Deficit from Trading Undertak,TRADING,Supplies & Services,DAA,07/11/2014,10-10001,883,Complete Office Solutions (Uk) Ltd,,,,,,,,,,,
Nottinghamshire County Council,1111/1001,Surplus or Deficit from Trading Undertak,TRADING,Supplies & Services,DAA,12/11/2014,10-10001,575.94,Complete Office Solutions (Uk) Ltd,,,,,,,,,,,
Nottinghamshire County Council,1111/1001,Surplus or Deficit from Trading Undertak,TRADING,Supplies & Services,DAA,26/11/2014,10-10001,711.01,Complete Office Solutions (Uk) Ltd,,,,,,,,,,,
Nottinghamshire County Council,1111/1001,Surplus or Deficit from Trading Undertak,TRADING,Supplies & Services,DAA,07/11/2014,10-10001,896.4,Hille Education Products Ltd,,,,,,,,,,,
Nottinghamshire County Council,1111/1001,Surplus or Deficit from Trading Undertak,TRADING,Supplies & Services,DAA,10/11/2014,10-10001,732,Hille Education Products Ltd,,,,,,,,,,,
Nottinghamshire County Council,1111/1001,Surplus or Deficit from Trading Undertak,TRADING,Supplies & Services,DAA,12/11/2014,10-10001,1009.6,Hille Education Products Ltd,,,,,,,,,,,
Nottinghamshire County Council,1111/1001,Surplus or Deficit from Trading Undertak,TRADING,Supplies & Services,DAA,26/11/2014,10-10001,853.2,Hille Education Products Ltd,,,,,,,,,,,
Nottinghamshire County Council,1111/1001,Surplus or Deficit from Trading Undertak,TRADING,Supplies & Services,DAA,17/11/2014,10-10001,643.5,Dale Office Interiors,,,,,,,,,,,
Nottinghamshire County Council,1111/1001,Surplus or Deficit from Trading Undertak,TRADING,Supplies & Services,DAA,07/11/2014,10-10001,2521.92,Gopak Ltd,,,,,,,,,,,
Nottinghamshire County Council,1111/1001,Surplus or Deficit from Trading Undertak,TRADING,Supplies & Services,DAA,07/11/2014,10-10001,828.03,Gopak Ltd,,,,,,,,,,,
Nottinghamshire County Council,1111/1001,Surplus or Deficit from Trading Undertak,TRADING,Supplies & Services,DAA,28/11/2014,10-10001,996.35,Gopak Ltd,,,,,,,,,,,
Nottinghamshire County Council,1111/1001,Surplus or Deficit from Trading Undertak,TRADING,Supplies & Services,DAA,12/11/2014,10-10001,710.6,Lockhart Catering Equipment Ltd,,,,,,,,,,,
Nottinghamshire County Council,1111/1001,Surplus or Deficit from Trading Undertak,TRADING,Supplies & Services,DAA,17/11/2014,10-10001,637.2,Teacherboards Ltd,,,,,,,,,,,
Nottinghamshire County Council,1111/1001,Surplus or Deficit from Trading Undertak,TRADING,Supplies & Services,DAA,25/11/2014,10-10001,622.5,Victoria Grant Ltd,,,,,,,,,,,
Nottinghamshire County Council,1111/1001,Surplus or Deficit from Trading Undertak,TRADING,Supplies & Services,DAA,03/11/2014,10-10001,522.5,Kent County Supplies,,,,,,,,,,,
Nottinghamshire County Council,1111/1001,Surplus or Deficit from Trading Undertak,TRADING,Supplies & Services,DAA,17/11/2014,10-10001,733.44,Kent County Supplies,,,,,,,,,,,
Nottinghamshire County Council,1111/1001,Surplus or Deficit from Trading Undertak,TRADING,Supplies & Services,DAA,19/11/2014,10-10001,2227.1,Kent County Supplies,,,,,,,,,,,
Nottinghamshire County Council,1111/1001,Surplus or Deficit from Trading Undertak,TRADING,Supplies & Services,DAA,25/11/2014,10-10001,644.48,Kent County Supplies,,,,,,,,,,,
Nottinghamshire County Council,1111/1001,Surplus or Deficit from Trading Undertak,TRADING,Supplies & Services,DAA,25/11/2014,10-10001,848,Kent County Supplies,,,,,,,,,,,
Nottinghamshire County Council,1111/1001,Surplus or Deficit from Trading Undertak,TRADING,Supplies & Services,DAA,17/11/2014,10-10001,1063.34,Grosvenor House Papers Ltd,,,,,,,,,,,
Nottinghamshire County Council,1111/1001,Surplus or Deficit from Trading Undertak,TRADING,Supplies & Services,DAA,27/11/2014,10-10001,630.44,Newell Rubbermaid,,,,,,,,,,,
Nottinghamshire County Council,1111/1001,Surplus or Deficit from Trading Undertak,TRADING,Supplies & Services,DAA,05/11/2014,10-10001,532.7,R.H.Ritchings Ltd,,,,,,,,,,,
Nottinghamshire County Council,1111/1001,Surplus or Deficit from Trading Undertak,TRADING,Supplies & Services,DAA,05/11/2014,10-10001,548.49,Bic U.K. Ltd,,,,,,,,,,,
Nottinghamshire County Council,1111/1001,Surplus or Deficit from Trading Undertak,TRADING,Supplies & Services,DAA,07/11/2014,10-10001,819.8,Allen Glenold Ltd,,,,,,,,,,,
Nottinghamshire County Council,1111/1001,Surplus or Deficit from Trading Undertak,TRADING,Supplies & Services,DAA,21/11/2014,10-10001,572.64,Allen Glenold Ltd,,,,,,,,,,,
Nottinghamshire County Council,1111/1001,Surplus or Deficit from Trading Undertak,TRADING,Supplies & Services,DAA,25/11/2014,10-10001,720.78,Allen Glenold Ltd,,,,,,,,,,,
Nottinghamshire County Council,1111/1001,Surplus or Deficit from Trading Undertak,TRADING,Supplies & Services,DAA,26/11/2014,10-10001,845.92,Allen Glenold Ltd,,,,,,,,,,,
Nottinghamshire County Council,1111/1001,Surplus or Deficit from Trading Undertak,TRADING,Supplies & Services,DAA,17/11/2014,10-10001,1973.26,Higher Kings Mill Ltd,,,,,,,,,,,
Nottinghamshire County Council,1111/1001,Surplus or Deficit from Trading Undertak,TRADING,Supplies & Services,DAA,25/11/2014,10-10001,716.46,Pentel Stationery Limited,,,,,,,,,,,
Nottinghamshire County Council,1111/1001,Surplus or Deficit from Trading Undertak,TRADING,Supplies & Services,DAA,17/11/2014,10-10001,629.76,Slater Harrison & Co Ltd,,,,,,,,,,,
Nottinghamshire County Council,1111/1001,Surplus or Deficit from Trading Undertak,TRADING,Supplies & Services,DAA,05/11/2014,10-10001,761.28,Creativity International Ltd,,,,,,,,,,,
Nottinghamshire County Council,1111/1001,Surplus or Deficit from Trading Undertak,TRADING,Supplies & Services,DAA,05/11/2014,10-10001,888.81,Creativity International Ltd,,,,,,,,,,,
Nottinghamshire County Council,1111/1001,Surplus or Deficit from Trading Undertak,TRADING,Supplies & Services,DAA,25/11/2014,10-10001,633.1,Creativity International Ltd,,,,,,,,,,,
Nottinghamshire County Council,1111/1001,Surplus or Deficit from Trading Undertak,TRADING,Supplies & Services,DAA,27/11/2014,10-10001,901.55,Creativity International Ltd,,,,,,,,,,,
Nottinghamshire County Council,1111/1001,Surplus or Deficit from Trading Undertak,TRADING,Supplies & Services,DAA,27/11/2014,10-10001,609.97,Creativity International Ltd,,,,,,,,,,,
Nottinghamshire County Council,1111/1001,Surplus or Deficit from Trading Undertak,TRADING,Supplies & Services,DAA,03/11/2014,10-10001,529.12,Bright Ideas Marketing Ltd,,,,,,,,,,,
Nottinghamshire County Council,1111/1001,Surplus or Deficit from Trading Undertak,TRADING,Supplies & Services,DAA,27/11/2014,10-10001,665,Bright Ideas Marketing Ltd,,,,,,,,,,,
Nottinghamshire County Council,1111/1001,Surplus or Deficit from Trading Undertak,TRADING,Supplies & Services,DAA,28/11/2014,10-10001,501.54,Bright Ideas Marketing Ltd,,,,,,,,,,,
Nottinghamshire County Council,1111/1001,Surplus or Deficit from Trading Undertak,TRADING,Supplies & Services,DAA,05/11/2014,10-10001,626.72,Eastpoint,,,,,,,,,,,
Nottinghamshire County Council,1111/1001,Surplus or Deficit from Trading Undertak,TRADING,Supplies & Services,DAA,21/11/2014,10-10001,517.87,Eastpoint,,,,,,,,,,,
Nottinghamshire County Council,1111/1001,Surplus or Deficit from Trading Undertak,TRADING,Supplies & Services,DAA,25/11/2014,10-10001,880,Spaceright Europe Ltd,,,,,,,,,,,
Nottinghamshire County Council,1111/1001,Surplus or Deficit from Trading Undertak,TRADING,Supplies & Services,DAA,19/11/2014,10-10001,1076.4,William Sinclair Horticulture Ltd,,,,,,,,,,,
Nottinghamshire County Council,1111/1001,Surplus or Deficit from Trading Undertak,TRADING,Supplies & Services,DAA,05/11/2014,10-10001,621.83,Brian Clegg (Educational Products) Ltd,,,,,,,,,,,
Nottinghamshire County Council,1111/1001,Surplus or Deficit from Trading Undertak,TRADING,Supplies & Services,DAA,12/11/2014,10-10001,1119.43,Brian Clegg (Educational Products) Ltd,,,,,,,,,,,
Nottinghamshire County Council,1111/1001,Surplus or Deficit from Trading Undertak,TRADING,Supplies & Services,DAA,12/11/2014,10-10001,1268,Brian Clegg (Educational Products) Ltd,,,,,,,,,,,
Nottinghamshire County Council,1111/1001,Surplus or Deficit from Trading Undertak,TRADING,Supplies & Services,DAA,17/11/2014,10-10001,1266,Brian Clegg (Educational Products) Ltd,,,,,,,,,,,
Nottinghamshire County Council,1111/1001,Surplus or Deficit from Trading Undertak,TRADING,Supplies & Services,DAA,07/11/2014,10-10001,721.14,Profile Education Ltd,,,,,,,,,,,
Nottinghamshire County Council,1111/1001,Surplus or Deficit from Trading Undertak,TRADING,Supplies & Services,DAA,12/11/2014,10-10001,1184.22,Monarch Computer Furniture,,,,,,,,,,,
Nottinghamshire County Council,1111/1001,Children and Young People,CYP,Employee Related,ABA,05/11/2014,10-14280,800,Gedling Homes,,,,,,,,,,,
Nottinghamshire County Council,1111/1001,Children and Young People,CYP,Premises Related,BDA,03/11/2014,10-10001,5473.85,Making It! Enterprises Ltd,,,,,,,,,,,
Nottinghamshire County Council,1111/1001,Children and Young People,CYP,Premises Related,BDA,03/11/2014,10-10002,1099.99,Nottingham City Council,,,,,,,,,,,
Nottinghamshire County Council,1111/1001,Children and Young People,CYP,Premises Related,BDA,03/11/2014,10-10004,589,High Peak Borough Council,,,,,,,,,,,
Nottinghamshire County Council,1111/1001,Children and Young People,CYP,Premises Related,BDA,03/11/2014,10-10005,4452.15,Making It! Enterprises Ltd,,,,,,,,,,,
Nottinghamshire County Council,1111/1001,Children and Young People,CYP,Premises Related,BDA,03/11/2014,10-10006,518,Derbyshire Dales District Council,,,,,,,,,,,
Nottinghamshire County Council,1111/1001,Children and Young People,CYP,Premises Related,BDA,04/11/2014,10-10007,5014.24,Nottingham Trent University,,,,,,,,,,,
Nottinghamshire County Council,1111/1001,Children and Young People,CYP,Premises Related,BDA,05/11/2014,10-10008,547.38,Making It! Enterprises Ltd,,,,,,,,,,,
Nottinghamshire County Council,1111/1001,Children and Young People,CYP,Premises Related,BDA,05/11/2014,10-10009,519.42,Making It! Enterprises Ltd,,,,,,,,,,,
Nottinghamshire County Council,1111/1001,Children and Young People,CYP,Premises Related,BDA,25/11/2014,10-16595,5683.5,The Nottingham Belfry,,,,,,,,,,,
Nottinghamshire County Council,1111/1001,Children and Young People,CYP,Premises Related,BFA,03/11/2014,10-10108,1188.34,Colonel Frank Seely School,,,,,,,,,,,
Nottinghamshire County Council,1111/1001,Children and Young People,CYP,Transport Related,CCA,04/11/2014,10-14009,795.6,Southside Cars,,,,,,,,,,,
Nottinghamshire County Council,1111/1001,Children and Young People,CYP,Transport Related,CCA,04/11/2014,10-14010,1300.16,Southside Cars,,,,,,,,,,,
Nottinghamshire County Council,1111/1001,Children and Young People,CYP,Transport Related,CCA,04/11/2014,10-14011,777.87,Southside Cars,,,,,,,,,,,
Nottinghamshire County Council,1111/1001,Children and Young People,CYP,Transport Related,CCA,04/11/2014,10-14012,1379.3,Southside Cars,,,,,,,,,,,
Nottinghamshire County Council,1111/1001,Children and Young People,CYP,Transport Related,CCA,04/11/2014,10-14013,1209.04,Southside Cars,,,,,,,,,,,
Nottinghamshire County Council,1111/1001,Children and Young People,CYP,Transport Related,CCA,04/11/2014,10-14014,1732.5,Southside Cars,,,,,,,,,,,
Nottinghamshire County Council,1111/1001,Children and Young People,CYP,Transport Related,CCA,04/11/2014,10-14015,650,Southside Cars,,,,,,,,,,,
Nottinghamshire County Council,1111/1001,Children and Young People,CYP,Transport Related,CCA,04/11/2014,10-14016,1033.56,Southside Cars,,,,,,,,,,,
Nottinghamshire County Council,1111/1001,Children and Young People,CYP,Transport Related,CCA,04/11/2014,10-14017,1730.4,Southside Cars,,,,,,,,,,,
Nottinghamshire County Council,1111/1001,Children and Young People,CYP,Transport Related,CCA,04/11/2014,10-14018,826.65,Southside Cars,,,,,,,,,,,
Nottinghamshire County Council,1111/1001,Children and Young People,CYP,Transport Related,CCA,04/11/2014,10-14019,631.02,Southside Cars,,,,,,,,,,,
Nottinghamshire County Council,1111/1001,Children and Young People,CYP,Transport Related,CCA,04/11/2014,10-14027,2222.46,Martins Travel,,,,,,,,,,,
Nottinghamshire County Council,1111/1001,Children and Young People,CYP,Transport Related,CCA,04/11/2014,10-14028,2331.36,Martins Travel,,,,,,,,,,,
Nottinghamshire County Council,1111/1001,Children and Young People,CYP,Transport Related,CCA,04/11/2014,10-14030,1468.8,Fozcabs Newark Taxis,,,,,,,,,,,
Nottinghamshire County Council,1111/1001,Children and Young People,CYP,Transport Related,CCA,04/11/2014,10-14031,1273.29,Fozcabs Newark Taxis,,,,,,,,,,,
Nottinghamshire County Council,1111/1001,Children and Young People,CYP,Transport Related,CCA,04/11/2014,10-14032,1479.6,Fozcabs Newark Taxis,,,,,,,,,,,
Nottinghamshire County Council,1111/1001,Children and Young People,CYP,Transport Related,CCA,04/11/2014,10-14034,748,Fozcabs Newark Taxis,,,,,,,,,,,
Nottinghamshire County Council,1111/1001,Children and Young People,CYP,Transport Related,CCA,04/11/2014,10-14035,675,Fozcabs Newark Taxis,,,,,,,,,,,
Nottinghamshire County Council,1111/1001,Children and Young People,CYP,Transport Related,CCA,04/11/2014,10-14038,1890,Horizon Travel,,,,,,,,,,,
Nottinghamshire County Council,1111/1001,Children and Young People,CYP,Transport Related,CCA,04/11/2014,10-14039,2717.28,Horizon Travel,,,,,,,,,,,
Nottinghamshire County Council,1111/1001,Children and Young People,CYP,Transport Related,CCA,04/11/2014,10-14040,1561.14,Ja Travel Ltd,,,,,,,,,,,
Nottinghamshire County Council,1111/1001,Children and Young People,CYP,Transport Related,CCA,04/11/2014,10-14041,2924.82,Ja Travel Ltd,,,,,,,,,,,
Nottinghamshire County Council,1111/1001,Children and Young People,CYP,Transport Related,CCA,04/11/2014,10-14042,2201.22,Ja Travel Ltd,,,,,,,,,,,
Nottinghamshire County Council,1111/1001,Children and Young People,CYP,Transport Related,CCA,04/11/2014,10-14050,389.43,P & P Taxis,,,,,,,,,,,
Nottinghamshire County Council,1111/1001,Children and Young People,CYP,Transport Related,CCA,04/11/2014,10-14052,2121.6,P & P Taxis,,,,,,,,,,,
Nottinghamshire County Council,1111/1001,Children and Young People,CYP,Transport Related,CCA,04/11/2014,10-14053,1138.32,P & P Taxis,,,,,,,,,,,
Nottinghamshire County Council,1111/1001,Children and Young People,CYP,Transport Related,CCA,04/11/2014,10-14061,3178,Freeway Coaches Ltd,,,,,,,,,,,
Nottinghamshire County Council,1111/1001,Children and Young People,CYP,Transport Related,CCA,04/11/2014,10-14062,3060,C W Moxon Ltd,,,,,,,,,,,
Nottinghamshire County Council,1111/1001,Children and Young People,CYP,Transport Related,CCA,04/11/2014,10-14063,3240,C W Moxon Ltd,,,,,,,,,,,
Nottinghamshire County Council,1111/1001,Children and Young People,CYP,Transport Related,CCA,05/11/2014,10-10027,1232.5,Derbyshire County Council,,,,,,,,,,,
Nottinghamshire County Council,1111/1001,Children and Young People,CYP,Transport Related,CCA,05/11/2014,10-14281,1526.4,Tiger European Uk Ltd,,,,,,,,,,,
Nottinghamshire County Council,1111/1001,Children and Young People,CYP,Transport Related,CCA,06/11/2014,10-14373,2739.24,CBC Taxis Ltd,,,,,,,,,,,
Nottinghamshire County Council,1111/1001,Children and Young People,CYP,Transport Related,CCA,06/11/2014,10-14374,908.96,CBC Taxis Ltd,,,,,,,,,,,
Nottinghamshire County Council,1111/1001,Children and Young People,CYP,Transport Related,CCA,06/11/2014,10-14375,895.9,CBC Taxis Ltd,,,,,,,,,,,
Nottinghamshire County Council,1111/1001,Children and Young People,CYP,Transport Related,CCA,06/11/2014,10-14376,819.06,CBC Taxis Ltd,,,,,,,,,,,
Nottinghamshire County Council,1111/1001,Children and Young People,CYP,Transport Related,CCA,06/11/2014,10-14377,507.06,CBC Taxis Ltd,,,,,,,,,,,
Nottinghamshire County Council,1111/1001,Children and Young People,CYP,Transport Related,CCA,06/11/2014,10-14382,599.04,Alpha Cars,,,,,,,,,,,
Nottinghamshire County Council,1111/1001,Children and Young People,CYP,Transport Related,CCA,06/11/2014,10-14388,1040.4,Galaxy Cabs,,,,,,,,,,,
Nottinghamshire County Council,1111/1001,Children and Young People,CYP,Transport Related,CCA,06/11/2014,10-14391,693.6,Oasis Taxis Mansfield Ltd,,,,,,,,,,,
Nottinghamshire County Council,1111/1001,Children and Young People,CYP,Transport Related,CCA,06/11/2014,10-14392,2496.96,Oasis Taxis Mansfield Ltd,,,,,,,,,,,
Nottinghamshire County Council,1111/1001,Children and Young People,CYP,Transport Related,CCA,06/11/2014,10-14393,2805,Sprays Transport Ltd,,,,,,,,,,,
Nottinghamshire County Council,1111/1001,Children and Young People,CYP,Transport Related,CCA,06/11/2014,10-14394,2165.8,Sprays Transport Ltd,,,,,,,,,,,
Nottinghamshire County Council,1111/1001,Children and Young People,CYP,Transport Related,CCA,06/11/2014,10-14395,1647.3,Sprays Transport Ltd,,,,,,,,,,,
Nottinghamshire County Council,1111/1001,Children and Young People,CYP,Transport Related,CCA,06/11/2014,10-14396,1750,Sprays Transport Ltd,,,,,,,,,,,
Nottinghamshire County Council,1111/1001,Children and Young People,CYP,Transport Related,CCA,06/11/2014,10-14397,1989,Sprays Transport Ltd,,,,,,,,,,,
Nottinghamshire County Council,1111/1001,Children and Young People,CYP,Transport Related,CCA,06/11/2014,10-14398,1877.31,Sprays Transport Ltd,,,,,,,,,,,
Nottinghamshire County Council,1111/1001,Children and Young People,CYP,Transport Related,CCA,06/11/2014,10-14399,1646.28,Sprays Transport Ltd,,,,,,,,,,,
Nottinghamshire County Council,1111/1001,Children and Young People,CYP,Transport Related,CCA,06/11/2014,10-14400,2554.25,Sprays Transport Ltd,,,,,,,,,,,
Nottinghamshire County Council,1111/1001,Children and Young People,CYP,Transport Related,CCA,06/11/2014,10-14401,1098.24,Sprays Transport Ltd,,,,,,,,,,,
Nottinghamshire County Council,1111/1001,Children and Young People,CYP,Transport Related,CCA,06/11/2014,10-14402,1500.48,Sprays Transport Ltd,,,,,,,,,,,
Nottinghamshire County Council,1111/1001,Children and Young People,CYP,Transport Related,CCA,06/11/2014,10-14403,1576.24,Sprays Transport Ltd,,,,,,,,,,,
Nottinghamshire County Council,1111/1001,Children and Young People,CYP,Transport Related,CCA,06/11/2014,10-14404,1437.21,Sprays Transport Ltd,,,,,,,,,,,
Nottinghamshire County Council,1111/1001,Children and Young People,CYP,Transport Related,CCA,06/11/2014,10-14406,1651.32,Sprays Transport Ltd,,,,,,,,,,,
Nottinghamshire County Council,1111/1001,Children and Young People,CYP,Transport Related,CCA,06/11/2014,10-14407,1557.72,Sprays Transport Ltd,,,,,,,,,,,
Nottinghamshire County Council,1111/1001,Children and Young People,CYP,Transport Related,CCA,06/11/2014,10-14408,2589.54,Sprays Transport Ltd,,,,,,,,,,,
Nottinghamshire County Council,1111/1001,Children and Young People,CYP,Transport Related,CCA,06/11/2014,10-14409,1443.6,Sprays Transport Ltd,,,,,,,,,,,
Nottinghamshire County Council,1111/1001,Children and Young People,CYP,Transport Related,CCA,06/11/2014,10-14410,1541.22,Sprays Transport Ltd,,,,,,,,,,,
Nottinghamshire County Council,1111/1001,Children and Young People,CYP,Transport Related,CCA,06/11/2014,10-14411,1743.12,Sprays Transport Ltd,,,,,,,,,,,
Nottinghamshire County Council,1111/1001,Children and Young People,CYP,Transport Related,CCA,06/11/2014,10-14412,2257.56,Sprays Transport Ltd,,,,,,,,,,,
Nottinghamshire County Council,1111/1001,Children and Young People,CYP,Transport Related,CCA,06/11/2014,10-14414,1488.69,Sprays Transport Ltd,,,,,,,,,,,
Nottinghamshire County Council,1111/1001,Children and Young People,CYP,Transport Related,CCA,06/11/2014,10-14415,1595.28,Sprays Transport Ltd,,,,,,,,,,,
Nottinghamshire County Council,1111/1001,Children and Young People,CYP,Transport Related,CCA,06/11/2014,10-14416,2108.28,Sprays Transport Ltd,,,,,,,,,,,
Nottinghamshire County Council,1111/1001,Children and Young People,CYP,Transport Related,CCA,06/11/2014,10-14417,1007.76,Sprays Transport Ltd,,,,,,,,,,,
Nottinghamshire County Council,1111/1001,Children and Young People,CYP,Transport Related,CCA,06/11/2014,10-14418,1799.28,Sprays Transport Ltd,,,,,,,,,,,
Nottinghamshire County Council,1111/1001,Children and Young People,CYP,Transport Related,CCA,06/11/2014,10-14420,1721.7,Sprays Transport Ltd,,,,,,,,,,,
Nottinghamshire County Council,1111/1001,Children and Young People,CYP,Transport Related,CCA,06/11/2014,10-14421,1903.94,Sprays Transport Ltd,,,,,,,,,,,
Nottinghamshire County Council,1111/1001,Children and Young People,CYP,Transport Related,CCA,06/11/2014,10-14423,1656,Sprays Transport Ltd,,,,,,,,,,,
Nottinghamshire County Council,1111/1001,Children and Young People,CYP,Transport Related,CCA,06/11/2014,10-14424,687.5,Sprays Transport Ltd,,,,,,,,,,,
Nottinghamshire County Council,1111/1001,Children and Young People,CYP,Transport Related,CCA,06/11/2014,10-14427,2686,Sprays Transport Ltd,,,,,,,,,,,
Nottinghamshire County Council,1111/1001,Children and Young People,CYP,Transport Related,CCA,06/11/2014,10-14428,3060,Vallances Coaches,,,,,,,,,,,
Nottinghamshire County Council,1111/1001,Children and Young People,CYP,Transport Related,CCA,06/11/2014,10-14430,1850.04,Vallances Coaches,,,,,,,,,,,
Nottinghamshire County Council,1111/1001,Children and Young People,CYP,Transport Related,CCA,06/11/2014,10-14431,2311.49,Vallances Coaches,,,,,,,,,,,
Nottinghamshire County Council,1111/1001,Children and Young People,CYP,Transport Related,CCA,06/11/2014,10-14442,2844.27,Marshalls Of Sutton On Trent Ltd,,,,,,,,,,,
Nottinghamshire County Council,1111/1001,Children and Young People,CYP,Transport Related,CCA,06/11/2014,10-14462,1958.4,Rio Cabs,,,,,,,,,,,
Nottinghamshire County Council,1111/1001,Children and Young People,CYP,Transport Related,CCA,06/11/2014,10-14463,1092.96,Rio Cabs,,,,,,,,,,,
Nottinghamshire County Council,1111/1001,Children and Young People,CYP,Transport Related,CCA,06/11/2014,10-14464,1448.47,Rio Cabs,,,,,,,,,,,
Nottinghamshire County Council,1111/1001,Children and Young People,CYP,Transport Related,CCA,10/11/2014,10-14610,768,Alert Cars Ltd,,,,,,,,,,,
Nottinghamshire County Council,1111/1001,Children and Young People,CYP,Transport Related,CCA,10/11/2014,10-14616,2310,Sharpes Of Nottingham,,,,,,,,,,,
Nottinghamshire County Council,1111/1001,Children and Young People,CYP,Transport Related,CCA,10/11/2014,10-14617,1155,Sharpes Of Nottingham,,,,,,,,,,,
Nottinghamshire County Council,1111/1001,Children and Young People,CYP,Transport Related,CCA,10/11/2014,10-14618,1155,Sharpes Of Nottingham,,,,,,,,,,,
Nottinghamshire County Council,1111/1001,Children and Young People,CYP,Transport Related,CCA,10/11/2014,10-14624,12870,Sharpes Of Nottingham,,,,,,,,,,,
Nottinghamshire County Council,1111/1001,Children and Young People,CYP,Transport Related,CCA,10/11/2014,10-14625,9800,Redfern Travel,,,,,,,,,,,
Nottinghamshire County Council,1111/1001,Children and Young People,CYP,Transport Related,CCA,10/11/2014,10-14626,4160,Redfern Travel,,,,,,,,,,,
Nottinghamshire County Council,1111/1001,Children and Young People,CYP,Transport Related,CCA,10/11/2014,10-14632,1061.63,Arrow Specialised Transport Ltd,,,,,,,,,,,
Nottinghamshire County Council,1111/1001,Children and Young People,CYP,Transport Related,CCA,10/11/2014,10-14638,1053.9,Bridges Transport Services,,,,,,,,,,,
Nottinghamshire County Council,1111/1001,Children and Young People,CYP,Transport Related,CCA,10/11/2014,10-14641,3123,Butler Brothers Ltd,,,,,,,,,,,
Nottinghamshire County Council,1111/1001,Children and Young People,CYP,Transport Related,CCA,10/11/2014,10-14643,2109.96,D G Private Hire Ltd,,,,,,,,,,,
Nottinghamshire County Council,1111/1001,Children and Young People,CYP,Transport Related,CCA,10/11/2014,10-14644,1040,D G Private Hire Ltd,,,,,,,,,,,
Nottinghamshire County Council,1111/1001,Children and Young People,CYP,Transport Related,CCA,10/11/2014,10-14645,2098.14,D G Private Hire Ltd,,,,,,,,,,,
Nottinghamshire County Council,1111/1001,Children and Young People,CYP,Transport Related,CCA,10/11/2014,10-14646,3024,D G Private Hire Ltd,,,,,,,,,,,
Nottinghamshire County Council,1111/1001,Children and Young People,CYP,Transport Related,CCA,10/11/2014,10-14647,1840.25,D G Private Hire Ltd,,,,,,,,,,,
Nottinghamshire County Council,1111/1001,Children and Young People,CYP,Transport Related,CCA,10/11/2014,10-14648,2966.56,D G Private Hire Ltd,,,,,,,,,,,
Nottinghamshire County Council,1111/1001,Children and Young People,CYP,Transport Related,CCA,10/11/2014,10-14650,1628.09,D G Private Hire Ltd,,,,,,,,,,,
Nottinghamshire County Council,1111/1001,Children and Young People,CYP,Transport Related,CCA,10/11/2014,10-14651,1101.6,D G Private Hire Ltd,,,,,,,,,,,
Nottinghamshire County Council,1111/1001,Children and Young People,CYP,Transport Related,CCA,10/11/2014,10-14652,1778.04,Headland Taxi Services,,,,,,,,,,,
Nottinghamshire County Council,1111/1001,Children and Young People,CYP,Transport Related,CCA,10/11/2014,10-14653,1335.05,Headland Taxi Services,,,,,,,,,,,
Nottinghamshire County Council,1111/1001,Children and Young People,CYP,Transport Related,CCA,10/11/2014,10-14658,553.8,Ng11 Cars,,,,,,,,,,,
Nottinghamshire County Council,1111/1001,Children and Young People,CYP,Transport Related,CCA,10/11/2014,10-14659,735,Ng11 Cars,,,,,,,,,,,
Nottinghamshire County Council,1111/1001,Children and Young People,CYP,Transport Related,CCA,10/11/2014,10-14660,1989,Carlton Cars Ltd T/A Trent Cars,,,,,,,,,,,
Nottinghamshire County Council,1111/1001,Children and Young People,CYP,Transport Related,CCA,10/11/2014,10-14665,1530,D G Private Hire Ltd,,,,,,,,,,,
Nottinghamshire County Council,1111/1001,Children and Young People,CYP,Transport Related,CCA,10/11/2014,10-14666,1206.66,D G Private Hire Ltd,,,,,,,,,,,
Nottinghamshire County Council,1111/1001,Children and Young People,CYP,Transport Related,CCA,10/11/2014,10-14667,897,D G Private Hire Ltd,,,,,,,,,,,
Nottinghamshire County Council,1111/1001,Children and Young People,CYP,Transport Related,CCA,10/11/2014,10-14668,556.2,D G Private Hire Ltd,,,,,,,,,,,
Nottinghamshire County Council,1111/1001,Children and Young People,CYP,Transport Related,CCA,10/11/2014,10-14669,336.6,D G Private Hire Ltd,,,,,,,,,,,
Nottinghamshire County Council,1111/1001,Children and Young People,CYP,Transport Related,CCA,10/11/2014,10-14671,1447.2,D G Private Hire Ltd,,,,,,,,,,,
Nottinghamshire County Council,1111/1001,Children and Young People,CYP,Transport Related,CCA,10/11/2014,10-14672,1560.6,D G Private Hire Ltd,,,,,,,,,,,
Nottinghamshire County Council,1111/1001,Children and Young People,CYP,Transport Related,CCA,10/11/2014,10-14673,1038.42,D G Private Hire Ltd,,,,,,,,,,,
Nottinghamshire County Council,1111/1001,Children and Young People,CYP,Transport Related,CCA,10/11/2014,10-14688,2460.42,Travel Wright Ltd,,,,,,,,,,,
Nottinghamshire County Council,1111/1001,Children and Young People,CYP,Transport Related,CCA,10/11/2014,10-14701,1260.89,Town Cars (UK) Ltd,,,,,,,,,,,
Nottinghamshire County Council,1111/1001,Children and Young People,CYP,Transport Related,CCA,10/11/2014,10-14702,1244.4,Town Cars (UK) Ltd,,,,,,,,,,,
Nottinghamshire County Council,1111/1001,Children and Young People,CYP,Transport Related,CCA,10/11/2014,10-14703,769.5,Town Cars (UK) Ltd,,,,,,,,,,,
Nottinghamshire County Council,1111/1001,Children and Young People,CYP,Transport Related,CCA,11/11/2014,10-15021,309.06,Fozcabs Newark Taxis,,,,,,,,,,,
Nottinghamshire County Council,1111/1001,Children and Young People,CYP,Transport Related,CCA,11/11/2014,10-15024,1132.56,Fozcabs Newark Taxis,,,,,,,,,,,
Nottinghamshire County Council,1111/1001,Children and Young People,CYP,Transport Related,CCA,11/11/2014,10-15025,1372.14,Fozcabs Newark Taxis,,,,,,,,,,,
Nottinghamshire County Council,1111/1001,Children and Young People,CYP,Transport Related,CCA,12/11/2014,10-15049,1560.6,Central Cars Nottm Ltd,,,,,,,,,,,
Nottinghamshire County Council,1111/1001,Children and Young People,CYP,Transport Related,CCA,12/11/2014,10-15050,1566,Central Cars Nottm Ltd,,,,,,,,,,,
Nottinghamshire County Council,1111/1001,Children and Young People,CYP,Transport Related,CCA,12/11/2014,10-15052,1386.97,Central Cars Nottm Ltd,,,,,,,,,,,
Nottinghamshire County Council,1111/1001,Children and Young People,CYP,Transport Related,CCA,12/11/2014,10-15053,1560.6,Central Cars Nottm Ltd,,,,,,,,,,,
Nottinghamshire County Council,1111/1001,Children and Young People,CYP,Transport Related,CCA,12/11/2014,10-15054,1800,Central Cars Nottm Ltd,,,,,,,,,,,
Nottinghamshire County Council,1111/1001,Children and Young People,CYP,Transport Related,CCA,12/11/2014,10-15055,1836,Central Cars Nottm Ltd,,,,,,,,,,,
Nottinghamshire County Council,1111/1001,Children and Young People,CYP,Transport Related,CCA,12/11/2014,10-15056,550,Central Cars Nottm Ltd,,,,,,,,,,,
Nottinghamshire County Council,1111/1001,Children and Young People,CYP,Transport Related,CCA,12/11/2014,10-15057,1170,Central Cars Nottm Ltd,,,,,,,,,,,
Nottinghamshire County Council,1111/1001,Children and Young People,CYP,Transport Related,CCA,12/11/2014,10-15058,556.32,Central Cars Nottm Ltd,,,,,,,,,,,
Nottinghamshire County Council,1111/1001,Children and Young People,CYP,Transport Related,CCA,12/11/2014,10-15059,1307.28,Central Cars Nottm Ltd,,,,,,,,,,,
Nottinghamshire County Council,1111/1001,Children and Young People,CYP,Transport Related,CCA,12/11/2014,10-15060,2025.18,Central Cars Nottm Ltd,,,,,,,,,,,
Nottinghamshire County Council,1111/1001,Children and Young People,CYP,Transport Related,CCA,12/11/2014,10-15061,1066.1,Central Cars Nottm Ltd,,,,,,,,,,,
Nottinghamshire County Council,1111/1001,Children and Young People,CYP,Transport Related,CCA,12/11/2014,10-15062,2210,Shelleys Taxis Ltd,,,,,,,,,,,
Nottinghamshire County Council,1111/1001,Children and Young People,CYP,Transport Related,CCA,12/11/2014,10-15063,980,Shelleys Taxis Ltd,,,,,,,,,,,
Nottinghamshire County Council,1111/1001,Children and Young People,CYP,Transport Related,CCA,12/11/2014,10-15064,1080,Shelleys Taxis Ltd,,,,,,,,,,,
Nottinghamshire County Council,1111/1001,Children and Young People,CYP,Transport Related,CCA,12/11/2014,10-15065,1080,Shelleys Taxis Ltd,,,,,,,,,,,
Nottinghamshire County Council,1111/1001,Children and Young People,CYP,Transport Related,CCA,12/11/2014,10-15066,1320,Shelleys Taxis Ltd,,,,,,,,,,,
Nottinghamshire County Council,1111/1001,Children and Young People,CYP,Transport Related,CCA,12/11/2014,10-15076,2259,Abacus Cars,,,,,,,,,,,
Nottinghamshire County Council,1111/1001,Children and Young People,CYP,Transport Related,CCA,12/11/2014,10-15078,3213,Abacus Cars,,,,,,,,,,,
Nottinghamshire County Council,1111/1001,Children and Young People,CYP,Transport Related,CCA,12/11/2014,10-15079,1468.8,Abacus Cars,,,,,,,,,,,
Nottinghamshire County Council,1111/1001,Children and Young People,CYP,Transport Related,CCA,12/11/2014,10-15080,1440,Abacus Cars,,,,,,,,,,,
Nottinghamshire County Council,1111/1001,Children and Young People,CYP,Transport Related,CCA,12/11/2014,10-15082,1175.04,Abacus Cars,,,,,,,,,,,
Nottinghamshire County Council,1111/1001,Children and Young People,CYP,Transport Related,CCA,14/11/2014,10-15363,1090.8,Cabline Uk Ltd,,,,,,,,,,,
Nottinghamshire County Council,1111/1001,Children and Young People,CYP,Transport Related,CCA,14/11/2014,10-15364,858.5,Cabline Uk Ltd,,,,,,,,,,,
Nottinghamshire County Council,1111/1001,Children and Young People,CYP,Transport Related,CCA,14/11/2014,10-15370,765,Central Cars Nottm Ltd,,,,,,,,,,,
Nottinghamshire County Council,1111/1001,Children and Young People,CYP,Transport Related,CCA,14/11/2014,10-15371,535.5,Central Cars Nottm Ltd,,,,,,,,,,,
Nottinghamshire County Council,1111/1001,Children and Young People,CYP,Transport Related,CCA,14/11/2014,10-15372,1768.32,Johnson Bros Tours Ltd,,,,,,,,,,,
Nottinghamshire County Council,1111/1001,Children and Young People,CYP,Transport Related,CCA,14/11/2014,10-15391,700,D G Private Hire Ltd,,,,,,,,,,,
Nottinghamshire County Council,1111/1001,Children and Young People,CYP,Transport Related,CCA,14/11/2014,10-15401,2034,Sprays Transport Ltd,,,,,,,,,,,
Nottinghamshire County Council,1111/1001,Children and Young People,CYP,Transport Related,CCA,14/11/2014,10-15402,1914.12,Sprays Transport Ltd,,,,,,,,,,,
Nottinghamshire County Council,1111/1001,Children and Young People,CYP,Transport Related,CCA,14/11/2014,10-15405,3003.84,BN Gibson Ltd,,,,,,,,,,,
Nottinghamshire County Council,1111/1001,Children and Young People,CYP,Transport Related,CCA,14/11/2014,10-15406,3835.98,BN Gibson Ltd,,,,,,,,,,,
Nottinghamshire County Council,1111/1001,Children and Young People,CYP,Transport Related,CCA,14/11/2014,10-15407,4128.3,BN Gibson Ltd,,,,,,,,,,,
Nottinghamshire County Council,1111/1001,Children and Young People,CYP,Transport Related,CCA,14/11/2014,10-15408,3391.74,BN Gibson Ltd,,,,,,,,,,,
Nottinghamshire County Council,1111/1001,Children and Young People,CYP,Transport Related,CCA,14/11/2014,10-15409,3427.2,BN Gibson Ltd,,,,,,,,,,,
Nottinghamshire County Council,1111/1001,Children and Young People,CYP,Transport Related,CCA,14/11/2014,10-15410,3685.5,BN Gibson Ltd,,,,,,,,,,,
Nottinghamshire County Council,1111/1001,Children and Young People,CYP,Transport Related,CCA,14/11/2014,10-15411,2795.58,BN Gibson Ltd,,,,,,,,,,,
Nottinghamshire County Council,1111/1001,Children and Young People,CYP,Transport Related,CCA,14/11/2014,10-15412,2206.62,BN Gibson Ltd,,,,,,,,,,,
Nottinghamshire County Council,1111/1001,Children and Young People,CYP,Transport Related,CCA,14/11/2014,10-15414,2299.57,BN Gibson Ltd,,,,,,,,,,,
Nottinghamshire County Council,1111/1001,Children and Young People,CYP,Transport Related,CCA,14/11/2014,10-15415,2818.08,BN Gibson Ltd,,,,,,,,,,,
Nottinghamshire County Council,1111/1001,Children and Young People,CYP,Transport Related,CCA,14/11/2014,10-15416,2215.08,BN Gibson Ltd,,,,,,,,,,,
Nottinghamshire County Council,1111/1001,Children and Young People,CYP,Transport Related,CCA,14/11/2014,10-15417,1625.58,BN Gibson Ltd,,,,,,,,,,,
Nottinghamshire County Council,1111/1001,Children and Young People,CYP,Transport Related,CCA,14/11/2014,10-15418,2281.32,BN Gibson Ltd,,,,,,,,,,,
Nottinghamshire County Council,1111/1001,Children and Young People,CYP,Transport Related,CCA,14/11/2014,10-15424,2040,AOT Coaches,,,,,,,,,,,
Nottinghamshire County Council,1111/1001,Children and Young People,CYP,Transport Related,CCA,14/11/2014,10-15425,2160,AOT Coaches,,,,,,,,,,,
Nottinghamshire County Council,1111/1001,Children and Young People,CYP,Transport Related,CCA,14/11/2014,10-15426,1200,AOT Coaches,,,,,,,,,,,
Nottinghamshire County Council,1111/1001,Children and Young People,CYP,Transport Related,CCA,14/11/2014,10-15427,1320,AOT Coaches,,,,,,,,,,,
Nottinghamshire County Council,1111/1001,Children and Young People,CYP,Transport Related,CCA,14/11/2014,10-15430,1170,Jb Tours Watnall Ltd,,,,,,,,,,,
Nottinghamshire County Council,1111/1001,Children and Young People,CYP,Transport Related,CCA,14/11/2014,10-15431,1560,Jb Tours Watnall Ltd,,,,,,,,,,,
Nottinghamshire County Council,1111/1001,Children and Young People,CYP,Transport Related,CCA,14/11/2014,10-15432,720,Jb Tours Watnall Ltd,,,,,,,,,,,
Nottinghamshire County Council,1111/1001,Children and Young People,CYP,Transport Related,CCA,14/11/2014,10-15433,960,Jb Tours Watnall Ltd,,,,,,,,,,,
Nottinghamshire County Council,1111/1001,Children and Young People,CYP,Transport Related,CCA,14/11/2014,10-15453,1011.5,Bulls Taxis,,,,,,,,,,,
Nottinghamshire County Council,1111/1001,Children and Young People,CYP,Transport Related,CCA,17/11/2014,10-15539,2000,Travel Wright Ltd,,,,,,,,,,,
Nottinghamshire County Council,1111/1001,Children and Young People,CYP,Transport Related,CCA,18/11/2014,10-15674,1960,Sprays Transport Ltd,,,,,,,,,,,
Nottinghamshire County Council,1111/1001,Children and Young People,CYP,Transport Related,CCA,18/11/2014,10-15675,1400,Sprays Transport Ltd,,,,,,,,,,,
Nottinghamshire County Council,1111/1001,Children and Young People,CYP,Transport Related,CCA,20/11/2014,10-15998,1501.31,Central Cars Nottm Ltd,,,,,,,,,,,
Nottinghamshire County Council,1111/1001,Children and Young People,CYP,Transport Related,CCA,20/11/2014,10-15999,1301.68,Arrow Specialised Transport Ltd,,,,,,,,,,,
Nottinghamshire County Council,1111/1001,Children and Young People,CYP,Transport Related,CCA,20/11/2014,10-16000,1247.1,D G Private Hire Ltd,,,,,,,,,,,
Nottinghamshire County Council,1111/1001,Children and Young People,CYP,Transport Related,CCA,20/11/2014,10-16001,1984.68,Erewash Community Transport,,,,,,,,,,,
Nottinghamshire County Council,1111/1001,Children and Young People,CYP,Transport Related,CCA,20/11/2014,10-16002,2834.92,Erewash Community Transport,,,,,,,,,,,
Nottinghamshire County Council,1111/1001,Children and Young People,CYP,Transport Related,CCA,20/11/2014,10-16003,774.35,Erewash Community Transport,,,,,,,,,,,
Nottinghamshire County Council,1111/1001,Children and Young People,CYP,Transport Related,CCA,20/11/2014,10-16005,1783.13,Erewash Community Transport,,,,,,,,,,,
Nottinghamshire County Council,1111/1001,Children and Young People,CYP,Transport Related,CCA,20/11/2014,10-16006,1973.36,Erewash Community Transport,,,,,,,,,,,
Nottinghamshire County Council,1111/1001,Children and Young People,CYP,Transport Related,CCA,20/11/2014,10-16009,3433.14,BN Gibson Ltd,,,,,,,,,,,
Nottinghamshire County Council,1111/1001,Children and Young People,CYP,Transport Related,CCA,20/11/2014,10-16010,2641.01,BN Gibson Ltd,,,,,,,,,,,
Nottinghamshire County Council,1111/1001,Children and Young People,CYP,Transport Related,CCA,20/11/2014,10-16012,3303,BN Gibson Ltd,,,,,,,,,,,
Nottinghamshire County Council,1111/1001,Children and Young People,CYP,Transport Related,CCA,20/11/2014,10-16013,2607.12,BN Gibson Ltd,,,,,,,,,,,
Nottinghamshire County Council,1111/1001,Children and Young People,CYP,Transport Related,CCA,20/11/2014,10-16014,3349.98,BN Gibson Ltd,,,,,,,,,,,
Nottinghamshire County Council,1111/1001,Children and Young People,CYP,Transport Related,CCA,20/11/2014,10-16015,3077.46,BN Gibson Ltd,,,,,,,,,,,
Nottinghamshire County Council,1111/1001,Children and Young People,CYP,Transport Related,CCA,20/11/2014,10-16022,5660.32,Stagecoach Services Ltd,,,,,,,,,,,
Nottinghamshire County Council,1111/1001,Children and Young People,CYP,Transport Related,CCA,20/11/2014,10-16067,502.56,Diamond Cars,,,,,,,,,,,
Nottinghamshire County Council,1111/1001,Children and Young People,CYP,Transport Related,CCA,20/11/2014,10-16068,628.2,Diamond Cars,,,,,,,,,,,
Nottinghamshire County Council,1111/1001,Children and Young People,CYP,Transport Related,CCA,24/11/2014,10-16183,700,SJW (Muskham) Ltd T/A Z Cars,,,,,,,,,,,
Nottinghamshire County Council,1111/1001,Children and Young People,CYP,Transport Related,CCA,26/11/2014,10-16360,1510.5,Tiger European Uk Ltd,,,,,,,,,,,
Nottinghamshire County Council,1111/1001,Children and Young People,CYP,Transport Related,CDA,04/11/2014,10-14035,675,Fozcabs Newark Taxis,,,,,,,,,,,
Nottinghamshire County Council,1111/1001,Children and Young People,CYP,Transport Related,CDA,04/11/2014,10-14054,817.02,P & P Taxis,,,,,,,,,,,
Nottinghamshire County Council,1111/1001,Children and Young People,CYP,Transport Related,CDA,05/11/2014,10-14282,30000,C W Moxon Ltd,,,,,,,,,,,
Nottinghamshire County Council,1111/1001,Children and Young People,CYP,Transport Related,CDA,05/11/2014,10-14283,6683.04,Paul S Winson Coaches,,,,,,,,,,,
Nottinghamshire County Council,1111/1001,Children and Young People,CYP,Transport Related,CDA,06/11/2014,10-14388,1040.4,Galaxy Cabs,,,,,,,,,,,
Nottinghamshire County Council,1111/1001,Children and Young People,CYP,Transport Related,CDA,06/11/2014,10-14404,479.07,Sprays Transport Ltd,,,,,,,,,,,
Nottinghamshire County Council,1111/1001,Children and Young People,CYP,Transport Related,CDA,06/11/2014,10-14424,687.5,Sprays Transport Ltd,,,,,,,,,,,
Nottinghamshire County Council,1111/1001,Children and Young People,CYP,Transport Related,CDA,10/11/2014,10-14632,353.87,Arrow Specialised Transport Ltd,,,,,,,,,,,
Nottinghamshire County Council,1111/1001,Children and Young People,CYP,Transport Related,CDA,10/11/2014,10-14669,336.6,D G Private Hire Ltd,,,,,,,,,,,
Nottinghamshire County Council,1111/1001,Children and Young People,CYP,Transport Related,CDA,10/11/2014,10-14673,1038.42,D G Private Hire Ltd,,,,,,,,,,,
Nottinghamshire County Council,1111/1001,Children and Young People,CYP,Transport Related,CDA,10/11/2014,10-14679,2340,Nottingham Minibuses & Coaches,,,,,,,,,,,
Nottinghamshire County Council,1111/1001,Children and Young People,CYP,Transport Related,CDA,10/11/2014,10-14680,2520,Nottingham Minibuses & Coaches,,,,,,,,,,,
Nottinghamshire County Council,1111/1001,Children and Young People,CYP,Transport Related,CDA,10/11/2014,10-14682,2250,Nottingham Minibuses & Coaches,,,,,,,,,,,
Nottinghamshire County Council,1111/1001,Children and Young People,CYP,Transport Related,CDA,10/11/2014,10-14683,1710,Nottingham Minibuses & Coaches,,,,,,,,,,,
Nottinghamshire County Council,1111/1001,Children and Young People,CYP,Transport Related,CDA,10/11/2014,10-14684,2340,Nottingham Minibuses & Coaches,,,,,,,,,,,
Nottinghamshire County Council,1111/1001,Children and Young People,CYP,Transport Related,CDA,10/11/2014,10-14685,2520,Nottingham Minibuses & Coaches,,,,,,,,,,,
Nottinghamshire County Council,1111/1001,Children and Young People,CYP,Transport Related,CDA,11/11/2014,10-15021,154.52,Fozcabs Newark Taxis,,,,,,,,,,,
Nottinghamshire County Council,1111/1001,Children and Young People,CYP,Transport Related,CDA,12/11/2014,10-15050,174,Central Cars Nottm Ltd,,,,,,,,,,,
Nottinghamshire County Council,1111/1001,Children and Young People,CYP,Transport Related,CDA,12/11/2014,10-15090,7315,Nottingham Minibuses & Coaches,,,,,,,,,,,
Nottinghamshire County Council,1111/1001,Children and Young People,CYP,Transport Related,CDA,12/11/2014,10-15091,3740,Nottingham Minibuses & Coaches,,,,,,,,,,,
Nottinghamshire County Council,1111/1001,Children and Young People,CYP,Transport Related,CDA,12/11/2014,10-15092,6545,Nottingham Minibuses & Coaches,,,,,,,,,,,
Nottinghamshire County Council,1111/1001,Children and Young People,CYP,Transport Related,CDA,12/11/2014,10-15093,3366,Nottingham Minibuses & Coaches,,,,,,,,,,,
Nottinghamshire County Council,1111/1001,Children and Young People,CYP,Transport Related,CDA,14/11/2014,10-15420,3247.2,AOT Coaches,,,,,,,,,,,
Nottinghamshire County Council,1111/1001,Children and Young People,CYP,Transport Related,CDA,14/11/2014,10-15421,1782,AOT Coaches,,,,,,,,,,,
Nottinghamshire County Council,1111/1001,Children and Young People,CYP,Transport Related,CDA,17/11/2014,10-15535,1500,Travel Wright Ltd,,,,,,,,,,,
Nottinghamshire County Council,1111/1001,Children and Young People,CYP,Transport Related,CDA,17/11/2014,10-15536,20000,Travel Wright Ltd,,,,,,,,,,,
Nottinghamshire County Council,1111/1001,Children and Young People,CYP,Transport Related,CDA,17/11/2014,10-15537,1000,Travel Wright Ltd,,,,,,,,,,,
Nottinghamshire County Council,1111/1001,Children and Young People,CYP,Transport Related,CDA,17/11/2014,10-15538,5728.32,Paul S Winson Coaches,,,,,,,,,,,
Nottinghamshire County Council,1111/1001,Children and Young People,CYP,Transport Related,CDA,18/11/2014,10-15678,1280,D G Private Hire Ltd,,,,,,,,,,,
Nottinghamshire County Council,1111/1001,Children and Young People,CYP,Transport Related,CDA,20/11/2014,10-15997,500,Central Cars Nottm Ltd,,,,,,,,,,,
Nottinghamshire County Council,1111/1001,Children and Young People,CYP,Transport Related,CDA,20/11/2014,10-16010,880.33,BN Gibson Ltd,,,,,,,,,,,
Nottinghamshire County Council,1111/1001,Children and Young People,CYP,Transport Related,CDA,24/11/2014,10-16181,500,Central Cars Nottm Ltd,,,,,,,,,,,
Nottinghamshire County Council,1111/1001,Children and Young People,CYP,Supplies & Services,DAA,07/11/2014,10-14571,300000,Sparken Hill Academy,,,,,,,,,,,
Nottinghamshire County Council,1111/1001,Children and Young People,CYP,Supplies & Services,DAA,25/11/2014,10-16619,510.9,Itc First Aid Ltd,,,,,,,,,,,
Nottinghamshire County Council,1111/1001,Children and Young People,CYP,Supplies & Services,DAA,27/11/2014,10-16420,2125.2,Nottingham City Council,,,,,,,,,,,
Nottinghamshire County Council,1111/1001,Children and Young People,CYP,Supplies & Services,DBA,03/11/2014,10-10080,385.47,Brake Bros Ltd,,,,,,,,,,,
Nottinghamshire County Council,1111/1001,Children and Young People,CYP,Supplies & Services,DBA,03/11/2014,10-10084,372.03,Brake Bros Ltd,,,,,,,,,,,
Nottinghamshire County Council,1111/1001,Children and Young People,CYP,Supplies & Services,DBA,03/11/2014,10-10087,314.8,Brake Bros Ltd,,,,,,,,,,,
Nottinghamshire County Council,1111/1001,Children and Young People,CYP,Supplies & Services,DBA,03/11/2014,10-10090,942.59,Brake Bros Ltd,,,,,,,,,,,
Nottinghamshire County Council,1111/1001,Children and Young People,CYP,Supplies & Services,DBA,04/11/2014,10-14104,300.71,Hallam Country Fresh Foods Ltd,,,,,,,,,,,
Nottinghamshire County Council,1111/1001,Children and Young People,CYP,Supplies & Services,DBA,06/11/2014,10-14325,728.74,Brake Bros Ltd,,,,,,,,,,,
Nottinghamshire County Council,1111/1001,Children and Young People,CYP,Supplies & Services,DBA,06/11/2014,10-14328,173.09,Brake Bros Ltd,,,,,,,,,,,
Nottinghamshire County Council,1111/1001,Children and Young People,CYP,Supplies & Services,DBA,06/11/2014,10-14331,587.43,Brake Bros Ltd,,,,,,,,,,,
Nottinghamshire County Council,1111/1001,Children and Young People,CYP,Supplies & Services,DBA,06/11/2014,10-14334,652.59,Brake Bros Ltd,,,,,,,,,,,
Nottinghamshire County Council,1111/1001,Children and Young People,CYP,Supplies & Services,DBA,11/11/2014,10-15012,257.8,Hallam Country Fresh Foods Ltd,,,,,,,,,,,
Nottinghamshire County Council,1111/1001,Children and Young People,CYP,Supplies & Services,DBA,14/11/2014,10-15458,139.6,Arnold Dairies Ltd,,,,,,,,,,,
Nottinghamshire County Council,1111/1001,Children and Young People,CYP,Supplies & Services,DBA,14/11/2014,10-15461,143.77,Arnold Dairies Ltd,,,,,,,,,,,
Nottinghamshire County Council,1111/1001,Children and Young People,CYP,Supplies & Services,DBA,19/11/2014,10-15895,278.89,Hallam Country Fresh Foods Ltd,,,,,,,,,,,
Nottinghamshire County Council,1111/1001,Children and Young People,CYP,Supplies & Services,DBA,25/11/2014,10-16326,454.49,Brake Bros Ltd,,,,,,,,,,,
Nottinghamshire County Council,1111/1001,Children and Young People,CYP,Supplies & Services,DBA,25/11/2014,10-16330,449.17,Brake Bros Ltd,,,,,,,,,,,
Nottinghamshire County Council,1111/1001,Children and Young People,CYP,Supplies & Services,DBA,25/11/2014,10-16333,135.63,Brake Bros Ltd,,,,,,,,,,,
Nottinghamshire County Council,1111/1001,Children and Young People,CYP,Supplies & Services,DBA,25/11/2014,10-16336,967.52,Brake Bros Ltd,,,,,,,,,,,
Nottinghamshire County Council,1111/1001,Children and Young People,CYP,Supplies & Services,DBA,26/11/2014,10-16362,300.73,Hallam Country Fresh Foods Ltd,,,,,,,,,,,
Nottinghamshire County Council,1111/1001,Children and Young People,CYP,Supplies & Services,DEA,10/11/2014,10-14990,2217,Serlby Park Academy,,,,,,,,,,,
Nottinghamshire County Council,1111/1001,Children and Young People,CYP,Supplies & Services,DEA,10/11/2014,10-14991,521,Serlby Park Academy,,,,,,,,,,,
Nottinghamshire County Council,1111/1001,Children and Young People,CYP,Supplies & Services,DEA,19/11/2014,10-15714,2217,Dukeries Academy,,,,,,,,,,,
Nottinghamshire County Council,1111/1001,Children and Young People,CYP,Supplies & Services,DEA,19/11/2014,10-15715,521,Dukeries Academy,,,,,,,,,,,
Nottinghamshire County Council,1111/1001,Children and Young People,CYP,Supplies & Services,DEA,25/11/2014,10-16603,2800,Exploring Choices,,,,,,,,,,,
Nottinghamshire County Council,1111/1001,Children and Young People,CYP,Supplies & Services,DEA,26/11/2014,10-16401,520,[Redacted],,,,,,,,,,,
Nottinghamshire County Council,1111/1001,Children and Young People,CYP,Supplies & Services,DEA,27/11/2014,10-16692,525,[Redacted],,,,,,,,,,,
Nottinghamshire County Council,1111/1001,Children and Young People,CYP,Supplies & Services,DEA,27/11/2014,10-16721,925,Sensory Integration Network (UK & I,,,,,,,,,,,
Nottinghamshire County Council,1111/1001,Children and Young People,CYP,Supplies & Services,DFA,06/11/2014,10-14317,1414.54,Lantec Services Ltd,,,,,,,,,,,
Nottinghamshire County Council,1111/1001,Children and Young People,CYP,Supplies & Services,DFA,10/11/2014,10-14993,843,Lantec Services Ltd,,,,,,,,,,,
Nottinghamshire County Council,1111/1001,Children and Young People,CYP,Supplies & Services,DFA,13/11/2014,10-15154,579.48,Lantec Services Ltd,,,,,,,,,,,
Nottinghamshire County Council,1111/1001,Children and Young People,CYP,Supplies & Services,DKA,05/11/2014,10-14276,1000,Ernehale Junior School,,,,,,,,,,,
Nottinghamshire County Council,1111/1001,Children and Young People,CYP,Supplies & Services,DKA,05/11/2014,10-14277,1000,Leen Mills Primary School,,,,,,,,,,,
Nottinghamshire County Council,1111/1001,Children and Young People,CYP,Supplies & Services,DKA,05/11/2014,10-14278,1000,Muskham Primary School,,,,,,,,,,,
Nottinghamshire County Council,1111/1001,Children and Young People,CYP,Supplies & Services,DKA,17/11/2014,10-15514,8457.4,College House Junior School,,,,,,,,,,,
Nottinghamshire County Council,1111/1001,Children and Young People,CYP,Supplies & Services,DKA,17/11/2014,10-15515,20900,Abbey Gates Primary School,,,,,,,,,,,
Nottinghamshire County Council,1111/1001,Children and Young People,CYP,Supplies & Services,DKA,18/11/2014,10-15713,575,Need 2 View,,,,,,,,,,,
Nottinghamshire County Council,1111/1001,Children and Young People,CYP,Supplies & Services,DKA,20/11/2014,10-15996,1195,YS West Locality Team,,,,,,,,,,,
Nottinghamshire County Council,1111/1001,Children and Young People,CYP,Supplies & Services,DNA,28/11/2014,10-16593,1035,Virtual College Ltd,,,,,,,,,,,
Nottinghamshire County Council,1111/1001,Children and Young People,CYP,Supplies & Services,DNA,28/11/2014,10-16727,700,Capita Business Services Ltd,,,,,,,,,,,
Nottinghamshire County Council,1111/1001,Children and Young People,CYP,Third Party Payments,EAA,10/11/2014,10-16506,1800,[Redacted],,,,,,,,,,,
Nottinghamshire County Council,1111/1001,Children and Young People,CYP,Third Party Payments,EBA,07/11/2014,10-14518,23461.54,Home Group Limited,,,,,,,,,,,
Nottinghamshire County Council,1111/1001,Children and Young People,CYP,Third Party Payments,EBA,07/11/2014,10-14527,1681.84,Metropolitan Housing Trust,,,,,,,,,,,
Nottinghamshire County Council,1111/1001,Children and Young People,CYP,Third Party Payments,EBA,07/11/2014,10-14533,20912.09,Newark Emmaus Trust,,,,,,,,,,,
Nottinghamshire County Council,1111/1001,Children and Young People,CYP,Third Party Payments,EBA,07/11/2014,10-14538,15825.32,Framework Housing Association,,,,,,,,,,,
Nottinghamshire County Council,1111/1001,Children and Young People,CYP,Third Party Payments,EBA,07/11/2014,10-14540,22406.75,Nottingham Community Housing,,,,,,,,,,,
Nottinghamshire County Council,1111/1001,Children and Young People,CYP,Third Party Payments,EBA,07/11/2014,10-14544,7568.26,ASRA Housing Association,,,,,,,,,,,
Nottinghamshire County Council,1111/1001,Children and Young People,CYP,Third Party Payments,EBA,26/11/2014,10-16069,40375.7,Transform Schools,,,,,,,,,,,
Nottinghamshire County Council,1111/1001,Children and Young People,CYP,Third Party Payments,EBA,26/11/2014,10-16070,23933.61,Transform Schools,,,,,,,,,,,
Nottinghamshire County Council,1111/1001,Children and Young People,CYP,Third Party Payments,EBA,26/11/2014,10-16088,34569.81,Transform Schools,,,,,,,,,,,
Nottinghamshire County Council,1111/1001,Children and Young People,CYP,Third Party Payments,EBA,26/11/2014,10-16089,17717.82,East Leake Schools Ltd,,,,,,,,,,,
Nottinghamshire County Council,1111/1001,Children and Young People,CYP,Third Party Payments,EBA,26/11/2014,10-16098,241199.44,East Leake Schools Ltd,,,,,,,,,,,
Nottinghamshire County Council,1111/1001,Children and Young People,CYP,Third Party Payments,EBA,26/11/2014,10-16099,1488829.94,Transform Schools,,,,,,,,,,,
Nottinghamshire County Council,1111/1001,Children and Young People,CYP,Third Party Payments,EBA,26/11/2014,10-16314,48655.95,Transform Schools,,,,,,,,,,,
Nottinghamshire County Council,1111/1001,Children and Young People,CYP,Third Party Payments,EDA,05/11/2014,10-10030,16199,Arnbrook Primary Academy,,,,,,,,,,,
Nottinghamshire County Council,1111/1001,Children and Young People,CYP,Third Party Payments,EDA,05/11/2014,10-10031,6364,Birklands Primary (Academy),,,,,,,,,,,
Nottinghamshire County Council,1111/1001,Children and Young People,CYP,Third Party Payments,EDA,05/11/2014,10-10032,24299,Bishop Alexander LEAD Academy,,,,,,,,,,,
Nottinghamshire County Council,1111/1001,Children and Young People,CYP,Third Party Payments,EDA,05/11/2014,10-10033,28928,Hillside Primary & Nursery School (,,,,,,,,,,,
Nottinghamshire County Council,1111/1001,Children and Young People,CYP,Third Party Payments,EDA,05/11/2014,10-10034,14232,Kingston Park Academy,,,,,,,,,,,
Nottinghamshire County Council,1111/1001,Children and Young People,CYP,Third Party Payments,EDA,05/11/2014,10-10035,23690,Leamington Primary & Nursery Academ,,,,,,,,,,,
Nottinghamshire County Council,1111/1001,Children and Young People,CYP,Third Party Payments,EDA,05/11/2014,10-10036,16574,Mansfield Primary Academy,,,,,,,,,,,
Nottinghamshire County Council,1111/1001,Children and Young People,CYP,Third Party Payments,EDA,05/11/2014,10-10037,23807,Norbridge Academy,,,,,,,,,,,
Nottinghamshire County Council,1111/1001,Children and Young People,CYP,Third Party Payments,EDA,05/11/2014,10-10038,24878,Peafield Lane Academy,,,,,,,,,,,
Nottinghamshire County Council,1111/1001,Children and Young People,CYP,Third Party Payments,EDA,05/11/2014,10-10039,22563,St Patricks Catholic Voluntary Acad,,,,,,,,,,,
Nottinghamshire County Council,1111/1001,Children and Young People,CYP,Third Party Payments,EDA,05/11/2014,10-10040,21406,The Flying High Academy,,,,,,,,,,,
Nottinghamshire County Council,1111/1001,Children and Young People,CYP,Third Party Payments,EDA,05/11/2014,10-10041,9835,Sunnyside Spencer Academy,,,,,,,,,,,
Nottinghamshire County Council,1111/1001,Children and Young People,CYP,Third Party Payments,EDA,05/11/2014,10-14308,5834,The Manor Academy,,,,,,,,,,,
Nottinghamshire County Council,1111/1001,Children and Young People,CYP,Third Party Payments,EDA,06/11/2014,10-10043,1108,The Kimberley School (Academy),,,,,,,,,,,
Nottinghamshire County Council,1111/1001,Children and Young People,CYP,Third Party Payments,EDA,10/11/2014,10-14992,81782,Foxwood Academy,,,,,,,,,,,
Nottinghamshire County Council,1111/1001,Children and Young People,CYP,Third Party Payments,EDA,14/11/2014,10-15199,4818,Ryton Park Primary & Nursery School,,,,,,,,,,,
Nottinghamshire County Council,1111/1001,Children and Young People,CYP,Third Party Payments,EDA,14/11/2014,10-15200,5241,St Philip Neri with St Bede Vol Aca,,,,,,,,,,,
Nottinghamshire County Council,1111/1001,Children and Young People,CYP,Third Party Payments,EDA,17/11/2014,10-15534,3981,Chetwynd Road Primary Academy,,,,,,,,,,,
Nottinghamshire County Council,1111/1001,Children and Young People,CYP,Third Party Payments,EDA,18/11/2014,10-15711,3696,National Church Of England Academy,,,,,,,,,,,
Nottinghamshire County Council,1111/1001,Children and Young People,CYP,Third Party Payments,EDA,25/11/2014,10-16312,3260,Toothill Academy,,,,,,,,,,,
Nottinghamshire County Council,1111/1001,Children and Young People,CYP,Third Party Payments,EDA,25/11/2014,10-16313,33370,Toothill Academy,,,,,,,,,,,
Nottinghamshire County Council,1111/1001,Children and Young People,CYP,Third Party Payments,EDA,25/11/2014,10-16343,21320,Toothill Academy,,,,,,,,,,,
Nottinghamshire County Council,1111/1001,Children and Young People,CYP,Third Party Payments,EDA,25/11/2014,10-16344,31662,The Manor Academy,,,,,,,,,,,
Nottinghamshire County Council,1111/1001,Children and Young People,CYP,Third Party Payments,EDA,25/11/2014,10-16345,6211,The Manor Academy,,,,,,,,,,,
Nottinghamshire County Council,1111/1001,Children and Young People,CYP,Third Party Payments,EDA,25/11/2014,10-16346,38363,The Manor Academy,,,,,,,,,,,
Nottinghamshire County Council,1111/1001,Children and Young People,CYP,Third Party Payments,EDA,25/11/2014,10-16347,8003,Kirkby College,,,,,,,,,,,
Nottinghamshire County Council,1111/1001,Children and Young People,CYP,Third Party Payments,EDA,25/11/2014,10-16348,14664,Kirkby College,,,,,,,,,,,
Nottinghamshire County Council,1111/1001,Children and Young People,CYP,Third Party Payments,EDA,25/11/2014,10-16349,14300,Dukeries Academy,,,,,,,,,,,
Nottinghamshire County Council,1111/1001,Children and Young People,CYP,Third Party Payments,EDA,25/11/2014,10-16350,7785,The Priory Catholic Voluntary Acade,,,,,,,,,,,
Nottinghamshire County Council,1111/1001,Children and Young People,CYP,Third Party Payments,EDA,25/11/2014,10-16351,25999,Serlby Park Academy,,,,,,,,,,,
Nottinghamshire County Council,1111/1001,Children and Young People,CYP,Third Party Payments,EDA,25/11/2014,10-16352,37504,Redhill Academy,,,,,,,,,,,
Nottinghamshire County Council,1111/1001,Children and Young People,CYP,Third Party Payments,EDA,25/11/2014,10-16353,34800,Joseph Whittaker Academy,,,,,,,,,,,
Nottinghamshire County Council,1111/1001,Children and Young People,CYP,Third Party Payments,EDA,25/11/2014,10-16354,15768,St Philip Neri Rc Primary School,,,,,,,,,,,
Nottinghamshire County Council,1111/1001,Children and Young People,CYP,Third Party Payments,EFA,18/11/2014,10-15712,925,First Class Tailored Solutions Ltd,,,,,,,,,,,
Nottinghamshire County Council,1111/1001,Children and Young People,CYP,Third Party Payments,EFA,25/11/2014,10-16622,7433.6,Real Education Ltd,,,,,,,,,,,
Nottinghamshire County Council,1111/1001,Children and Young People,CYP,Third Party Payments,EFA,26/11/2014,10-16659,6297.89,I Can Services Ltd,,,,,,,,,,,
Nottinghamshire County Council,1111/1001,Children and Young People,CYP,Third Party Payments,EFA,27/11/2014,10-16647,1700,First Class Tailored Solutions Ltd,,,,,,,,,,,
Nottinghamshire County Council,1111/1001,Children and Young People,CYP,Third Party Payments,EFA,27/11/2014,10-16649,2210,First Class Tailored Solutions Ltd,,,,,,,,,,,
Nottinghamshire County Council,1111/1001,Children and Young People,CYP,Third Party Payments,EFA,27/11/2014,10-16656,2210,First Class Tailored Solutions Ltd,,,,,,,,,,,
Nottinghamshire County Council,1111/1001,Children and Young People,CYP,Third Party Payments,EFA,27/11/2014,10-16657,1700,First Class Tailored Solutions Ltd,,,,,,,,,,,
Nottinghamshire County Council,1111/1001,Children and Young People,CYP,Third Party Payments,EFA,27/11/2014,10-16689,606.48,First Class Tailored Solutions Ltd,,,,,,,,,,,
Nottinghamshire County Council,1111/1001,Children and Young People,CYP,Third Party Payments,EFA,27/11/2014,10-16691,22213.33,High Grange Specialist School,,,,,,,,,,,
Nottinghamshire County Council,1111/1001,Children and Young People,CYP,Third Party Payments,EFA,27/11/2014,10-16705,526.5,First Class Tailored Solutions Ltd,,,,,,,,,,,
Nottinghamshire County Council,1111/1001,Children and Young People,CYP,Third Party Payments,EFA,28/11/2014,10-14307,4918,Brooksby Melton College,,,,,,,,,,,
Nottinghamshire County Council,1111/1001,Children and Young People,CYP,Third Party Payments,EGA,03/11/2014,10-16476,1130074.33,Nottinghamshire Healthcare Nhs Trus,,,,,,,,,,,
Nottinghamshire County Council,1111/1001,Children and Young People,CYP,Third Party Payments,EGA,06/11/2014,10-16472,14212.25,Barnardo Services Ltd,,,,,,,,,,,
Nottinghamshire County Council,1111/1001,Children and Young People,CYP,Third Party Payments,EGA,06/11/2014,10-16473,14212.25,Barnardo Services Ltd,,,,,,,,,,,
Nottinghamshire County Council,1111/1001,Children and Young People,CYP,Third Party Payments,EGA,11/11/2014,10-15021,154.52,Fozcabs Newark Taxis,,,,,,,,,,,
Nottinghamshire County Council,1111/1001,Children and Young People,CYP,Third Party Payments,EGA,14/11/2014,10-15181,1389.57,[Redacted],,,,,,,,,,,
Nottinghamshire County Council,1111/1001,Children and Young People,CYP,Third Party Payments,EGA,14/11/2014,10-15182,5509.07,Young Rascals Day Nursery,,,,,,,,,,,
Nottinghamshire County Council,1111/1001,Children and Young People,CYP,Third Party Payments,EGA,14/11/2014,10-15183,16262.82,Wollaton Village Day Nurseries Ltd.,,,,,,,,,,,
Nottinghamshire County Council,1111/1001,Children and Young People,CYP,Third Party Payments,EGA,14/11/2014,10-15184,8938.4,Whitehouse Day Nursery,,,,,,,,,,,
Nottinghamshire County Council,1111/1001,Children and Young People,CYP,Third Party Payments,EGA,14/11/2014,10-15185,8550.36,West Bridgford Out Of School Care L,,,,,,,,,,,
Nottinghamshire County Council,1111/1001,Children and Young People,CYP,Third Party Payments,EGA,14/11/2014,10-15186,5748.27,Wellow House School,,,,,,,,,,,
Nottinghamshire County Council,1111/1001,Children and Young People,CYP,Third Party Payments,EGA,14/11/2014,10-15187,6059.74,Wellin Lane Playgroup,,,,,,,,,,,
Nottinghamshire County Council,1111/1001,Children and Young People,CYP,Third Party Payments,EGA,14/11/2014,10-15188,4568.21,Watnall Pre-School Playgroup,,,,,,,,,,,
Nottinghamshire County Council,1111/1001,Children and Young People,CYP,Third Party Payments,EGA,14/11/2014,10-15189,598.58,[Redacted],,,,,,,,,,,
Nottinghamshire County Council,1111/1001,Children and Young People,CYP,Third Party Payments,EGA,14/11/2014,10-15190,1860.6,Green Nursery School,,,,,,,,,,,
Nottinghamshire County Council,1111/1001,Children and Young People,CYP,Third Party Payments,EGA,14/11/2014,10-15191,5254.35,Granby House Nursery,,,,,,,,,,,
Nottinghamshire County Council,1111/1001,Children and Young People,CYP,Third Party Payments,EGA,14/11/2014,10-15192,6273.9,Smarties Private Day Nursery,,,,,,,,,,,
Nottinghamshire County Council,1111/1001,Children and Young People,CYP,Third Party Payments,EGA,14/11/2014,10-15193,2533.44,Southwell Pre-School,,,,,,,,,,,
Nottinghamshire County Council,1111/1001,Children and Young People,CYP,Third Party Payments,EGA,14/11/2014,10-15194,1828.89,Sparkle Daycare,,,,,,,,,,,
Nottinghamshire County Council,1111/1001,Children and Young People,CYP,Third Party Payments,EGA,14/11/2014,10-15195,2844.84,Speckled Frogs Pre-School,,,,,,,,,,,
Nottinghamshire County Council,1111/1001,Children and Young People,CYP,Third Party Payments,EGA,14/11/2014,10-15196,6405.66,St Mary's Pre-School,,,,,,,,,,,
Nottinghamshire County Council,1111/1001,Children and Young People,CYP,Third Party Payments,EGA,14/11/2014,10-15197,3267.08,Sutton Bonington Playgroup,,,,,,,,,,,
Nottinghamshire County Council,1111/1001,Children and Young People,CYP,Third Party Payments,EGA,14/11/2014,10-15198,13916.14,The Learning Tree Day Nursery 2,,,,,,,,,,,
Nottinghamshire County Council,1111/1001,Children and Young People,CYP,Third Party Payments,EGA,14/11/2014,10-15201,5805.8,Tollerton Playgroup,,,,,,,,,,,
Nottinghamshire County Council,1111/1001,Children and Young People,CYP,Third Party Payments,EGA,14/11/2014,10-15202,1991.22,Tiny Tots Playgroup,,,,,,,,,,,
Nottinghamshire County Council,1111/1001,Children and Young People,CYP,Third Party Payments,EGA,14/11/2014,10-15203,1781.43,[Redacted],,,,,,,,,,,
Nottinghamshire County Council,1111/1001,Children and Young People,CYP,Third Party Payments,EGA,14/11/2014,10-15204,3477.13,Wolds Childcare Ltd,,,,,,,,,,,
Nottinghamshire County Council,1111/1001,Children and Young People,CYP,Third Party Payments,EGA,14/11/2014,10-15205,38716.86,Treetops Nursery (Clipstone),,,,,,,,,,,
Nottinghamshire County Council,1111/1001,Children and Young People,CYP,Third Party Payments,EGA,14/11/2014,10-15206,1710.24,[Redacted],,,,,,,,,,,
Nottinghamshire County Council,1111/1001,Children and Young People,CYP,Third Party Payments,EGA,14/11/2014,10-15207,1068.9,Kylees Childmining Services,,,,,,,,,,,
Nottinghamshire County Council,1111/1001,Children and Young People,CYP,Third Party Payments,EGA,14/11/2014,10-15208,10045.91,The Secret Garden Private Day Nurse,,,,,,,,,,,
Nottinghamshire County Council,1111/1001,Children and Young People,CYP,Third Party Payments,EGA,14/11/2014,10-15210,5585.68,Abacus Pre-School,,,,,,,,,,,
Nottinghamshire County Council,1111/1001,Children and Young People,CYP,Third Party Payments,EGA,14/11/2014,10-15211,23370.39,Arnold House Day Nursery,,,,,,,,,,,
Nottinghamshire County Council,1111/1001,Children and Young People,CYP,Third Party Payments,EGA,14/11/2014,10-15212,6659.24,Appleton Day Nursery,,,,,,,,,,,
Nottinghamshire County Council,1111/1001,Children and Young People,CYP,Third Party Payments,EGA,14/11/2014,10-15213,1068.9,Angels by Day,,,,,,,,,,,
Nottinghamshire County Council,1111/1001,Children and Young People,CYP,Third Party Payments,EGA,14/11/2014,10-15214,6048.71,Alphabet House Day Nursery,,,,,,,,,,,
Nottinghamshire County Council,1111/1001,Children and Young People,CYP,Third Party Payments,EGA,14/11/2014,10-15215,3626.62,Allsorts Playgroup,,,,,,,,,,,
Nottinghamshire County Council,1111/1001,Children and Young People,CYP,Third Party Payments,EGA,14/11/2014,10-15216,18209.1,All Saints C Of E Primary School,,,,,,,,,,,
Nottinghamshire County Council,1111/1001,Children and Young People,CYP,Third Party Payments,EGA,14/11/2014,10-15217,5741.38,All Aboard Day Nursery,,,,,,,,,,,
Nottinghamshire County Council,1111/1001,Children and Young People,CYP,Third Party Payments,EGA,14/11/2014,10-15218,6808.62,Burton Joyce Wraparound Care Group,,,,,,,,,,,
Nottinghamshire County Council,1111/1001,Children and Young People,CYP,Third Party Payments,EGA,14/11/2014,10-15219,9545.33,Bircotes Pre-School,,,,,,,,,,,
Nottinghamshire County Council,1111/1001,Children and Young People,CYP,Third Party Payments,EGA,14/11/2014,10-15220,6365.44,Bingham Day Nursery & Pre School,,,,,,,,,,,
Nottinghamshire County Council,1111/1001,Children and Young People,CYP,Third Party Payments,EGA,14/11/2014,10-15221,950.04,Benner & Bolton Childminders,,,,,,,,,,,
Nottinghamshire County Council,1111/1001,Children and Young People,CYP,Third Party Payments,EGA,14/11/2014,10-15222,1068.9,[Redacted],,,,,,,,,,,
Nottinghamshire County Council,1111/1001,Children and Young People,CYP,Third Party Payments,EGA,14/11/2014,10-15223,3483.48,Bramley Pips Nursery Ltd,,,,,,,,,,,
Nottinghamshire County Council,1111/1001,Children and Young People,CYP,Third Party Payments,EGA,14/11/2014,10-15224,10363.92,Bright Stars Childcare,,,,,,,,,,,
Nottinghamshire County Council,1111/1001,Children and Young People,CYP,Third Party Payments,EGA,14/11/2014,10-15225,9466.41,Brookhill House Day Nursery,,,,,,,,,,,
Nottinghamshire County Council,1111/1001,Children and Young People,CYP,Third Party Payments,EGA,14/11/2014,10-15226,13652.58,Brooklyn Day Nursery,,,,,,,,,,,
Nottinghamshire County Council,1111/1001,Children and Young People,CYP,Third Party Payments,EGA,14/11/2014,10-15227,7846.27,Busy Bees Nursery,,,,,,,,,,,
Nottinghamshire County Council,1111/1001,Children and Young People,CYP,Third Party Payments,EGA,14/11/2014,10-15228,15267.81,Buttercross Pre School,,,,,,,,,,,
Nottinghamshire County Council,1111/1001,Children and Young People,CYP,Third Party Payments,EGA,14/11/2014,10-15229,9874.48,Butterflies Nursery (West Notts Col,,,,,,,,,,,
Nottinghamshire County Council,1111/1001,Children and Young People,CYP,Third Party Payments,EGA,14/11/2014,10-15230,6205.61,Carousel Under 5'S Playgroup,,,,,,,,,,,
Nottinghamshire County Council,1111/1001,Children and Young People,CYP,Third Party Payments,EGA,14/11/2014,10-15231,1262.01,C3 Childcare Childminding Service,,,,,,,,,,,
Nottinghamshire County Council,1111/1001,Children and Young People,CYP,Third Party Payments,EGA,14/11/2014,10-15232,7517.89,Heathlands Out Of School Club,,,,,,,,,,,
Nottinghamshire County Council,1111/1001,Children and Young People,CYP,Third Party Payments,EGA,14/11/2014,10-15233,7207.44,Cherubs Childcare Centre Ladybrook,,,,,,,,,,,
Nottinghamshire County Council,1111/1001,Children and Young People,CYP,Third Party Payments,EGA,14/11/2014,10-15234,3685.28,Cherubs Day Nursery Newark,,,,,,,,,,,
Nottinghamshire County Council,1111/1001,Children and Young People,CYP,Third Party Payments,EGA,14/11/2014,10-15235,2110.45,Chetwynd Barracks Pre-School,,,,,,,,,,,
Nottinghamshire County Council,1111/1001,Children and Young People,CYP,Third Party Payments,EGA,14/11/2014,10-15236,4623.78,Children 1st @ Newark Centre,,,,,,,,,,,
Nottinghamshire County Council,1111/1001,Children and Young People,CYP,Third Party Payments,EGA,14/11/2014,10-15237,10321.74,Breedon House Nurseries Ltd,,,,,,,,,,,
Nottinghamshire County Council,1111/1001,Children and Young People,CYP,Third Party Payments,EGA,14/11/2014,10-15238,7772.97,Childrens Corner Day Nursery,,,,,,,,,,,
Nottinghamshire County Council,1111/1001,Children and Young People,CYP,Third Party Payments,EGA,14/11/2014,10-15239,1897.6,Children's House Nursery School,,,,,,,,,,,
Nottinghamshire County Council,1111/1001,Children and Young People,CYP,Third Party Payments,EGA,14/11/2014,10-15240,17169.37,Church House Day Nursery,,,,,,,,,,,
Nottinghamshire County Council,1111/1001,Children and Young People,CYP,Third Party Payments,EGA,14/11/2014,10-15241,10739.79,Claremont Early Years Ltd,,,,,,,,,,,
Nottinghamshire County Council,1111/1001,Children and Young People,CYP,Third Party Payments,EGA,14/11/2014,10-15242,6413.4,Sir Edmund Hillary Primary School,,,,,,,,,,,
Nottinghamshire County Council,1111/1001,Children and Young People,CYP,Third Party Payments,EGA,14/11/2014,10-15243,1389.57,Appletree House Childminding,,,,,,,,,,,
Nottinghamshire County Council,1111/1001,Children and Young People,CYP,Third Party Payments,EGA,14/11/2014,10-15244,2776.23,Collingham & District Pre-School,,,,,,,,,,,
Nottinghamshire County Council,1111/1001,Children and Young People,CYP,Third Party Payments,EGA,14/11/2014,10-15245,1187.55,Colston Bassett Preparatory School,,,,,,,,,,,
Nottinghamshire County Council,1111/1001,Children and Young People,CYP,Third Party Payments,EGA,14/11/2014,10-15246,3182.63,Colwick Pre School Playgroup,,,,,,,,,,,
Nottinghamshire County Council,1111/1001,Children and Young People,CYP,Third Party Payments,EGA,14/11/2014,10-15247,2157.41,Costock Pre School,,,,,,,,,,,
Nottinghamshire County Council,1111/1001,Children and Young People,CYP,Third Party Payments,EGA,14/11/2014,10-15248,3272.36,Coteswood House School,,,,,,,,,,,
Nottinghamshire County Council,1111/1001,Children and Young People,CYP,Third Party Payments,EGA,14/11/2014,10-15249,1306.41,Mini-me Childcare,,,,,,,,,,,
Nottinghamshire County Council,1111/1001,Children and Young People,CYP,Third Party Payments,EGA,14/11/2014,10-15250,4469.91,Duncroft Day Nursery,,,,,,,,,,,
Nottinghamshire County Council,1111/1001,Children and Young People,CYP,Third Party Payments,EGA,14/11/2014,10-15251,3145.45,East Leake Pre-School Playgroup,,,,,,,,,,,
Nottinghamshire County Council,1111/1001,Children and Young People,CYP,Third Party Payments,EGA,14/11/2014,10-15252,2595.9,Educare Day Nursery,,,,,,,,,,,
Nottinghamshire County Council,1111/1001,Children and Young People,CYP,Third Party Payments,EGA,14/11/2014,10-15253,4373.3,Edwalton Day Nursery,,,,,,,,,,,
Nottinghamshire County Council,1111/1001,Children and Young People,CYP,Third Party Payments,EGA,14/11/2014,10-15254,3968.29,Edwinstowe Pre School Playgroup,,,,,,,,,,,
Nottinghamshire County Council,1111/1001,Children and Young People,CYP,Third Party Payments,EGA,14/11/2014,10-15255,8400.21,Good Foundations Day Nursery,,,,,,,,,,,
Nottinghamshire County Council,1111/1001,Children and Young People,CYP,Third Party Payments,EGA,14/11/2014,10-15256,5245.04,Good Shepherd Pre-School,,,,,,,,,,,
Nottinghamshire County Council,1111/1001,Children and Young People,CYP,Third Party Payments,EGA,14/11/2014,10-15257,514.71,[Redacted],,,,,,,,,,,
Nottinghamshire County Council,1111/1001,Children and Young People,CYP,Third Party Payments,EGA,14/11/2014,10-15258,4685.16,Gotham Pre-School Playgroup,,,,,,,,,,,
Nottinghamshire County Council,1111/1001,Children and Young People,CYP,Third Party Payments,EGA,14/11/2014,10-15259,11266.08,Haywood Road Pre-School Playgroup,,,,,,,,,,,
Nottinghamshire County Council,1111/1001,Children and Young People,CYP,Third Party Payments,EGA,14/11/2014,10-15260,7893.46,Hazel Hurst School,,,,,,,,,,,
Nottinghamshire County Council,1111/1001,Children and Young People,CYP,Third Party Payments,EGA,14/11/2014,10-15261,7215.52,Valmarys Childrens Centre 2,,,,,,,,,,,
Nottinghamshire County Council,1111/1001,Children and Young People,CYP,Third Party Payments,EGA,14/11/2014,10-15262,5311.02,Walesby School Playgroup,,,,,,,,,,,
Nottinghamshire County Council,1111/1001,Children and Young People,CYP,Third Party Payments,EGA,14/11/2014,10-15264,1353.87,[Redacted],,,,,,,,,,,
Nottinghamshire County Council,1111/1001,Children and Young People,CYP,Third Party Payments,EGA,14/11/2014,10-15266,992.55,Lisa's Little Angels,,,,,,,,,,,
Nottinghamshire County Council,1111/1001,Children and Young People,CYP,Third Party Payments,EGA,14/11/2014,10-15268,4967.52,Ashfield Plaza Day Nursery,,,,,,,,,,,
Nottinghamshire County Council,1111/1001,Children and Young People,CYP,Third Party Payments,EGA,14/11/2014,10-15269,19774.97,Shaping Futures Day Nursery,,,,,,,,,,,
Nottinghamshire County Council,1111/1001,Children and Young People,CYP,Third Party Payments,EGA,14/11/2014,10-15270,14947.16,Serendipity's Day Nursery,,,,,,,,,,,
Nottinghamshire County Council,1111/1001,Children and Young People,CYP,Third Party Payments,EGA,14/11/2014,10-15271,10114.86,Netherfield Pre School Ltd,,,,,,,,,,,
Nottinghamshire County Council,1111/1001,Children and Young People,CYP,Third Party Payments,EGA,14/11/2014,10-15272,5700.24,Saville House School,,,,,,,,,,,
Nottinghamshire County Council,1111/1001,Children and Young People,CYP,Third Party Payments,EGA,14/11/2014,10-15273,5805.8,Salterford House School,,,,,,,,,,,
Nottinghamshire County Council,1111/1001,Children and Young People,CYP,Third Party Payments,EGA,14/11/2014,10-15274,6279.21,Rocking Horse Nursery Butlers Hill,,,,,,,,,,,
Nottinghamshire County Council,1111/1001,Children and Young People,CYP,Third Party Payments,EGA,14/11/2014,10-15276,6769.36,Ravenshead Pre-School Playgroup,,,,,,,,,,,
Nottinghamshire County Council,1111/1001,Children and Young People,CYP,Third Party Payments,EGA,14/11/2014,10-15277,16043.87,Rainbow Day Nursery,,,,,,,,,,,
Nottinghamshire County Council,1111/1001,Children and Young People,CYP,Third Party Payments,EGA,14/11/2014,10-15278,3743.57,Radcliffe On Trent Pre School Playg,,,,,,,,,,,
Nottinghamshire County Council,1111/1001,Children and Young People,CYP,Third Party Payments,EGA,14/11/2014,10-15279,10465.38,Pump Farm Day Nursery,,,,,,,,,,,
Nottinghamshire County Council,1111/1001,Children and Young People,CYP,Third Party Payments,EGA,14/11/2014,10-15280,8541.39,Puddleducks Pre-School,,,,,,,,,,,
Nottinghamshire County Council,1111/1001,Children and Young People,CYP,Third Party Payments,EGA,14/11/2014,10-15281,7401.87,Pre-School 345,,,,,,,,,,,
Nottinghamshire County Council,1111/1001,Children and Young People,CYP,Third Party Payments,EGA,14/11/2014,10-15282,7638.54,Prebend Pre-School Playgroup,,,,,,,,,,,
Nottinghamshire County Council,1111/1001,Children and Young People,CYP,Third Party Payments,EGA,14/11/2014,10-15283,9461.13,Little Millers Day Nursery,,,,,,,,,,,
Nottinghamshire County Council,1111/1001,Children and Young People,CYP,Third Party Payments,EGA,14/11/2014,10-15284,3606.22,Little Friends Day Nursery,,,,,,,,,,,
Nottinghamshire County Council,1111/1001,Children and Young People,CYP,Third Party Payments,EGA,14/11/2014,10-15285,1650.21,Lilliput Day Nursery (The Canch),,,,,,,,,,,
Nottinghamshire County Council,1111/1001,Children and Young People,CYP,Third Party Payments,EGA,14/11/2014,10-15286,800.7,Leos Childrens Nurseries Ltd,,,,,,,,,,,
Nottinghamshire County Council,1111/1001,Children and Young People,CYP,Third Party Payments,EGA,14/11/2014,10-15287,4916.59,Kirkby Cross Playgroup,,,,,,,,,,,
Nottinghamshire County Council,1111/1001,Children and Young People,CYP,Third Party Payments,EGA,14/11/2014,10-15288,505.95,[Redacted],,,,,,,,,,,
Nottinghamshire County Council,1111/1001,Children and Young People,CYP,Third Party Payments,EGA,14/11/2014,10-15289,1112.37,[Redacted],,,,,,,,,,,
Nottinghamshire County Council,1111/1001,Children and Young People,CYP,Third Party Payments,EGA,14/11/2014,10-15290,8082.38,Kimberley Pre-School Playgroup,,,,,,,,,,,
Nottinghamshire County Council,1111/1001,Children and Young People,CYP,Third Party Payments,EGA,14/11/2014,10-15291,16347.98,Killisick Pre-School,,,,,,,,,,,
Nottinghamshire County Council,1111/1001,Children and Young People,CYP,Third Party Payments,EGA,14/11/2014,10-15292,11456.76,SPBC Day Care Ltd,,,,,,,,,,,
Nottinghamshire County Council,1111/1001,Children and Young People,CYP,Third Party Payments,EGA,14/11/2014,10-15293,4371.42,Hickory House Day Nursery,,,,,,,,,,,
Nottinghamshire County Council,1111/1001,Children and Young People,CYP,Third Party Payments,EGA,14/11/2014,10-15294,1320.75,Hickling Pre-School,,,,,,,,,,,
Nottinghamshire County Council,1111/1001,Children and Young People,CYP,Third Party Payments,EGA,14/11/2014,10-15295,9395.47,Quinton Day Nurseries T/A Honey Bee,,,,,,,,,,,
Nottinghamshire County Council,1111/1001,Children and Young People,CYP,Third Party Payments,EGA,14/11/2014,10-15296,4235.7,Honey Pot Day Private Day Nursery L,,,,,,,,,,,
Nottinghamshire County Council,1111/1001,Children and Young People,CYP,Third Party Payments,EGA,14/11/2014,10-15297,12940.56,Hucknall Day Nursery,,,,,,,,,,,
Nottinghamshire County Council,1111/1001,Children and Young People,CYP,Third Party Payments,EGA,14/11/2014,10-15298,12145.36,Hucknall Pre-School Playgroup,,,,,,,,,,,
Nottinghamshire County Council,1111/1001,Children and Young People,CYP,Third Party Payments,EGA,14/11/2014,10-15299,1555.82,[Redacted],,,,,,,,,,,
Nottinghamshire County Council,1111/1001,Children and Young People,CYP,Third Party Payments,EGA,14/11/2014,10-15300,2173.29,Inham Park Pre School Playgroup,,,,,,,,,,,
Nottinghamshire County Council,1111/1001,Children and Young People,CYP,Third Party Payments,EGA,14/11/2014,10-15301,5558.28,Jelly Totz Day Nursery,,,,,,,,,,,
Nottinghamshire County Council,1111/1001,Children and Young People,CYP,Third Party Payments,EGA,14/11/2014,10-15302,570.08,[Redacted],,,,,,,,,,,
Nottinghamshire County Council,1111/1001,Children and Young People,CYP,Third Party Payments,EGA,14/11/2014,10-15303,8174.4,Kidzgrove,,,,,,,,,,,
Nottinghamshire County Council,1111/1001,Children and Young People,CYP,Third Party Payments,EGA,14/11/2014,10-15305,791.7,Lily & Company Ltd,,,,,,,,,,,
Nottinghamshire County Council,1111/1001,Children and Young People,CYP,Third Party Payments,EGA,14/11/2014,10-15306,15145.41,Lowdham & Epperstone Pre-School,,,,,,,,,,,
Nottinghamshire County Council,1111/1001,Children and Young People,CYP,Third Party Payments,EGA,14/11/2014,10-15307,1389.57,Monette Debra Newport Childminding,,,,,,,,,,,
Nottinghamshire County Council,1111/1001,Children and Young People,CYP,Third Party Payments,EGA,14/11/2014,10-15308,1821.12,[Redacted],,,,,,,,,,,
Nottinghamshire County Council,1111/1001,Children and Young People,CYP,Third Party Payments,EGA,14/11/2014,10-15309,3325.14,Orchard School Nursery,,,,,,,,,,,
Nottinghamshire County Council,1111/1001,Children and Young People,CYP,Third Party Payments,EGA,14/11/2014,10-15310,14241.5,Papermoon Day Nursery,,,,,,,,,,,
Nottinghamshire County Council,1111/1001,Children and Young People,CYP,Third Party Payments,EGA,14/11/2014,10-15311,3277.64,Pea Pod Day Nursery Ltd,,,,,,,,,,,
Nottinghamshire County Council,1111/1001,Children and Young People,CYP,Third Party Payments,EGA,14/11/2014,10-15355,3155.25,Mulberry Bush Day Nursery,,,,,,,,,,,
Nottinghamshire County Council,1111/1001,Children and Young People,CYP,Third Party Payments,EGA,14/11/2014,10-15356,2824.95,Keyworth Primary School,,,,,,,,,,,
Nottinghamshire County Council,1111/1001,Children and Young People,CYP,Third Party Payments,EGA,14/11/2014,10-15486,2176.13,Trowell Pre School,,,,,,,,,,,
Nottinghamshire County Council,1111/1001,Children and Young People,CYP,Third Party Payments,EGA,14/11/2014,10-15487,1457.59,Thrumpton Kids Clubs,,,,,,,,,,,
Nottinghamshire County Council,1111/1001,Children and Young People,CYP,Third Party Payments,EGA,14/11/2014,10-15488,2102.03,The West Bridgford Day Nursery,,,,,,,,,,,
Nottinghamshire County Council,1111/1001,Children and Young People,CYP,Third Party Payments,EGA,14/11/2014,10-15489,16310.76,The Orange Tree Day Nursery,,,,,,,,,,,
Nottinghamshire County Council,1111/1001,Children and Young People,CYP,Third Party Payments,EGA,14/11/2014,10-15490,10114.58,Sutton Centre Under 5'S Playgroup,,,,,,,,,,,
Nottinghamshire County Council,1111/1001,Children and Young People,CYP,Third Party Payments,EGA,14/11/2014,10-15491,514.71,[Redacted],,,,,,,,,,,
Nottinghamshire County Council,1111/1001,Children and Young People,CYP,Third Party Payments,EGA,14/11/2014,10-15492,11496.45,Shaping Futures Day Nursery,,,,,,,,,,,
Nottinghamshire County Council,1111/1001,Children and Young People,CYP,Third Party Payments,EGA,14/11/2014,10-15493,5862.57,Scotts Wood Private Day Nursery,,,,,,,,,,,
Nottinghamshire County Council,1111/1001,Children and Young People,CYP,Third Party Payments,EGA,14/11/2014,10-15494,11951.73,Safe Haven Day Nursery,,,,,,,,,,,
Nottinghamshire County Council,1111/1001,Children and Young People,CYP,Third Party Payments,EGA,14/11/2014,10-15495,4109.28,Phoenix Farm Pre School,,,,,,,,,,,
Nottinghamshire County Council,1111/1001,Children and Young People,CYP,Third Party Payments,EGA,14/11/2014,10-15496,3682.97,Old Cooperative Day Nursery,,,,,,,,,,,
Nottinghamshire County Council,1111/1001,Children and Young People,CYP,Third Party Payments,EGA,14/11/2014,10-15497,4807.02,Noahs Ark Playgroup,,,,,,,,,,,
Nottinghamshire County Council,1111/1001,Children and Young People,CYP,Third Party Payments,EGA,14/11/2014,10-15498,6309.91,Millfield Nursery School,,,,,,,,,,,
Nottinghamshire County Council,1111/1001,Children and Young People,CYP,Third Party Payments,EGA,14/11/2014,10-15499,7171.18,Little Acorns Shireoaks,,,,,,,,,,,
Nottinghamshire County Council,1111/1001,Children and Young People,CYP,Third Party Payments,EGA,14/11/2014,10-15500,2941.26,Busy Bees Pre-School (Sutton),,,,,,,,,,,
Nottinghamshire County Council,1111/1001,Children and Young People,CYP,Third Party Payments,EGA,14/11/2014,10-15501,4479.1,Pretty Windows Ltd,,,,,,,,,,,
Nottinghamshire County Council,1111/1001,Children and Young People,CYP,Third Party Payments,EGA,14/11/2014,10-15502,2729.82,Beeston Nursery,,,,,,,,,,,
Nottinghamshire County Council,1111/1001,Children and Young People,CYP,Third Party Payments,EGA,14/11/2014,10-15503,7207.93,Beacon Hill Day Nursery,,,,,,,,,,,
Nottinghamshire County Council,1111/1001,Children and Young People,CYP,Third Party Payments,EGA,14/11/2014,10-15504,10612.28,Arnold St Mary's Pre-School,,,,,,,,,,,
Nottinghamshire County Council,1111/1001,Children and Young People,CYP,Third Party Payments,EGA,14/11/2014,10-15505,3784.28,Farndon St Peters Early Years,,,,,,,,,,,
Nottinghamshire County Council,1111/1001,Children and Young People,CYP,Third Party Payments,EGA,14/11/2014,10-15506,46796.45,Cherubs Day Nursery,,,,,,,,,,,
Nottinghamshire County Council,1111/1001,Children and Young People,CYP,Third Party Payments,EGA,14/11/2014,10-15507,31184.28,Cherubs Ryton Park,,,,,,,,,,,
Nottinghamshire County Council,1111/1001,Children and Young People,CYP,Third Party Payments,EGA,14/11/2014,10-15508,23951.52,Cherubs Childcare Centre (Mansfield,,,,,,,,,,,
Nottinghamshire County Council,1111/1001,Children and Young People,CYP,Third Party Payments,EGA,14/11/2014,10-15509,5292.95,Carlton Hill Playgroup,,,,,,,,,,,
Nottinghamshire County Council,1111/1001,Children and Young People,CYP,Third Party Payments,EGA,14/11/2014,10-15510,1068.9,Sues Childminding Services,,,,,,,,,,,
Nottinghamshire County Council,1111/1001,Children and Young People,CYP,Third Party Payments,EGA,17/11/2014,10-15512,1464.75,[Redacted],,,,,,,,,,,
Nottinghamshire County Council,1111/1001,Children and Young People,CYP,Third Party Payments,EGA,17/11/2014,10-15517,630,JPAC Ltd,,,,,,,,,,,
Nottinghamshire County Council,1111/1001,Children and Young People,CYP,Third Party Payments,EGA,18/11/2014,10-15699,7259.72,Bright Sparks Day Nursery,,,,,,,,,,,
Nottinghamshire County Council,1111/1001,Children and Young People,CYP,Third Party Payments,EGA,18/11/2014,10-15700,9952.83,Busy Bees (Daybrook),,,,,,,,,,,
Nottinghamshire County Council,1111/1001,Children and Young People,CYP,Third Party Payments,EGA,18/11/2014,10-15701,5301.73,Daisies Day Nursery,,,,,,,,,,,
Nottinghamshire County Council,1111/1001,Children and Young People,CYP,Third Party Payments,EGA,18/11/2014,10-15702,2920.2,Daisies Day Nursery,,,,,,,,,,,
Nottinghamshire County Council,1111/1001,Children and Young People,CYP,Third Party Payments,EGA,18/11/2014,10-15703,12928.57,East Leake Day Nursery & Pre-School,,,,,,,,,,,
Nottinghamshire County Council,1111/1001,Children and Young People,CYP,Third Party Payments,EGA,18/11/2014,10-15704,5385.1,Lambley Day Nursery Ltd,,,,,,,,,,,
Nottinghamshire County Council,1111/1001,Children and Young People,CYP,Third Party Payments,EGA,18/11/2014,10-15705,16188.91,Papermoon Day Nursery,,,,,,,,,,,
Nottinghamshire County Council,1111/1001,Children and Young People,CYP,Third Party Payments,EGA,18/11/2014,10-15706,32474.82,The Rocking Horse Child Care Centre,,,,,,,,,,,
Nottinghamshire County Council,1111/1001,Children and Young People,CYP,Third Party Payments,EGA,18/11/2014,10-15707,7518.9,Sconce Hills Pre-School Playgroup,,,,,,,,,,,
Nottinghamshire County Council,1111/1001,Children and Young People,CYP,Third Party Payments,EGA,18/11/2014,10-15708,7583.87,Serendipity's Day Nursery,,,,,,,,,,,
Nottinghamshire County Council,1111/1001,Children and Young People,CYP,Third Party Payments,EGA,18/11/2014,10-15709,8488.2,St Johns Playgroup,,,,,,,,,,,
Nottinghamshire County Council,1111/1001,Children and Young People,CYP,Third Party Payments,EGA,18/11/2014,10-15710,12069,Westbourne House Nursery School,,,,,,,,,,,
Nottinghamshire County Council,1111/1001,Children and Young People,CYP,Third Party Payments,EGA,19/11/2014,10-15893,3340,[Redacted],,,,,,,,,,,
Nottinghamshire County Council,1111/1001,Children and Young People,CYP,Third Party Payments,EGA,20/11/2014,10-15909,7435.21,Discovery Day Nursery,,,,,,,,,,,
Nottinghamshire County Council,1111/1001,Children and Young People,CYP,Third Party Payments,EGA,20/11/2014,10-15910,14100.91,Alphabet House Nursery,,,,,,,,,,,
Nottinghamshire County Council,1111/1001,Children and Young People,CYP,Third Party Payments,EGA,20/11/2014,10-15911,12358.29,Fun Farm Day Nursery,,,,,,,,,,,
Nottinghamshire County Council,1111/1001,Children and Young People,CYP,Third Party Payments,EGA,20/11/2014,10-15912,9201.36,Alphabet House Day Nursery,,,,,,,,,,,
Nottinghamshire County Council,1111/1001,Children and Young People,CYP,Third Party Payments,EGA,20/11/2014,10-15913,10076.08,Alphabet House Day Nursery WB,,,,,,,,,,,
Nottinghamshire County Council,1111/1001,Children and Young People,CYP,Third Party Payments,EGA,20/11/2014,10-15914,16498.05,Alphabet House Day Nursery Worksop,,,,,,,,,,,
Nottinghamshire County Council,1111/1001,Children and Young People,CYP,Third Party Payments,EGA,20/11/2014,10-15915,13832.13,Applegarth Day Nurseries Ltd,,,,,,,,,,,
Nottinghamshire County Council,1111/1001,Children and Young People,CYP,Third Party Payments,EGA,20/11/2014,10-15916,6213.26,Attenborough Church Pre-School,,,,,,,,,,,
Nottinghamshire County Council,1111/1001,Children and Young People,CYP,Third Party Payments,EGA,20/11/2014,10-15917,3386.29,Awsworth Schoolhouse Day Nursery,,,,,,,,,,,
Nottinghamshire County Council,1111/1001,Children and Young People,CYP,Third Party Payments,EGA,20/11/2014,10-15918,9137.57,Balderton Pre-School,,,,,,,,,,,
Nottinghamshire County Council,1111/1001,Children and Young People,CYP,Third Party Payments,EGA,20/11/2014,10-15919,577.92,[Redacted],,,,,,,,,,,
Nottinghamshire County Council,1111/1001,Children and Young People,CYP,Third Party Payments,EGA,20/11/2014,10-15920,10076.81,Bizzy Kidz,,,,,,,,,,,
Nottinghamshire County Council,1111/1001,Children and Young People,CYP,Third Party Payments,EGA,20/11/2014,10-15921,791.7,[Redacted],,,,,,,,,,,
Nottinghamshire County Council,1111/1001,Children and Young People,CYP,Third Party Payments,EGA,20/11/2014,10-15922,1765.39,Blyth Pre-School Playgroup,,,,,,,,,,,
Nottinghamshire County Council,1111/1001,Children and Young People,CYP,Third Party Payments,EGA,20/11/2014,10-15923,6635.54,Crossdale Busy Bees Pre-School,,,,,,,,,,,
Nottinghamshire County Council,1111/1001,Children and Young People,CYP,Third Party Payments,EGA,20/11/2014,10-15924,3355.01,Busy Bees Pre-School,,,,,,,,,,,
Nottinghamshire County Council,1111/1001,Children and Young People,CYP,Third Party Payments,EGA,20/11/2014,10-15925,14878.54,Carlton & Gedling Day Nursery,,,,,,,,,,,
Nottinghamshire County Council,1111/1001,Children and Young People,CYP,Third Party Payments,EGA,20/11/2014,10-15926,28057.5,Cherubs Childrens Centre Pleasley,,,,,,,,,,,
Nottinghamshire County Council,1111/1001,Children and Young People,CYP,Third Party Payments,EGA,20/11/2014,10-15927,5510.65,Christchurch Hall Pre-School Playgr,,,,,,,,,,,
Nottinghamshire County Council,1111/1001,Children and Young People,CYP,Third Party Payments,EGA,20/11/2014,10-15928,8206.55,Early Learners Centre Day Nursery,,,,,,,,,,,
Nottinghamshire County Council,1111/1001,Children and Young People,CYP,Third Party Payments,EGA,20/11/2014,10-15929,1901.21,Elston Pre-school Playgroup Newark,,,,,,,,,,,
Nottinghamshire County Council,1111/1001,Children and Young People,CYP,Third Party Payments,EGA,20/11/2014,10-15930,4338.67,Farnsfield Pre-School,,,,,,,,,,,
Nottinghamshire County Council,1111/1001,Children and Young People,CYP,Third Party Payments,EGA,20/11/2014,10-15931,5660.66,Fledglings Playgroup,,,,,,,,,,,
Nottinghamshire County Council,1111/1001,Children and Young People,CYP,Third Party Payments,EGA,20/11/2014,10-15932,5230.74,Galaxies Day Nursery,,,,,,,,,,,
Nottinghamshire County Council,1111/1001,Children and Young People,CYP,Third Party Payments,EGA,20/11/2014,10-15933,6687.21,Highfields School & Nursery,,,,,,,,,,,
Nottinghamshire County Council,1111/1001,Children and Young People,CYP,Third Party Payments,EGA,20/11/2014,10-15934,6844.58,Lady Bay Pre School Playgroup,,,,,,,,,,,
Nottinghamshire County Council,1111/1001,Children and Young People,CYP,Third Party Payments,EGA,20/11/2014,10-15935,5378.36,Leahurst Road Pre-School,,,,,,,,,,,
Nottinghamshire County Council,1111/1001,Children and Young People,CYP,Third Party Payments,EGA,20/11/2014,10-15936,14955.67,Learning Ladder Childcare Ltd,,,,,,,,,,,
Nottinghamshire County Council,1111/1001,Children and Young People,CYP,Third Party Payments,EGA,20/11/2014,10-15937,18824.4,North Leverton Pre-School Playgroup,,,,,,,,,,,
Nottinghamshire County Council,1111/1001,Children and Young People,CYP,Third Party Payments,EGA,20/11/2014,10-15938,8216.51,Little Acorns Pre-School,,,,,,,,,,,
Nottinghamshire County Council,1111/1001,Children and Young People,CYP,Third Party Payments,EGA,20/11/2014,10-15939,15799.91,Little Bears Day Nursery,,,,,,,,,,,
Nottinghamshire County Council,1111/1001,Children and Young People,CYP,Third Party Payments,EGA,20/11/2014,10-15940,1451.45,Little Rascals Pre-School,,,,,,,,,,,
Nottinghamshire County Council,1111/1001,Children and Young People,CYP,Third Party Payments,EGA,20/11/2014,10-15941,7331.14,Lowater Street Playgroup,,,,,,,,,,,
Nottinghamshire County Council,1111/1001,Children and Young People,CYP,Third Party Payments,EGA,20/11/2014,10-15942,5165.96,Misson Pre-School,,,,,,,,,,,
Nottinghamshire County Council,1111/1001,Children and Young People,CYP,Third Party Payments,EGA,20/11/2014,10-15943,14204.4,Oceans Day Nursery,,,,,,,,,,,
Nottinghamshire County Council,1111/1001,Children and Young People,CYP,Third Party Payments,EGA,20/11/2014,10-15944,24064.81,The Orchard Day Nursery,,,,,,,,,,,
Nottinghamshire County Council,1111/1001,Children and Young People,CYP,Third Party Payments,EGA,20/11/2014,10-15945,24866.94,Papermoon Day Nursery,,,,,,,,,,,
Nottinghamshire County Council,1111/1001,Children and Young People,CYP,Third Party Payments,EGA,20/11/2014,10-15946,3186.75,Happy Times,,,,,,,,,,,
Nottinghamshire County Council,1111/1001,Children and Young People,CYP,Third Party Payments,EGA,20/11/2014,10-15947,6387.19,Railway Children Playgroup,,,,,,,,,,,
Nottinghamshire County Council,1111/1001,Children and Young People,CYP,Third Party Payments,EGA,20/11/2014,10-15948,6629.87,Staunton Montessori Nursery School,,,,,,,,,,,
Nottinghamshire County Council,1111/1001,Children and Young People,CYP,Third Party Payments,EGA,20/11/2014,10-15949,5959.92,Stepping Stones II,,,,,,,,,,,
Nottinghamshire County Council,1111/1001,Children and Young People,CYP,Third Party Payments,EGA,20/11/2014,10-15950,2544.91,Tiny Talkers Day Nursery,,,,,,,,,,,
Nottinghamshire County Council,1111/1001,Children and Young People,CYP,Third Party Payments,EGA,20/11/2014,10-15951,28007.58,Tiny World Mansfield,,,,,,,,,,,
Nottinghamshire County Council,1111/1001,Children and Young People,CYP,Third Party Payments,EGA,20/11/2014,10-15952,6630.45,Toddlers University (Bee),,,,,,,,,,,
Nottinghamshire County Council,1111/1001,Children and Young People,CYP,Third Party Payments,EGA,20/11/2014,10-15953,5869.98,Treetops Nursery,,,,,,,,,,,
Nottinghamshire County Council,1111/1001,Children and Young People,CYP,Third Party Payments,EGA,20/11/2014,10-15954,6009.57,West Street Pre-School,,,,,,,,,,,
Nottinghamshire County Council,1111/1001,Children and Young People,CYP,Third Party Payments,EGA,20/11/2014,10-15955,12870.33,Westdale Pre-School,,,,,,,,,,,
Nottinghamshire County Council,1111/1001,Children and Young People,CYP,Third Party Payments,EGA,20/11/2014,10-15956,2138.5,Willow Brook Pre-School,,,,,,,,,,,
Nottinghamshire County Council,1111/1001,Children and Young People,CYP,Third Party Payments,EGA,20/11/2014,10-15958,10309.37,Willow Pre-School Playgroup,,,,,,,,,,,
Nottinghamshire County Council,1111/1001,Children and Young People,CYP,Third Party Payments,EGA,20/11/2014,10-15959,1718.05,Windmills Pre-School Playgroup,,,,,,,,,,,
Nottinghamshire County Council,1111/1001,Children and Young People,CYP,Third Party Payments,EGA,20/11/2014,10-15960,6397.67,Wishing Well Day Nursery,,,,,,,,,,,
Nottinghamshire County Council,1111/1001,Children and Young People,CYP,Third Party Payments,EGA,20/11/2014,10-15961,8032,Wollaton Village Day Nurseries,,,,,,,,,,,
Nottinghamshire County Council,1111/1001,Children and Young People,CYP,Third Party Payments,EGA,20/11/2014,10-15962,8341.88,Worksop College,,,,,,,,,,,
Nottinghamshire County Council,1111/1001,Children and Young People,CYP,Third Party Payments,EGA,20/11/2014,10-15963,9985.14,Zoe's Childcare Ltd,,,,,,,,,,,
Nottinghamshire County Council,1111/1001,Children and Young People,CYP,Third Party Payments,EGA,20/11/2014,10-15964,10766.23,Treetops Nurseries Ltd,,,,,,,,,,,
Nottinghamshire County Council,1111/1001,Children and Young People,CYP,Third Party Payments,EGA,20/11/2014,10-15966,17787.28,Leen Mills Pre School Playgroup,,,,,,,,,,,
Nottinghamshire County Council,1111/1001,Children and Young People,CYP,Third Party Payments,EGA,20/11/2014,10-15967,11351.71,Weaverthorpe Pre-School Playgroup,,,,,,,,,,,
Nottinghamshire County Council,1111/1001,Children and Young People,CYP,Third Party Payments,EGA,20/11/2014,10-15968,12824.42,Village Day Nursery,,,,,,,,,,,
Nottinghamshire County Council,1111/1001,Children and Young People,CYP,Third Party Payments,EGA,20/11/2014,10-15976,630,Brooklyn Day Nursery,,,,,,,,,,,
Nottinghamshire County Council,1111/1001,Children and Young People,CYP,Third Party Payments,EGA,20/11/2014,10-15977,735,JPAC Ltd,,,,,,,,,,,
Nottinghamshire County Council,1111/1001,Children and Young People,CYP,Third Party Payments,EGA,20/11/2014,10-15978,560,Highfields School & Nursery,,,,,,,,,,,
Nottinghamshire County Council,1111/1001,Children and Young People,CYP,Third Party Payments,EGA,20/11/2014,10-15979,3187.67,Hermitage Pre-School,,,,,,,,,,,
Nottinghamshire County Council,1111/1001,Children and Young People,CYP,Third Party Payments,EGA,21/11/2014,10-16071,10138.79,Woodthorpe Day Nursery Ltd,,,,,,,,,,,
Nottinghamshire County Council,1111/1001,Children and Young People,CYP,Third Party Payments,EGA,21/11/2014,10-16072,16599.51,The Learning Tree Nursery,,,,,,,,,,,
Nottinghamshire County Council,1111/1001,Children and Young People,CYP,Third Party Payments,EGA,21/11/2014,10-16073,5020.32,Serendipity's Day Nursery,,,,,,,,,,,
Nottinghamshire County Council,1111/1001,Children and Young People,CYP,Third Party Payments,EGA,21/11/2014,10-16074,2701.9,Rainbows Day Nursery,,,,,,,,,,,
Nottinghamshire County Council,1111/1001,Children and Young People,CYP,Third Party Payments,EGA,21/11/2014,10-16075,7485.66,Scottswood Pdn Ltd,,,,,,,,,,,
Nottinghamshire County Council,1111/1001,Children and Young People,CYP,Third Party Payments,EGA,21/11/2014,10-16076,1196.6,Rushcliffe Pre-School Cic,,,,,,,,,,,
Nottinghamshire County Council,1111/1001,Children and Young People,CYP,Third Party Payments,EGA,21/11/2014,10-16077,18491.85,Longdale Nursery School,,,,,,,,,,,
Nottinghamshire County Council,1111/1001,Children and Young People,CYP,Third Party Payments,EGA,21/11/2014,10-16078,1179.35,St Johns College Nottingham,,,,,,,,,,,
Nottinghamshire County Council,1111/1001,Children and Young People,CYP,Third Party Payments,EGA,21/11/2014,10-16079,8504.31,Little Oaks Nursery,,,,,,,,,,,
Nottinghamshire County Council,1111/1001,Children and Young People,CYP,Third Party Payments,EGA,21/11/2014,10-16080,11525.95,Little Nippers Pre-School,,,,,,,,,,,
Nottinghamshire County Council,1111/1001,Children and Young People,CYP,Third Party Payments,EGA,21/11/2014,10-16081,3048.04,Horsendale Playgroup,,,,,,,,,,,
Nottinghamshire County Council,1111/1001,Children and Young People,CYP,Third Party Payments,EGA,21/11/2014,10-16082,10472.04,Homestead Day Nursery Ltd,,,,,,,,,,,
Nottinghamshire County Council,1111/1001,Children and Young People,CYP,Third Party Payments,EGA,21/11/2014,10-16083,22966.96,Fernwood Day Nursery Ltd,,,,,,,,,,,
Nottinghamshire County Council,1111/1001,Children and Young People,CYP,Third Party Payments,EGA,21/11/2014,10-16084,9680.68,Children 1st @ Breedon House,,,,,,,,,,,
Nottinghamshire County Council,1111/1001,Children and Young People,CYP,Third Party Payments,EGA,21/11/2014,10-16085,617.57,Cheeky Monkeys Day Nursery,,,,,,,,,,,
Nottinghamshire County Council,1111/1001,Children and Young People,CYP,Third Party Payments,EGA,21/11/2014,10-16086,5296.99,Cedar House Day Nursery,,,,,,,,,,,
Nottinghamshire County Council,1111/1001,Children and Young People,CYP,Third Party Payments,EGA,21/11/2014,10-16087,791.7,Burnside Pre-School Nursery,,,,,,,,,,,
Nottinghamshire County Council,1111/1001,Children and Young People,CYP,Third Party Payments,EGA,24/11/2014,10-16189,641.34,[Redacted],,,,,,,,,,,
Nottinghamshire County Council,1111/1001,Children and Young People,CYP,Third Party Payments,EGA,24/11/2014,10-16190,1068.9,Westfield Pre-School Playgroup,,,,,,,,,,,
Nottinghamshire County Council,1111/1001,Children and Young People,CYP,Third Party Payments,EGA,24/11/2014,10-16191,7956.9,The Enchanted Garden Day Nursery,,,,,,,,,,,
Nottinghamshire County Council,1111/1001,Children and Young People,CYP,Third Party Payments,EGA,24/11/2014,10-16192,23627.58,Stapleford Day Nursery,,,,,,,,,,,
Nottinghamshire County Council,1111/1001,Children and Young People,CYP,Third Party Payments,EGA,24/11/2014,10-16193,2240.72,St Giles Pre-school,,,,,,,,,,,
Nottinghamshire County Council,1111/1001,Children and Young People,CYP,Third Party Payments,EGA,24/11/2014,10-16194,836.4,Shaping Futures Day Nursery,,,,,,,,,,,
Nottinghamshire County Council,1111/1001,Children and Young People,CYP,Third Party Payments,EGA,24/11/2014,10-16195,6773.88,Serendipity's Day Nursery,,,,,,,,,,,
Nottinghamshire County Council,1111/1001,Children and Young People,CYP,Third Party Payments,EGA,24/11/2014,10-16196,4924.37,Papplewick Pre-School Playgroup,,,,,,,,,,,
Nottinghamshire County Council,1111/1001,Children and Young People,CYP,Third Party Payments,EGA,24/11/2014,10-16197,10944.71,Little Kites Playgroup,,,,,,,,,,,
Nottinghamshire County Council,1111/1001,Children and Young People,CYP,Third Party Payments,EGA,24/11/2014,10-16198,1068.9,Langwith Junction Childcare,,,,,,,,,,,
Nottinghamshire County Council,1111/1001,Children and Young People,CYP,Third Party Payments,EGA,24/11/2014,10-16199,3641.82,Kneesall Pre School & Playgroup,,,,,,,,,,,
Nottinghamshire County Council,1111/1001,Children and Young People,CYP,Third Party Payments,EGA,24/11/2014,10-16200,16774.94,Hollies Day Nurseries Limited,,,,,,,,,,,
Nottinghamshire County Council,1111/1001,Children and Young People,CYP,Third Party Payments,EGA,24/11/2014,10-16201,8615.82,Bullpit Road Nursery,,,,,,,,,,,
Nottinghamshire County Council,1111/1001,Children and Young People,CYP,Third Party Payments,EGA,24/11/2014,10-16202,13190.52,Arnold View Pre-School,,,,,,,,,,,
Nottinghamshire County Council,1111/1001,Children and Young People,CYP,Third Party Payments,EGA,25/11/2014,10-16571,14536.59,Foster Care Associates Limited,,,,,,,,,,,
Nottinghamshire County Council,1111/1001,Children and Young People,CYP,Third Party Payments,EGA,25/11/2014,10-16574,525000,"Futures Advice, Skills & Employment",,,,,,,,,,,
Nottinghamshire County Council,1111/1001,Children and Young People,CYP,Third Party Payments,EGA,25/11/2014,10-16598,68526.83,Teen Support Services Ltd,,,,,,,,,,,
Nottinghamshire County Council,1111/1001,Children and Young People,CYP,Third Party Payments,EGA,25/11/2014,10-16599,3214.2,Teen Support Services Ltd,,,,,,,,,,,
Nottinghamshire County Council,1111/1001,Children and Young People,CYP,Third Party Payments,EGA,25/11/2014,10-16605,8900,Piers (UK) Ltd,,,,,,,,,,,
Nottinghamshire County Council,1111/1001,Children and Young People,CYP,Third Party Payments,EGA,26/11/2014,10-16374,3998.4,Young Rascals Day Nursery,,,,,,,,,,,
Nottinghamshire County Council,1111/1001,Children and Young People,CYP,Third Party Payments,EGA,26/11/2014,10-16375,1860.6,Wollaton Village Day Nurseries Ltd.,,,,,,,,,,,
Nottinghamshire County Council,1111/1001,Children and Young People,CYP,Third Party Payments,EGA,26/11/2014,10-16376,15772.8,Rainbows Day Nursery,,,,,,,,,,,
Nottinghamshire County Council,1111/1001,Children and Young People,CYP,Third Party Payments,EGA,26/11/2014,10-16377,2137.8,Old Cooperative Day Nursery,,,,,,,,,,,
Nottinghamshire County Council,1111/1001,Children and Young People,CYP,Third Party Payments,EGA,26/11/2014,10-16378,1068.9,Millfield Nursery School,,,,,,,,,,,
Nottinghamshire County Council,1111/1001,Children and Young People,CYP,Third Party Payments,EGA,26/11/2014,10-16379,1541.1,Lilliput Day Nursery (The Canch),,,,,,,,,,,
Nottinghamshire County Council,1111/1001,Children and Young People,CYP,Third Party Payments,EGA,26/11/2014,10-16380,9722.27,Leo's Childrens Nurseries Ltd,,,,,,,,,,,
Nottinghamshire County Council,1111/1001,Children and Young People,CYP,Third Party Payments,EGA,26/11/2014,10-16381,791.7,Leen Mills Pre School Playgroup,,,,,,,,,,,
Nottinghamshire County Council,1111/1001,Children and Young People,CYP,Third Party Payments,EGA,26/11/2014,10-16382,791.7,Kirkby Cross Playgroup,,,,,,,,,,,
Nottinghamshire County Council,1111/1001,Children and Young People,CYP,Third Party Payments,EGA,26/11/2014,10-16383,1068.9,Hickory House Day Nursery,,,,,,,,,,,
Nottinghamshire County Council,1111/1001,Children and Young People,CYP,Third Party Payments,EGA,26/11/2014,10-16384,1187.65,[Redacted],,,,,,,,,,,
Nottinghamshire County Council,1111/1001,Children and Young People,CYP,Third Party Payments,EGA,26/11/2014,10-16385,1583.4,Edwalton Day Nursery,,,,,,,,,,,
Nottinghamshire County Council,1111/1001,Children and Young People,CYP,Third Party Payments,EGA,26/11/2014,10-16386,897.3,Cropwell Bishop Pre-School Playgrou,,,,,,,,,,,
Nottinghamshire County Council,1111/1001,Children and Young People,CYP,Third Party Payments,EGA,26/11/2014,10-16387,712.53,Breedon House Nurseries Ltd,,,,,,,,,,,
Nottinghamshire County Council,1111/1001,Children and Young People,CYP,Third Party Payments,EGA,26/11/2014,10-16388,1068.9,Carlton Hill Playgroup,,,,,,,,,,,
Nottinghamshire County Council,1111/1001,Children and Young People,CYP,Third Party Payments,EGA,26/11/2014,10-16389,1068.9,Brookhill House Day Nursery,,,,,,,,,,,
Nottinghamshire County Council,1111/1001,Children and Young People,CYP,Third Party Payments,EGA,26/11/2014,10-16390,641.34,[Redacted],,,,,,,,,,,
Nottinghamshire County Council,1111/1001,Children and Young People,CYP,Third Party Payments,EGA,26/11/2014,10-16391,2030.91,Sunbeams Pre-School,,,,,,,,,,,
Nottinghamshire County Council,1111/1001,Children and Young People,CYP,Third Party Payments,EGA,26/11/2014,10-16392,1068.9,Stepping Stones II,,,,,,,,,,,
Nottinghamshire County Council,1111/1001,Children and Young People,CYP,Third Party Payments,EGA,26/11/2014,10-16393,4341.5,Southfields Pre-School,,,,,,,,,,,
Nottinghamshire County Council,1111/1001,Children and Young People,CYP,Third Party Payments,EGA,26/11/2014,10-16394,791.7,Serendipity's Day Nursery,,,,,,,,,,,
Nottinghamshire County Council,1111/1001,Children and Young People,CYP,Third Party Payments,EGA,26/11/2014,10-16395,2137.8,Rocking Horse Nursery Butlers Hill,,,,,,,,,,,
Nottinghamshire County Council,1111/1001,Children and Young People,CYP,Third Party Payments,EGA,26/11/2014,10-16396,791.7,The Rocking Horse Child Care Centre,,,,,,,,,,,
Nottinghamshire County Council,1111/1001,Children and Young People,CYP,Third Party Payments,EGA,26/11/2014,10-16397,1068.9,Ravenshead Pre-School Playgroup,,,,,,,,,,,
Nottinghamshire County Council,1111/1001,Children and Young People,CYP,Third Party Payments,EGA,26/11/2014,10-16398,7240.53,Thrumpton Kids Clubs,,,,,,,,,,,
Nottinghamshire County Council,1111/1001,Children and Young People,CYP,Third Party Payments,EGA,26/11/2014,10-16400,6005.98,Carnarvon Pre-School,,,,,,,,,,,
Nottinghamshire County Council,1111/1001,Children and Young People,CYP,Third Party Payments,EGA,26/11/2014,10-16539,2435.67,Social Home Choices,,,,,,,,,,,
Nottinghamshire County Council,1111/1001,Children and Young People,CYP,Third Party Payments,EGA,26/11/2014,10-16540,2435.67,Social Home Choices,,,,,,,,,,,
Nottinghamshire County Council,1111/1001,Children and Young People,CYP,Third Party Payments,EGA,26/11/2014,10-16569,48108.65,Fostering Solutions Ltd,,,,,,,,,,,
Nottinghamshire County Council,1111/1001,Children and Young People,CYP,Third Party Payments,EGA,26/11/2014,10-16585,14400,Adventure Care Ltd,,,,,,,,,,,
Nottinghamshire County Council,1111/1001,Children and Young People,CYP,Third Party Payments,EGA,26/11/2014,10-16652,149016.64,Foster Care Associates Limited,,,,,,,,,,,
Nottinghamshire County Council,1111/1001,Children and Young People,CYP,Third Party Payments,EGA,26/11/2014,10-16653,6820,Fostering People Ltd,,,,,,,,,,,
Nottinghamshire County Council,1111/1001,Children and Young People,CYP,Third Party Payments,EGA,26/11/2014,10-16654,170024.89,Fostering People Ltd,,,,,,,,,,,
Nottinghamshire County Council,1111/1001,Children and Young People,CYP,Third Party Payments,EGA,26/11/2014,10-16655,14536.59,Foster Care Associates Limited,,,,,,,,,,,
Nottinghamshire County Council,1111/1001,Children and Young People,CYP,Third Party Payments,EGA,27/11/2014,10-16403,18823.65,Treetops Nurseries Ltd,,,,,,,,,,,
Nottinghamshire County Council,1111/1001,Children and Young People,CYP,Third Party Payments,EGA,27/11/2014,10-16706,18157.13,Woodlands Ltd,,,,,,,,,,,
Nottinghamshire County Council,1111/1001,Children and Young People,CYP,Third Party Payments,EGA,27/11/2014,10-16707,509,APW Consultancy Service Ltd,,,,,,,,,,,
Nottinghamshire County Council,1111/1001,Children and Young People,CYP,Third Party Payments,EGA,27/11/2014,10-16708,24000,Shyne,,,,,,,,,,,
Nottinghamshire County Council,1111/1001,Children and Young People,CYP,Third Party Payments,EGA,27/11/2014,10-16710,21000,Shyne,,,,,,,,,,,
Nottinghamshire County Council,1111/1001,Children and Young People,CYP,Third Party Payments,EGA,27/11/2014,10-16711,2902.89,Team Fostering,,,,,,,,,,,
Nottinghamshire County Council,1111/1001,Children and Young People,CYP,Third Party Payments,EGA,27/11/2014,10-16712,12566.66,Total Care Matters Ltd,,,,,,,,,,,
Nottinghamshire County Council,1111/1001,Children and Young People,CYP,Third Party Payments,EGA,27/11/2014,10-16713,12956.66,Total Care Matters Ltd,,,,,,,,,,,
Nottinghamshire County Council,1111/1001,Children and Young People,CYP,Third Party Payments,EGA,27/11/2014,10-16714,12956.66,Total Care Matters Ltd,,,,,,,,,,,
Nottinghamshire County Council,1111/1001,Children and Young People,CYP,Third Party Payments,EGA,27/11/2014,10-16722,17571.42,Woodlands Ltd,,,,,,,,,,,
Nottinghamshire County Council,1111/1001,Children and Young People,CYP,Third Party Payments,EGA,27/11/2014,10-16729,6777.54,Foster Care Associates Limited,,,,,,,,,,,
Nottinghamshire County Council,1111/1001,Children and Young People,CYP,Third Party Payments,EGA,28/11/2014,10-16432,1013.38,Catherine Sansone,,,,,,,,,,,
Nottinghamshire County Council,1111/1001,Children and Young People,CYP,Third Party Payments,EGA,28/11/2014,10-16433,791.7,[Redacted],,,,,,,,,,,
Nottinghamshire County Council,1111/1001,Children and Young People,CYP,Third Party Payments,EGA,28/11/2014,10-16434,30750.69,Papermoon Day Nursery Sutton In Ash,,,,,,,,,,,
Nottinghamshire County Council,1111/1001,Children and Young People,CYP,Third Party Payments,EGA,28/11/2014,10-16435,1068.9,[Redacted],,,,,,,,,,,
Nottinghamshire County Council,1111/1001,Children and Young People,CYP,Third Party Payments,EGA,28/11/2014,10-16436,6821.92,Fosse Paddock Kindergarten,,,,,,,,,,,
Nottinghamshire County Council,1111/1001,Children and Young People,CYP,Third Party Payments,EGA,28/11/2014,10-16437,12288.28,Early Years Playgroup,,,,,,,,,,,
Nottinghamshire County Council,1111/1001,Children and Young People,CYP,Third Party Payments,EGA,28/11/2014,10-16438,9913.58,Bramcote Pre-School Playgroup,,,,,,,,,,,
Nottinghamshire County Council,1111/1001,Children and Young People,CYP,Third Party Payments,EGA,28/11/2014,10-16440,2137.8,[Redacted],,,,,,,,,,,
Nottinghamshire County Council,1111/1001,Children and Young People,CYP,Third Party Payments,EGA,28/11/2014,10-16455,3810.73,Woodborough Village Pre School,,,,,,,,,,,
Nottinghamshire County Council,1111/1001,Children and Young People,CYP,Third Party Payments,EGA,28/11/2014,10-16456,3166.8,Willoughby On The Wolds Playgroup,,,,,,,,,,,
Nottinghamshire County Council,1111/1001,Children and Young People,CYP,Third Party Payments,EGA,28/11/2014,10-16457,558.18,Sharons Childminding,,,,,,,,,,,
Nottinghamshire County Council,1111/1001,Children and Young People,CYP,Third Party Payments,EGA,28/11/2014,10-16458,626.07,Springfield Pre-School,,,,,,,,,,,
Nottinghamshire County Council,1111/1001,Children and Young People,CYP,Third Party Payments,EGA,28/11/2014,10-16459,3541.48,Foxy Creek Pre-School Playgroup,,,,,,,,,,,
Nottinghamshire County Council,1111/1001,Children and Young People,CYP,Third Party Payments,EGA,28/11/2014,10-16460,2986.06,Ranskill Nursery,,,,,,,,,,,
Nottinghamshire County Council,1111/1001,Children and Young People,CYP,Third Party Payments,EGA,28/11/2014,10-16461,8748.6,Portland Place Pre-School,,,,,,,,,,,
Nottinghamshire County Council,1111/1001,Children and Young People,CYP,Third Party Payments,EGA,28/11/2014,10-16462,5858.58,Plumtree School,,,,,,,,,,,
Nottinghamshire County Council,1111/1001,Children and Young People,CYP,Third Party Payments,EGA,28/11/2014,10-16463,7576.61,Pippins Pre-School,,,,,,,,,,,
Nottinghamshire County Council,1111/1001,Children and Young People,CYP,Third Party Payments,EGA,28/11/2014,10-16464,10465.43,Ordsall Pre-School,,,,,,,,,,,
Nottinghamshire County Council,1111/1001,Children and Young People,CYP,Third Party Payments,EGA,28/11/2014,10-16465,2929.29,North Muskham Playgroup,,,,,,,,,,,
Nottinghamshire County Council,1111/1001,Children and Young People,CYP,Third Party Payments,EGA,28/11/2014,10-16466,1112.37,Lyndsay's Childminding,,,,,,,,,,,
Nottinghamshire County Council,1111/1001,Children and Young People,CYP,Third Party Payments,EGA,28/11/2014,10-16467,2351.58,[Redacted],,,,,,,,,,,
Nottinghamshire County Council,1111/1001,Children and Young People,CYP,Third Party Payments,EGA,28/11/2014,10-16468,6703.17,Dagfa House School,,,,,,,,,,,
Nottinghamshire County Council,1111/1001,Children and Young People,CYP,Third Party Payments,EGA,28/11/2014,10-16469,5118.33,Balderton Village Day Nursery,,,,,,,,,,,
Nottinghamshire County Council,1111/1001,Children and Young People,CYP,Third Party Payments,EGA,28/11/2014,10-16470,5130.43,Attenborough Day Nursery & Pre-Sch,,,,,,,,,,,
Nottinghamshire County Council,1111/1001,Children and Young People,CYP,Third Party Payments,EGA,28/11/2014,10-16739,12566.66,Total Care Matters Ltd,,,,,,,,,,,
Nottinghamshire County Council,1111/1001,Children and Young People,CYP,Third Party Payments,EGA,28/11/2014,10-16755,2684.63,Treehouse Care Fostering Solutions,,,,,,,,,,,
Nottinghamshire County Council,1111/1001,Children and Young People,CYP,Third Party Payments,EHA,28/11/2014,10-16690,17979.5,PACEY,,,,,,,,,,,
Nottinghamshire County Council,1111/1001,Children and Young People,CYP,Support Services,HAA,04/11/2014,10-14021,2857,Johnson Bros Tours Ltd,,,,,,,,,,,
Nottinghamshire County Council,1111/1001,Children and Young People,CYP,Support Services,HAA,04/11/2014,10-14022,4973.2,Johnson Bros Tours Ltd,,,,,,,,,,,
Nottinghamshire County Council,1111/1001,Children and Young People,CYP,Support Services,HAA,04/11/2014,10-14023,2633.1,Johnson Bros Tours Ltd,,,,,,,,,,,
Nottinghamshire County Council,1111/1001,Children and Young People,CYP,Support Services,HAA,04/11/2014,10-14024,3115.75,Johnson Bros Tours Ltd,,,,,,,,,,,
Nottinghamshire County Council,1111/1001,Children and Young People,CYP,Support Services,HAA,04/11/2014,10-14025,11042.4,Johnson Bros Tours Ltd,,,,,,,,,,,
Nottinghamshire County Council,1111/1001,Children and Young People,CYP,Support Services,HAA,04/11/2014,10-14026,17624.85,Johnson Bros Tours Ltd,,,,,,,,,,,
Nottinghamshire County Council,1111/1001,Children and Young People,CYP,Support Services,HAA,04/11/2014,10-14029,1260,Fozcabs Newark Taxis,,,,,,,,,,,
Nottinghamshire County Council,1111/1001,Children and Young People,CYP,Support Services,HAA,04/11/2014,10-14033,770,Fozcabs Newark Taxis,,,,,,,,,,,
Nottinghamshire County Council,1111/1001,Children and Young People,CYP,Support Services,HAA,04/11/2014,10-14044,2627,Gem Mini Travel Ltd,,,,,,,,,,,
Nottinghamshire County Council,1111/1001,Children and Young People,CYP,Support Services,HAA,04/11/2014,10-14045,2227,Gem Mini Travel Ltd,,,,,,,,,,,
Nottinghamshire County Council,1111/1001,Children and Young People,CYP,Support Services,HAA,04/11/2014,10-14046,2918.5,Gem Mini Travel Ltd,,,,,,,,,,,
Nottinghamshire County Council,1111/1001,Children and Young People,CYP,Support Services,HAA,04/11/2014,10-14047,3059,Gem Mini Travel Ltd,,,,,,,,,,,
Nottinghamshire County Council,1111/1001,Children and Young People,CYP,Support Services,HAA,04/11/2014,10-14048,1020,K & R Cars,,,,,,,,,,,
Nottinghamshire County Council,1111/1001,Children and Young People,CYP,Support Services,HAA,04/11/2014,10-14050,389.43,P & P Taxis,,,,,,,,,,,
Nottinghamshire County Council,1111/1001,Children and Young People,CYP,Support Services,HAA,04/11/2014,10-14055,2288.52,Freeway Coaches Ltd,,,,,,,,,,,
Nottinghamshire County Council,1111/1001,Children and Young People,CYP,Support Services,HAA,04/11/2014,10-14056,6428.94,Freeway Coaches Ltd,,,,,,,,,,,
Nottinghamshire County Council,1111/1001,Children and Young People,CYP,Support Services,HAA,04/11/2014,10-14057,2528.28,Freeway Coaches Ltd,,,,,,,,,,,
Nottinghamshire County Council,1111/1001,Children and Young People,CYP,Support Services,HAA,04/11/2014,10-14058,2167.5,Freeway Coaches Ltd,,,,,,,,,,,
Nottinghamshire County Council,1111/1001,Children and Young People,CYP,Support Services,HAA,04/11/2014,10-14059,1305.74,Freeway Coaches Ltd,,,,,,,,,,,
Nottinghamshire County Council,1111/1001,Children and Young People,CYP,Support Services,HAA,04/11/2014,10-14060,2125,Freeway Coaches Ltd,,,,,,,,,,,
Nottinghamshire County Council,1111/1001,Children and Young People,CYP,Support Services,HAA,04/11/2014,10-14064,1890,Travel Liner,,,,,,,,,,,
Nottinghamshire County Council,1111/1001,Children and Young People,CYP,Support Services,HAA,06/11/2014,10-14372,2380,Johnson Bros Tours Ltd,,,,,,,,,,,
Nottinghamshire County Council,1111/1001,Children and Young People,CYP,Support Services,HAA,06/11/2014,10-14413,1094.04,Sprays Transport Ltd,,,,,,,,,,,
Nottinghamshire County Council,1111/1001,Children and Young People,CYP,Support Services,HAA,06/11/2014,10-14435,1733.83,Marshalls Of Sutton On Trent Ltd,,,,,,,,,,,
Nottinghamshire County Council,1111/1001,Children and Young People,CYP,Support Services,HAA,06/11/2014,10-14444,2970,Marshalls Of Sutton On Trent Ltd,,,,,,,,,,,
Nottinghamshire County Council,1111/1001,Children and Young People,CYP,Support Services,HAA,06/11/2014,10-14446,1683,Marshalls Of Sutton On Trent Ltd,,,,,,,,,,,
Nottinghamshire County Council,1111/1001,Children and Young People,CYP,Support Services,HAA,06/11/2014,10-14447,2970,Marshalls Of Sutton On Trent Ltd,,,,,,,,,,,
Nottinghamshire County Council,1111/1001,Children and Young People,CYP,Support Services,HAA,06/11/2014,10-14448,1982.88,Marshalls Of Sutton On Trent Ltd,,,,,,,,,,,
Nottinghamshire County Council,1111/1001,Children and Young People,CYP,Support Services,HAA,06/11/2014,10-14450,1809.9,Silverdale Tours Nottm Ltd,,,,,,,,,,,
Nottinghamshire County Council,1111/1001,Children and Young People,CYP,Support Services,HAA,06/11/2014,10-14451,2828.4,Silverdale Tours Nottm Ltd,,,,,,,,,,,
Nottinghamshire County Council,1111/1001,Children and Young People,CYP,Support Services,HAA,06/11/2014,10-14452,2446.5,Silverdale Tours Nottm Ltd,,,,,,,,,,,
Nottinghamshire County Council,1111/1001,Children and Young People,CYP,Support Services,HAA,06/11/2014,10-14453,2696,Silverdale Tours Nottm Ltd,,,,,,,,,,,
Nottinghamshire County Council,1111/1001,Children and Young People,CYP,Support Services,HAA,06/11/2014,10-14454,2349.4,Silverdale Tours Nottm Ltd,,,,,,,,,,,
Nottinghamshire County Council,1111/1001,Children and Young People,CYP,Support Services,HAA,06/11/2014,10-14455,2569,Silverdale Tours Nottm Ltd,,,,,,,,,,,
Nottinghamshire County Council,1111/1001,Children and Young People,CYP,Support Services,HAA,06/11/2014,10-14456,2691,Silverdale Tours Nottm Ltd,,,,,,,,,,,
Nottinghamshire County Council,1111/1001,Children and Young People,CYP,Support Services,HAA,06/11/2014,10-14457,1796,Silverdale Tours Nottm Ltd,,,,,,,,,,,
Nottinghamshire County Council,1111/1001,Children and Young People,CYP,Support Services,HAA,06/11/2014,10-14458,2013,Silverdale Tours Nottm Ltd,,,,,,,,,,,
Nottinghamshire County Council,1111/1001,Children and Young People,CYP,Support Services,HAA,06/11/2014,10-14459,1731.6,Ashfield Travel,,,,,,,,,,,
Nottinghamshire County Council,1111/1001,Children and Young People,CYP,Support Services,HAA,06/11/2014,10-14465,525,Rio Cabs,,,,,,,,,,,
Nottinghamshire County Council,1111/1001,Children and Young People,CYP,Support Services,HAA,06/11/2014,10-14466,4131,Isle Coaches,,,,,,,,,,,
Nottinghamshire County Council,1111/1001,Children and Young People,CYP,Support Services,HAA,10/11/2014,10-14611,2101.4,Sharpes Of Nottingham,,,,,,,,,,,
Nottinghamshire County Council,1111/1001,Children and Young People,CYP,Support Services,HAA,10/11/2014,10-14612,2603.85,Sharpes Of Nottingham,,,,,,,,,,,
Nottinghamshire County Council,1111/1001,Children and Young People,CYP,Support Services,HAA,10/11/2014,10-14613,2757.6,Sharpes Of Nottingham,,,,,,,,,,,
Nottinghamshire County Council,1111/1001,Children and Young People,CYP,Support Services,HAA,10/11/2014,10-14614,2445.15,Sharpes Of Nottingham,,,,,,,,,,,
Nottinghamshire County Council,1111/1001,Children and Young People,CYP,Support Services,HAA,10/11/2014,10-14615,2697.4,Sharpes Of Nottingham,,,,,,,,,,,
Nottinghamshire County Council,1111/1001,Children and Young People,CYP,Support Services,HAA,10/11/2014,10-14619,2264.55,Sharpes Of Nottingham,,,,,,,,,,,
Nottinghamshire County Council,1111/1001,Children and Young People,CYP,Support Services,HAA,10/11/2014,10-14620,2594,Sharpes Of Nottingham,,,,,,,,,,,
Nottinghamshire County Council,1111/1001,Children and Young People,CYP,Support Services,HAA,10/11/2014,10-14621,2564.1,Sharpes Of Nottingham,,,,,,,,,,,
Nottinghamshire County Council,1111/1001,Children and Young People,CYP,Support Services,HAA,10/11/2014,10-14622,1951.56,Sharpes Of Nottingham,,,,,,,,,,,
Nottinghamshire County Council,1111/1001,Children and Young People,CYP,Support Services,HAA,10/11/2014,10-14623,2745,Sharpes Of Nottingham,,,,,,,,,,,
Nottinghamshire County Council,1111/1001,Children and Young People,CYP,Support Services,HAA,10/11/2014,10-14630,2039.76,Arnold Acorn Travel,,,,,,,,,,,
Nottinghamshire County Council,1111/1001,Children and Young People,CYP,Support Services,HAA,10/11/2014,10-14640,2605,Butler Brothers Ltd,,,,,,,,,,,
Nottinghamshire County Council,1111/1001,Children and Young People,CYP,Support Services,HAA,10/11/2014,10-14642,2171.65,Butler Brothers Ltd,,,,,,,,,,,
Nottinghamshire County Council,1111/1001,Children and Young People,CYP,Support Services,HAA,10/11/2014,10-14654,2446,Lowes Coaches Ltd,,,,,,,,,,,
Nottinghamshire County Council,1111/1001,Children and Young People,CYP,Support Services,HAA,10/11/2014,10-14655,2353,Lowes Coaches Ltd,,,,,,,,,,,
Nottinghamshire County Council,1111/1001,Children and Young People,CYP,Support Services,HAA,10/11/2014,10-14656,2004,Lowes Coaches Ltd,,,,,,,,,,,
Nottinghamshire County Council,1111/1001,Children and Young People,CYP,Support Services,HAA,10/11/2014,10-14657,1905,Lowes Coaches Ltd,,,,,,,,,,,
Nottinghamshire County Council,1111/1001,Children and Young People,CYP,Support Services,HAA,10/11/2014,10-14678,1620,Nottingham Minibuses & Coaches,,,,,,,,,,,
Nottinghamshire County Council,1111/1001,Children and Young People,CYP,Support Services,HAA,10/11/2014,10-14681,2700,Nottingham Minibuses & Coaches,,,,,,,,,,,
Nottinghamshire County Council,1111/1001,Children and Young People,CYP,Support Services,HAA,10/11/2014,10-14687,11140.1,Travel Wright Ltd,,,,,,,,,,,
Nottinghamshire County Council,1111/1001,Children and Young People,CYP,Support Services,HAA,10/11/2014,10-14689,3211.46,Travel Wright Ltd,,,,,,,,,,,
Nottinghamshire County Council,1111/1001,Children and Young People,CYP,Support Services,HAA,10/11/2014,10-14690,2982.48,Travel Wright Ltd,,,,,,,,,,,
Nottinghamshire County Council,1111/1001,Children and Young People,CYP,Support Services,HAA,10/11/2014,10-14691,120,Travel Wright Ltd,,,,,,,,,,,
Nottinghamshire County Council,1111/1001,Children and Young People,CYP,Support Services,HAA,10/11/2014,10-14693,2609.41,Travel Wright Ltd,,,,,,,,,,,
Nottinghamshire County Council,1111/1001,Children and Young People,CYP,Support Services,HAA,10/11/2014,10-14696,2879.1,Travel Wright Ltd,,,,,,,,,,,
Nottinghamshire County Council,1111/1001,Children and Young People,CYP,Support Services,HAA,10/11/2014,10-14705,1451.29,Wallis Coachways,,,,,,,,,,,
Nottinghamshire County Council,1111/1001,Children and Young People,CYP,Support Services,HAA,10/11/2014,10-14709,935,Broadsword Cars,,,,,,,,,,,
Nottinghamshire County Council,1111/1001,Children and Young People,CYP,Support Services,HAA,11/11/2014,10-15017,1360,Midland Fleet Maintenance,,,,,,,,,,,
Nottinghamshire County Council,1111/1001,Children and Young People,CYP,Support Services,HAA,11/11/2014,10-15020,807.84,Fozcabs Newark Taxis,,,,,,,,,,,
Nottinghamshire County Council,1111/1001,Children and Young People,CYP,Support Services,HAA,11/11/2014,10-15026,702,Fozcabs Newark Taxis,,,,,,,,,,,
Nottinghamshire County Council,1111/1001,Children and Young People,CYP,Support Services,HAA,11/11/2014,10-15027,1966.54,Travel Wright Ltd,,,,,,,,,,,
Nottinghamshire County Council,1111/1001,Children and Young People,CYP,Support Services,HAA,11/11/2014,10-15029,4839.14,Travel Wright Ltd,,,,,,,,,,,
Nottinghamshire County Council,1111/1001,Children and Young People,CYP,Support Services,HAA,11/11/2014,10-15032,1054.37,Cotswold CVS Trading Ltd,,,,,,,,,,,
Nottinghamshire County Council,1111/1001,Children and Young People,CYP,Support Services,HAA,12/11/2014,10-15083,2720,AOT Coaches,,,,,,,,,,,
Nottinghamshire County Council,1111/1001,Children and Young People,CYP,Support Services,HAA,12/11/2014,10-15084,2133,AOT Coaches,,,,,,,,,,,
Nottinghamshire County Council,1111/1001,Children and Young People,CYP,Support Services,HAA,12/11/2014,10-15085,2105,AOT Coaches,,,,,,,,,,,
Nottinghamshire County Council,1111/1001,Children and Young People,CYP,Support Services,HAA,12/11/2014,10-15086,2306.52,AOT Coaches,,,,,,,,,,,
Nottinghamshire County Council,1111/1001,Children and Young People,CYP,Support Services,HAA,12/11/2014,10-15087,2147.94,AOT Coaches,,,,,,,,,,,
Nottinghamshire County Council,1111/1001,Children and Young People,CYP,Support Services,HAA,12/11/2014,10-15088,2225.94,AOT Coaches,,,,,,,,,,,
Nottinghamshire County Council,1111/1001,Children and Young People,CYP,Support Services,HAA,12/11/2014,10-15089,2568,AOT Coaches,,,,,,,,,,,
Nottinghamshire County Council,1111/1001,Children and Young People,CYP,Support Services,HAA,14/11/2014,10-15419,2720,AOT Coaches,,,,,,,,,,,
Nottinghamshire County Council,1111/1001,Children and Young People,CYP,Support Services,HAA,14/11/2014,10-15422,880,AOT Coaches,,,,,,,,,,,
Nottinghamshire County Council,1111/1001,Children and Young People,CYP,Support Services,HAA,14/11/2014,10-15423,2336,AOT Coaches,,,,,,,,,,,
Nottinghamshire County Council,1111/1001,Children and Young People,CYP,Support Services,HAA,14/11/2014,10-15428,2179.6,Jb Tours Watnall Ltd,,,,,,,,,,,
Nottinghamshire County Council,1111/1001,Children and Young People,CYP,Support Services,HAA,14/11/2014,10-15429,2031.8,Jb Tours Watnall Ltd,,,,,,,,,,,
Nottinghamshire County Council,1111/1001,Children and Young People,CYP,Support Services,HAA,14/11/2014,10-15435,2186.6,Tiger European Uk Ltd,,,,,,,,,,,
Nottinghamshire County Council,1111/1001,Children and Young People,CYP,Support Services,HAA,14/11/2014,10-15436,2318,Tiger European Uk Ltd,,,,,,,,,,,
Nottinghamshire County Council,1111/1001,Children and Young People,CYP,Support Services,HAA,14/11/2014,10-15437,2130.7,Tiger European Uk Ltd,,,,,,,,,,,
Nottinghamshire County Council,1111/1001,Children and Young People,CYP,Support Services,HAA,14/11/2014,10-15438,2424,Tiger European Uk Ltd,,,,,,,,,,,
Nottinghamshire County Council,1111/1001,Children and Young People,CYP,Support Services,HAA,14/11/2014,10-15439,2453.4,Tiger European Uk Ltd,,,,,,,,,,,
Nottinghamshire County Council,1111/1001,Children and Young People,CYP,Support Services,HAA,14/11/2014,10-15440,2421,Tiger European Uk Ltd,,,,,,,,,,,
Nottinghamshire County Council,1111/1001,Children and Young People,CYP,Support Services,HAA,14/11/2014,10-15441,2642.4,Tiger European Uk Ltd,,,,,,,,,,,
Nottinghamshire County Council,1111/1001,Children and Young People,CYP,Support Services,HAA,14/11/2014,10-15442,3330,Tiger European Uk Ltd,,,,,,,,,,,
Nottinghamshire County Council,1111/1001,Children and Young People,CYP,Support Services,HAA,14/11/2014,10-15443,2635,Tiger European Uk Ltd,,,,,,,,,,,
Nottinghamshire County Council,1111/1001,Children and Young People,CYP,Support Services,HAA,14/11/2014,10-15444,1010,Tiger European Uk Ltd,,,,,,,,,,,
Nottinghamshire County Council,1111/1001,Children and Young People,CYP,Support Services,HAA,14/11/2014,10-15445,2783,Tiger European Uk Ltd,,,,,,,,,,,
Nottinghamshire County Council,1111/1001,Children and Young People,CYP,Support Services,HAA,14/11/2014,10-15446,2745.5,Tiger European Uk Ltd,,,,,,,,,,,
Nottinghamshire County Council,1111/1001,Children and Young People,CYP,Support Services,HAA,20/11/2014,10-16019,981.5,Jb Tours Watnall Ltd,,,,,,,,,,,
Nottinghamshire County Council,1111/1001,Children and Young People,CYP,Support Services,HAA,20/11/2014,10-16030,1326.68,Stagecoach Services Ltd,,,,,,,,,,,
Nottinghamshire County Council,1111/1001,Children and Young People,CYP,Support Services,HAA,20/11/2014,10-16034,1326.68,Stagecoach Services Ltd,,,,,,,,,,,
Nottinghamshire County Council,1111/1001,Children and Young People,CYP,Support Services,HAA,20/11/2014,10-16035,1043.46,Stagecoach Services Ltd,,,,,,,,,,,
Nottinghamshire County Council,1111/1001,Children and Young People,CYP,Support Services,HAA,20/11/2014,10-16039,4591.15,Stagecoach Services Ltd,,,,,,,,,,,
Nottinghamshire County Council,1111/1001,Children and Young People,CYP,Support Services,HAA,20/11/2014,10-16040,4624.7,Stagecoach Services Ltd,,,,,,,,,,,
Nottinghamshire County Council,1111/1001,Children and Young People,CYP,Support Services,HAA,20/11/2014,10-16047,4176.16,Stagecoach Services Ltd,,,,,,,,,,,
Nottinghamshire County Council,1111/1001,Children and Young People,CYP,Support Services,HAA,20/11/2014,10-16061,4220.22,Stagecoach Services Ltd,,,,,,,,,,,
Nottinghamshire County Council,1111/1001,Children and Young People,CYP,Support Services,HAA,20/11/2014,10-16063,1496,Wilfreda Beehive,,,,,,,,,,,
Nottinghamshire County Council,1111/1001,Children and Young People,CYP,Support Services,HAA,20/11/2014,10-16064,1140.66,Bassetlaw Action Centre,,,,,,,,,,,
Nottinghamshire County Council,1111/1001,Children and Young People,CYP,Support Services,HAA,20/11/2014,10-16065,1069.2,Bassetlaw Action Centre,,,,,,,,,,,
Nottinghamshire County Council,1111/1001,Children and Young People,CYP,Support Services,HAA,24/11/2014,10-16182,502.95,Dial A Trip,,,,,,,,,,,
Nottinghamshire County Council,1111/1001,Children and Young People,CYP,Income,JHA,10/11/2014,10-10020,32323,[Redacted],,,,,,,,,,,
Nottinghamshire County Council,1111/1001,Adult Social Care and Health,ASCH,Premises Related,BAA,03/11/2014,10-10078,510,[Redacted],,,,,,,,,,,
Nottinghamshire County Council,1111/1001,Adult Social Care and Health,ASCH,Premises Related,BAA,04/11/2014,10-14108,652.5,Elf Property Care,,,,,,,,,,,
Nottinghamshire County Council,1111/1001,Adult Social Care and Health,ASCH,Premises Related,BAA,17/11/2014,10-15522,660,Classique Fascias,,,,,,,,,,,
Nottinghamshire County Council,1111/1001,Adult Social Care and Health,ASCH,Premises Related,BAA,17/11/2014,10-15524,583.5,Key Construction,,,,,,,,,,,
Nottinghamshire County Council,1111/1001,Adult Social Care and Health,ASCH,Premises Related,BAA,17/11/2014,10-15526,535,Cw Plumbing Heating & Gas Services,,,,,,,,,,,
Nottinghamshire County Council,1111/1001,Adult Social Care and Health,ASCH,Premises Related,BAA,17/11/2014,10-15528,594.5,Sues Maintenance Services,,,,,,,,,,,
Nottinghamshire County Council,1111/1001,Adult Social Care and Health,ASCH,Premises Related,BJA,25/11/2014,10-16594,755.6,Wilson Electrics Ltd,,,,,,,,,,,
Nottinghamshire County Council,1111/1001,Adult Social Care and Health,ASCH,Transport Related,CBA,06/11/2014,10-14390,2459.82,Ja Travel Ltd,,,,,,,,,,,
Nottinghamshire County Council,1111/1001,Adult Social Care and Health,ASCH,Transport Related,CBA,06/11/2014,10-14429,3783.5,Vallances Coaches,,,,,,,,,,,
Nottinghamshire County Council,1111/1001,Adult Social Care and Health,ASCH,Transport Related,CBA,06/11/2014,10-14460,1996.76,Aj Travel,,,,,,,,,,,
Nottinghamshire County Council,1111/1001,Adult Social Care and Health,ASCH,Transport Related,CBA,10/11/2014,10-14661,3736.14,F & J Marriott T/A Unity Coaches,,,,,,,,,,,
Nottinghamshire County Council,1111/1001,Adult Social Care and Health,ASCH,Transport Related,CBA,10/11/2014,10-14663,3588.92,F & J Marriott T/A Unity Coaches,,,,,,,,,,,
Nottinghamshire County Council,1111/1001,Adult Social Care and Health,ASCH,Transport Related,CBA,11/11/2014,10-15034,4903.42,Cotswold CVS Trading Ltd,,,,,,,,,,,
Nottinghamshire County Council,1111/1001,Adult Social Care and Health,ASCH,Transport Related,CBA,20/11/2014,10-16016,3344.92,BN Gibson Ltd,,,,,,,,,,,
Nottinghamshire County Council,1111/1001,Adult Social Care and Health,ASCH,Transport Related,CBA,24/11/2014,10-16184,3570.82,Mct Uk Ltd,,,,,,,,,,,
Nottinghamshire County Council,1111/1001,Adult Social Care and Health,ASCH,Transport Related,CCA,06/11/2014,10-14421,211.54,Sprays Transport Ltd,,,,,,,,,,,
Nottinghamshire County Council,1111/1001,Adult Social Care and Health,ASCH,Transport Related,CCA,10/11/2014,10-14635,630,Bridges Transport Services,,,,,,,,,,,
Nottinghamshire County Council,1111/1001,Adult Social Care and Health,ASCH,Transport Related,CCA,10/11/2014,10-14639,760,Bridges Transport Services,,,,,,,,,,,
Nottinghamshire County Council,1111/1001,Adult Social Care and Health,ASCH,Transport Related,CCA,10/11/2014,10-14697,1458,P & P Taxis,,,,,,,,,,,
Nottinghamshire County Council,1111/1001,Adult Social Care and Health,ASCH,Transport Related,CCA,10/11/2014,10-14700,765,Town Cars (UK) Ltd,,,,,,,,,,,
Nottinghamshire County Council,1111/1001,Adult Social Care and Health,ASCH,Transport Related,CCA,12/11/2014,10-15067,1468.8,Shelleys Taxis Ltd,,,,,,,,,,,
Nottinghamshire County Council,1111/1001,Adult Social Care and Health,ASCH,Transport Related,CCA,12/11/2014,10-15074,680,Abacus Cars,,,,,,,,,,,
Nottinghamshire County Council,1111/1001,Adult Social Care and Health,ASCH,Transport Related,CCA,14/11/2014,10-15413,2976.89,BN Gibson Ltd,,,,,,,,,,,
Nottinghamshire County Council,1111/1001,Adult Social Care and Health,ASCH,Transport Related,CCA,14/11/2014,10-16524,3622.4,Mencap Accounts Region 2,,,,,,,,,,,
Nottinghamshire County Council,1111/1001,Adult Social Care and Health,ASCH,Transport Related,CCA,18/11/2014,10-15677,510.6,D G Private Hire Ltd,,,,,,,,,,,
Nottinghamshire County Council,1111/1001,Adult Social Care and Health,ASCH,Transport Related,CCA,20/11/2014,10-16003,774.35,Erewash Community Transport,,,,,,,,,,,
Nottinghamshire County Council,1111/1001,Adult Social Care and Health,ASCH,Transport Related,CCA,20/11/2014,10-16016,468.5,BN Gibson Ltd,,,,,,,,,,,
Nottinghamshire County Council,1111/1001,Adult Social Care and Health,ASCH,Transport Related,CCA,25/11/2014,10-16596,3622.4,Mencap Accounts Region 2,,,,,,,,,,,
Nottinghamshire County Council,1111/1001,Adult Social Care and Health,ASCH,Transport Related,CDA,03/11/2014,10-10109,1466.52,Srcl Ltd,,,,,,,,,,,
Nottinghamshire County Council,1111/1001,Adult Social Care and Health,ASCH,Transport Related,CDA,03/11/2014,10-10114,1155.44,Srcl Ltd,,,,,,,,,,,
Nottinghamshire County Council,1111/1001,Adult Social Care and Health,ASCH,Transport Related,CDA,04/11/2014,10-14020,958.2,Southside Cars,,,,,,,,,,,
Nottinghamshire County Council,1111/1001,Adult Social Care and Health,ASCH,Transport Related,CDA,04/11/2014,10-14037,698.35,Fozcabs Newark Taxis,,,,,,,,,,,
Nottinghamshire County Council,1111/1001,Adult Social Care and Health,ASCH,Transport Related,CDA,04/11/2014,10-14043,2605.9,Midfield Travel,,,,,,,,,,,
Nottinghamshire County Council,1111/1001,Adult Social Care and Health,ASCH,Transport Related,CDA,06/11/2014,10-14378,769.35,CBC Taxis Ltd,,,,,,,,,,,
Nottinghamshire County Council,1111/1001,Adult Social Care and Health,ASCH,Transport Related,CDA,06/11/2014,10-14379,1071.72,CBC Taxis Ltd,,,,,,,,,,,
Nottinghamshire County Council,1111/1001,Adult Social Care and Health,ASCH,Transport Related,CDA,06/11/2014,10-14380,832.34,CBC Taxis Ltd,,,,,,,,,,,
Nottinghamshire County Council,1111/1001,Adult Social Care and Health,ASCH,Transport Related,CDA,06/11/2014,10-14381,698.25,CBC Taxis Ltd,,,,,,,,,,,
Nottinghamshire County Council,1111/1001,Adult Social Care and Health,ASCH,Transport Related,CDA,06/11/2014,10-14383,1200,Bridges Transport Services,,,,,,,,,,,
Nottinghamshire County Council,1111/1001,Adult Social Care and Health,ASCH,Transport Related,CDA,06/11/2014,10-14384,700,Bridges Transport Services,,,,,,,,,,,
Nottinghamshire County Council,1111/1001,Adult Social Care and Health,ASCH,Transport Related,CDA,06/11/2014,10-14385,3629.17,Bridges Transport Services,,,,,,,,,,,
Nottinghamshire County Council,1111/1001,Adult Social Care and Health,ASCH,Transport Related,CDA,06/11/2014,10-14386,2242.27,Bridges Transport Services,,,,,,,,,,,
Nottinghamshire County Council,1111/1001,Adult Social Care and Health,ASCH,Transport Related,CDA,06/11/2014,10-14387,950,Bridges Transport Services,,,,,,,,,,,
Nottinghamshire County Council,1111/1001,Adult Social Care and Health,ASCH,Transport Related,CDA,06/11/2014,10-14419,3002.88,Sprays Transport Ltd,,,,,,,,,,,
Nottinghamshire County Council,1111/1001,Adult Social Care and Health,ASCH,Transport Related,CDA,06/11/2014,10-14426,3149.16,Sprays Transport Ltd,,,,,,,,,,,
Nottinghamshire County Council,1111/1001,Adult Social Care and Health,ASCH,Transport Related,CDA,06/11/2014,10-14432,657.25,Aaeron Cars,,,,,,,,,,,
Nottinghamshire County Council,1111/1001,Adult Social Care and Health,ASCH,Transport Related,CDA,06/11/2014,10-14433,619.31,Aaeron Cars,,,,,,,,,,,
Nottinghamshire County Council,1111/1001,Adult Social Care and Health,ASCH,Transport Related,CDA,06/11/2014,10-14434,1315.8,Beechwood Taxis,,,,,,,,,,,
Nottinghamshire County Council,1111/1001,Adult Social Care and Health,ASCH,Transport Related,CDA,06/11/2014,10-14460,302.32,Aj Travel,,,,,,,,,,,
Nottinghamshire County Council,1111/1001,Adult Social Care and Health,ASCH,Transport Related,CDA,10/11/2014,10-14627,711.02,Ace Of Mansfield Ltd,,,,,,,,,,,
Nottinghamshire County Council,1111/1001,Adult Social Care and Health,ASCH,Transport Related,CDA,10/11/2014,10-14628,700.8,Ace Of Mansfield Ltd,,,,,,,,,,,
Nottinghamshire County Council,1111/1001,Adult Social Care and Health,ASCH,Transport Related,CDA,10/11/2014,10-14629,555,Ace Of Mansfield Ltd,,,,,,,,,,,
Nottinghamshire County Council,1111/1001,Adult Social Care and Health,ASCH,Transport Related,CDA,10/11/2014,10-14631,1434.6,Acorn Contracts,,,,,,,,,,,
Nottinghamshire County Council,1111/1001,Adult Social Care and Health,ASCH,Transport Related,CDA,10/11/2014,10-14634,1305,Bridges Transport Services,,,,,,,,,,,
Nottinghamshire County Council,1111/1001,Adult Social Care and Health,ASCH,Transport Related,CDA,10/11/2014,10-14636,1260,Bridges Transport Services,,,,,,,,,,,
Nottinghamshire County Council,1111/1001,Adult Social Care and Health,ASCH,Transport Related,CDA,10/11/2014,10-14637,630,Bridges Transport Services,,,,,,,,,,,
Nottinghamshire County Council,1111/1001,Adult Social Care and Health,ASCH,Transport Related,CDA,10/11/2014,10-14648,257.96,D G Private Hire Ltd,,,,,,,,,,,
Nottinghamshire County Council,1111/1001,Adult Social Care and Health,ASCH,Transport Related,CDA,10/11/2014,10-14661,400.87,F & J Marriott T/A Unity Coaches,,,,,,,,,,,
Nottinghamshire County Council,1111/1001,Adult Social Care and Health,ASCH,Transport Related,CDA,10/11/2014,10-14698,1081,P & P Taxis,,,,,,,,,,,
Nottinghamshire County Council,1111/1001,Adult Social Care and Health,ASCH,Transport Related,CDA,10/11/2014,10-14704,1705.91,Town Cars (UK) Ltd,,,,,,,,,,,
Nottinghamshire County Council,1111/1001,Adult Social Care and Health,ASCH,Transport Related,CDA,10/11/2014,10-14708,1749.13,In Taxis,,,,,,,,,,,
Nottinghamshire County Council,1111/1001,Adult Social Care and Health,ASCH,Transport Related,CDA,11/11/2014,10-15031,1242,P & P Taxis,,,,,,,,,,,
Nottinghamshire County Council,1111/1001,Adult Social Care and Health,ASCH,Transport Related,CDA,12/11/2014,10-15068,1058,Abacus Cars,,,,,,,,,,,
Nottinghamshire County Council,1111/1001,Adult Social Care and Health,ASCH,Transport Related,CDA,12/11/2014,10-15069,1028.16,Abacus Cars,,,,,,,,,,,
Nottinghamshire County Council,1111/1001,Adult Social Care and Health,ASCH,Transport Related,CDA,12/11/2014,10-15070,1572.84,Abacus Cars,,,,,,,,,,,
Nottinghamshire County Council,1111/1001,Adult Social Care and Health,ASCH,Transport Related,CDA,12/11/2014,10-15071,800,Abacus Cars,,,,,,,,,,,
Nottinghamshire County Council,1111/1001,Adult Social Care and Health,ASCH,Transport Related,CDA,12/11/2014,10-15072,620.16,Abacus Cars,,,,,,,,,,,
Nottinghamshire County Council,1111/1001,Adult Social Care and Health,ASCH,Transport Related,CDA,12/11/2014,10-15073,2111.4,Abacus Cars,,,,,,,,,,,
Nottinghamshire County Council,1111/1001,Adult Social Care and Health,ASCH,Transport Related,CDA,12/11/2014,10-15075,642.6,Abacus Cars,,,,,,,,,,,
Nottinghamshire County Council,1111/1001,Adult Social Care and Health,ASCH,Transport Related,CDA,12/11/2014,10-15077,588,Abacus Cars,,,,,,,,,,,
Nottinghamshire County Council,1111/1001,Adult Social Care and Health,ASCH,Transport Related,CDA,12/11/2014,10-15081,806.6,Abacus Cars,,,,,,,,,,,
Nottinghamshire County Council,1111/1001,Adult Social Care and Health,ASCH,Transport Related,CDA,14/11/2014,10-15365,654,Cabline Uk Ltd,,,,,,,,,,,
Nottinghamshire County Council,1111/1001,Adult Social Care and Health,ASCH,Transport Related,CDA,14/11/2014,10-15404,4140,BN Gibson Ltd,,,,,,,,,,,
Nottinghamshire County Council,1111/1001,Adult Social Care and Health,ASCH,Transport Related,CDA,14/11/2014,10-15471,1020,Blue Sky Care Ltd,,,,,,,,,,,
Nottinghamshire County Council,1111/1001,Adult Social Care and Health,ASCH,Transport Related,CDA,18/11/2014,10-15673,852,Alpha Cars,,,,,,,,,,,
Nottinghamshire County Council,1111/1001,Adult Social Care and Health,ASCH,Transport Related,CDA,18/11/2014,10-15676,614.9,D G Private Hire Ltd,,,,,,,,,,,
Nottinghamshire County Council,1111/1001,Adult Social Care and Health,ASCH,Transport Related,CDA,18/11/2014,10-15679,535.5,D G Private Hire Ltd,,,,,,,,,,,
Nottinghamshire County Council,1111/1001,Adult Social Care and Health,ASCH,Transport Related,CDA,20/11/2014,10-16007,835.52,Shelleys Taxis Ltd,,,,,,,,,,,
Nottinghamshire County Council,1111/1001,Adult Social Care and Health,ASCH,Transport Related,CDA,20/11/2014,10-16016,430.31,BN Gibson Ltd,,,,,,,,,,,
Nottinghamshire County Council,1111/1001,Adult Social Care and Health,ASCH,Transport Related,CDA,20/11/2014,10-16066,2000,[Redacted],,,,,,,,,,,
Nottinghamshire County Council,1111/1001,Adult Social Care and Health,ASCH,Supplies & Services,DAA,13/11/2014,10-15006,353925.53,British Red Cross Society,,,,,,,,,,,
Nottinghamshire County Council,1111/1001,Adult Social Care and Health,ASCH,Supplies & Services,DAA,13/11/2014,10-15157,437095.08,British Red Cross Society,,,,,,,,,,,
Nottinghamshire County Council,1111/1001,Adult Social Care and Health,ASCH,Supplies & Services,DAA,13/11/2014,10-15160,436334.46,British Red Cross Society,,,,,,,,,,,
Nottinghamshire County Council,1111/1001,Adult Social Care and Health,ASCH,Supplies & Services,DAA,26/11/2014,10-16579,2827.8,Sensory Technology Ltd,,,,,,,,,,,
Nottinghamshire County Council,1111/1001,Adult Social Care and Health,ASCH,Supplies & Services,DAA,27/11/2014,10-16730,518,Hearing Products International Ltd,,,,,,,,,,,
Nottinghamshire County Council,1111/1001,Adult Social Care and Health,ASCH,Supplies & Services,DAA,28/11/2014,10-14607,389153.54,British Red Cross Society,,,,,,,,,,,
Nottinghamshire County Council,1111/1001,Adult Social Care and Health,ASCH,Supplies & Services,DAA,28/11/2014,10-15127,73927.05,British Red Cross Society,,,,,,,,,,,
Nottinghamshire County Council,1111/1001,Adult Social Care and Health,ASCH,Supplies & Services,DAA,28/11/2014,10-16719,683.75,William Freer Limited,,,,,,,,,,,
Nottinghamshire County Council,1111/1001,Adult Social Care and Health,ASCH,Supplies & Services,DBA,03/11/2014,10-10080,262.24,Brake Bros Ltd,,,,,,,,,,,
Nottinghamshire County Council,1111/1001,Adult Social Care and Health,ASCH,Supplies & Services,DBA,03/11/2014,10-10084,2533.54,Brake Bros Ltd,,,,,,,,,,,
Nottinghamshire County Council,1111/1001,Adult Social Care and Health,ASCH,Supplies & Services,DBA,03/11/2014,10-10087,1420.11,Brake Bros Ltd,,,,,,,,,,,
Nottinghamshire County Council,1111/1001,Adult Social Care and Health,ASCH,Supplies & Services,DBA,03/11/2014,10-10090,74.72,Brake Bros Ltd,,,,,,,,,,,
Nottinghamshire County Council,1111/1001,Adult Social Care and Health,ASCH,Supplies & Services,DBA,03/11/2014,10-10093,807.67,Brake Bros Ltd,,,,,,,,,,,
Nottinghamshire County Council,1111/1001,Adult Social Care and Health,ASCH,Supplies & Services,DBA,03/11/2014,10-10094,613.68,Brake Bros Ltd,,,,,,,,,,,
Nottinghamshire County Council,1111/1001,Adult Social Care and Health,ASCH,Supplies & Services,DBA,04/11/2014,10-14104,2028.87,Hallam Country Fresh Foods Ltd,,,,,,,,,,,
Nottinghamshire County Council,1111/1001,Adult Social Care and Health,ASCH,Supplies & Services,DBA,06/11/2014,10-14323,945.52,Brake Bros Ltd,,,,,,,,,,,
Nottinghamshire County Council,1111/1001,Adult Social Care and Health,ASCH,Supplies & Services,DBA,06/11/2014,10-14324,947.35,Brake Bros Ltd,,,,,,,,,,,
Nottinghamshire County Council,1111/1001,Adult Social Care and Health,ASCH,Supplies & Services,DBA,06/11/2014,10-14325,37.78,Brake Bros Ltd,,,,,,,,,,,
Nottinghamshire County Council,1111/1001,Adult Social Care and Health,ASCH,Supplies & Services,DBA,06/11/2014,10-14328,932.17,Brake Bros Ltd,,,,,,,,,,,
Nottinghamshire County Council,1111/1001,Adult Social Care and Health,ASCH,Supplies & Services,DBA,06/11/2014,10-14331,2778.82,Brake Bros Ltd,,,,,,,,,,,
Nottinghamshire County Council,1111/1001,Adult Social Care and Health,ASCH,Supplies & Services,DBA,06/11/2014,10-14334,326.47,Brake Bros Ltd,,,,,,,,,,,
Nottinghamshire County Council,1111/1001,Adult Social Care and Health,ASCH,Supplies & Services,DBA,11/11/2014,10-15012,1907.84,Hallam Country Fresh Foods Ltd,,,,,,,,,,,
Nottinghamshire County Council,1111/1001,Adult Social Care and Health,ASCH,Supplies & Services,DBA,14/11/2014,10-15458,1114.32,Arnold Dairies Ltd,,,,,,,,,,,
Nottinghamshire County Council,1111/1001,Adult Social Care and Health,ASCH,Supplies & Services,DBA,14/11/2014,10-15461,1169.03,Arnold Dairies Ltd,,,,,,,,,,,
Nottinghamshire County Council,1111/1001,Adult Social Care and Health,ASCH,Supplies & Services,DBA,19/11/2014,10-15895,1929.57,Hallam Country Fresh Foods Ltd,,,,,,,,,,,
Nottinghamshire County Council,1111/1001,Adult Social Care and Health,ASCH,Supplies & Services,DBA,25/11/2014,10-16324,521.55,Brake Bros Ltd,,,,,,,,,,,
Nottinghamshire County Council,1111/1001,Adult Social Care and Health,ASCH,Supplies & Services,DBA,25/11/2014,10-16325,1668.9,Brake Bros Ltd,,,,,,,,,,,
Nottinghamshire County Council,1111/1001,Adult Social Care and Health,ASCH,Supplies & Services,DBA,25/11/2014,10-16326,489.97,Brake Bros Ltd,,,,,,,,,,,
Nottinghamshire County Council,1111/1001,Adult Social Care and Health,ASCH,Supplies & Services,DBA,25/11/2014,10-16330,1222.15,Brake Bros Ltd,,,,,,,,,,,
Nottinghamshire County Council,1111/1001,Adult Social Care and Health,ASCH,Supplies & Services,DBA,25/11/2014,10-16333,2911.04,Brake Bros Ltd,,,,,,,,,,,
Nottinghamshire County Council,1111/1001,Adult Social Care and Health,ASCH,Supplies & Services,DBA,25/11/2014,10-16336,71.64,Brake Bros Ltd,,,,,,,,,,,
Nottinghamshire County Council,1111/1001,Adult Social Care and Health,ASCH,Supplies & Services,DBA,26/11/2014,10-16362,2046.57,Hallam Country Fresh Foods Ltd,,,,,,,,,,,
Nottinghamshire County Council,1111/1001,Adult Social Care and Health,ASCH,Supplies & Services,DCA,28/11/2014,10-16743,663.07,Wilson Electrics Ltd,,,,,,,,,,,
Nottinghamshire County Council,1111/1001,Adult Social Care and Health,ASCH,Supplies & Services,DFA,28/11/2014,10-16439,666.51,Lantec Services Ltd,,,,,,,,,,,
Nottinghamshire County Council,1111/1001,Adult Social Care and Health,ASCH,Supplies & Services,DHA,19/11/2014,10-15723,26000,Rushcliffe Community & Vol Serv,,,,,,,,,,,
Nottinghamshire County Council,1111/1001,Adult Social Care and Health,ASCH,Supplies & Services,DHA,19/11/2014,10-15724,11937.5,Bassetlaw Action Centre,,,,,,,,,,,
Nottinghamshire County Council,1111/1001,Adult Social Care and Health,ASCH,Supplies & Services,DKA,13/11/2014,10-15006,69598.74,British Red Cross Society,,,,,,,,,,,
Nottinghamshire County Council,1111/1001,Adult Social Care and Health,ASCH,Supplies & Services,DKA,13/11/2014,10-15157,74806.51,British Red Cross Society,,,,,,,,,,,
Nottinghamshire County Council,1111/1001,Adult Social Care and Health,ASCH,Supplies & Services,DKA,13/11/2014,10-15160,74806.51,British Red Cross Society,,,,,,,,,,,
Nottinghamshire County Council,1111/1001,Adult Social Care and Health,ASCH,Supplies & Services,DKA,28/11/2014,10-14607,65071.23,British Red Cross Society,,,,,,,,,,,
Nottinghamshire County Council,1111/1001,Adult Social Care and Health,ASCH,Supplies & Services,DKA,28/11/2014,10-15127,2462.6,British Red Cross Society,,,,,,,,,,,
Nottinghamshire County Council,1111/1001,Adult Social Care and Health,ASCH,Third Party Payments,EAA,27/11/2014,10-16648,1875,Envirotec,,,,,,,,,,,
Nottinghamshire County Council,1111/1001,Adult Social Care and Health,ASCH,Third Party Payments,EBA,07/11/2014,10-14512,22252.32,Ashfield District Council,,,,,,,,,,,
Nottinghamshire County Council,1111/1001,Adult Social Care and Health,ASCH,Third Party Payments,EBA,07/11/2014,10-14513,24537.35,Bassetlaw District Council,,,,,,,,,,,
Nottinghamshire County Council,1111/1001,Adult Social Care and Health,ASCH,Third Party Payments,EBA,07/11/2014,10-14514,18789.5,Newark & Sherwood District Council,,,,,,,,,,,
Nottinghamshire County Council,1111/1001,Adult Social Care and Health,ASCH,Third Party Payments,EBA,07/11/2014,10-14515,40404.47,Mansfield District Council,,,,,,,,,,,
Nottinghamshire County Council,1111/1001,Adult Social Care and Health,ASCH,Third Party Payments,EBA,07/11/2014,10-14516,22489.64,Broxtowe Borough Council,,,,,,,,,,,
Nottinghamshire County Council,1111/1001,Adult Social Care and Health,ASCH,Third Party Payments,EBA,07/11/2014,10-14517,1228,Nene Housing Society Limited,,,,,,,,,,,
Nottinghamshire County Council,1111/1001,Adult Social Care and Health,ASCH,Third Party Payments,EBA,07/11/2014,10-14518,11767.74,Home Group Limited,,,,,,,,,,,
Nottinghamshire County Council,1111/1001,Adult Social Care and Health,ASCH,Third Party Payments,EBA,07/11/2014,10-14520,692.59,East Midlands Housing,,,,,,,,,,,
Nottinghamshire County Council,1111/1001,Adult Social Care and Health,ASCH,Third Party Payments,EBA,07/11/2014,10-14521,9320,Aspirations (Midlands) Ltd,,,,,,,,,,,
Nottinghamshire County Council,1111/1001,Adult Social Care and Health,ASCH,Third Party Payments,EBA,07/11/2014,10-14522,680.32,Longhurst Housing Ltd,,,,,,,,,,,
Nottinghamshire County Council,1111/1001,Adult Social Care and Health,ASCH,Third Party Payments,EBA,07/11/2014,10-14523,1280,Advance Housing & Support Ltd,,,,,,,,,,,
Nottinghamshire County Council,1111/1001,Adult Social Care and Health,ASCH,Third Party Payments,EBA,07/11/2014,10-14524,1233.59,De Montfort Housing Association,,,,,,,,,,,
Nottinghamshire County Council,1111/1001,Adult Social Care and Health,ASCH,Third Party Payments,EBA,07/11/2014,10-14525,1080,Reach Housing Gloria Miller,,,,,,,,,,,
Nottinghamshire County Council,1111/1001,Adult Social Care and Health,ASCH,Third Party Payments,EBA,07/11/2014,10-14527,4802,Metropolitan Housing Trust,,,,,,,,,,,
Nottinghamshire County Council,1111/1001,Adult Social Care and Health,ASCH,Third Party Payments,EBA,07/11/2014,10-14529,44595.56,Royal Society Mencap,,,,,,,,,,,
Nottinghamshire County Council,1111/1001,Adult Social Care and Health,ASCH,Third Party Payments,EBA,07/11/2014,10-14530,567.09,Sanctuary Housing Association,,,,,,,,,,,
Nottinghamshire County Council,1111/1001,Adult Social Care and Health,ASCH,Third Party Payments,EBA,07/11/2014,10-14531,906.45,Nottingham City Homes,,,,,,,,,,,
Nottinghamshire County Council,1111/1001,Adult Social Care and Health,ASCH,Third Party Payments,EBA,07/11/2014,10-14532,14614.06,Metropolitan Housing Trust,,,,,,,,,,,
Nottinghamshire County Council,1111/1001,Adult Social Care and Health,ASCH,Third Party Payments,EBA,07/11/2014,10-14534,84449.08,Eden Supported Living Ltd,,,,,,,,,,,
Nottinghamshire County Council,1111/1001,Adult Social Care and Health,ASCH,Third Party Payments,EBA,07/11/2014,10-14535,833.6,United Charities Of Abel Collin,,,,,,,,,,,
Nottinghamshire County Council,1111/1001,Adult Social Care and Health,ASCH,Third Party Payments,EBA,07/11/2014,10-14536,2920,Care UK Learning Disabilities Servi,,,,,,,,,,,
Nottinghamshire County Council,1111/1001,Adult Social Care and Health,ASCH,Third Party Payments,EBA,07/11/2014,10-14537,2160,Oakdale Ozier Ltd,,,,,,,,,,,
Nottinghamshire County Council,1111/1001,Adult Social Care and Health,ASCH,Third Party Payments,EBA,07/11/2014,10-14538,368810.02,Framework Housing Association,,,,,,,,,,,
Nottinghamshire County Council,1111/1001,Adult Social Care and Health,ASCH,Third Party Payments,EBA,07/11/2014,10-14540,5137.72,Nottingham Community Housing,,,,,,,,,,,
Nottinghamshire County Council,1111/1001,Adult Social Care and Health,ASCH,Third Party Payments,EBA,07/11/2014,10-14542,4440,Fitzroy,,,,,,,,,,,
Nottinghamshire County Council,1111/1001,Adult Social Care and Health,ASCH,Third Party Payments,EBA,07/11/2014,10-14543,16087.92,Lifeways Community Care Ltd,,,,,,,,,,,
Nottinghamshire County Council,1111/1001,Adult Social Care and Health,ASCH,Third Party Payments,EBA,07/11/2014,10-14544,2735.51,ASRA Housing Association,,,,,,,,,,,
Nottinghamshire County Council,1111/1001,Adult Social Care and Health,ASCH,Third Party Payments,EBA,07/11/2014,10-14546,4800,Voyage Ltd,,,,,,,,,,,
Nottinghamshire County Council,1111/1001,Adult Social Care and Health,ASCH,Third Party Payments,EBA,07/11/2014,10-14547,890.72,Housing 21,,,,,,,,,,,
Nottinghamshire County Council,1111/1001,Adult Social Care and Health,ASCH,Third Party Payments,EBA,07/11/2014,10-14548,28151.8,Thera East Midlands,,,,,,,,,,,
Nottinghamshire County Council,1111/1001,Adult Social Care and Health,ASCH,Third Party Payments,EBA,07/11/2014,10-14549,14800,Choice Support,,,,,,,,,,,
Nottinghamshire County Council,1111/1001,Adult Social Care and Health,ASCH,Third Party Payments,EBA,07/11/2014,10-14550,8120.47,Jigsaw Horizons Ltd,,,,,,,,,,,
Nottinghamshire County Council,1111/1001,Adult Social Care and Health,ASCH,Third Party Payments,EBA,07/11/2014,10-14551,12040,United Response,,,,,,,,,,,
Nottinghamshire County Council,1111/1001,Adult Social Care and Health,ASCH,Third Party Payments,EBA,07/11/2014,10-14552,1840,Heritage Care,,,,,,,,,,,
Nottinghamshire County Council,1111/1001,Adult Social Care and Health,ASCH,Third Party Payments,EBA,07/11/2014,10-14553,2360,Real Life Options,,,,,,,,,,,
Nottinghamshire County Council,1111/1001,Adult Social Care and Health,ASCH,Third Party Payments,EBA,07/11/2014,10-14554,16878.83,Gedling Homes,,,,,,,,,,,
Nottinghamshire County Council,1111/1001,Adult Social Care and Health,ASCH,Third Party Payments,EBA,07/11/2014,10-14555,6318.34,NCHA Ltd,,,,,,,,,,,
Nottinghamshire County Council,1111/1001,Adult Social Care and Health,ASCH,Third Party Payments,ECA,03/11/2014,10-10116,887.12,The Royal Care Home,,,,,,,,,,,
Nottinghamshire County Council,1111/1001,Adult Social Care and Health,ASCH,Third Party Payments,ECA,03/11/2014,10-10132,443.56,Bramcote Hills Care Home,,,,,,,,,,,
Nottinghamshire County Council,1111/1001,Adult Social Care and Health,ASCH,Third Party Payments,ECA,03/11/2014,10-10138,443.56,Bramcote Hills Care Home,,,,,,,,,,,
Nottinghamshire County Council,1111/1001,Adult Social Care and Health,ASCH,Third Party Payments,ECA,03/11/2014,10-10140,443.56,Bramcote Hills Care Home,,,,,,,,,,,
Nottinghamshire County Council,1111/1001,Adult Social Care and Health,ASCH,Third Party Payments,ECA,03/11/2014,10-10156,443.56,The Grange Nursing Home,,,,,,,,,,,
Nottinghamshire County Council,1111/1001,Adult Social Care and Health,ASCH,Third Party Payments,ECA,03/11/2014,10-10159,443.56,The Grange Nursing Home,,,,,,,,,,,
Nottinghamshire County Council,1111/1001,Adult Social Care and Health,ASCH,Third Party Payments,ECA,03/11/2014,10-10162,443.56,The Grange Nursing Home,,,,,,,,,,,
Nottinghamshire County Council,1111/1001,Adult Social Care and Health,ASCH,Third Party Payments,ECA,03/11/2014,10-10166,443.56,The Grange Nursing Home,,,,,,,,,,,
Nottinghamshire County Council,1111/1001,Adult Social Care and Health,ASCH,Third Party Payments,ECA,03/11/2014,10-10168,443.56,The Grange Nursing Home,,,,,,,,,,,
Nottinghamshire County Council,1111/1001,Adult Social Care and Health,ASCH,Third Party Payments,ECA,03/11/2014,10-10194,443.56,Belle Vue,,,,,,,,,,,
Nottinghamshire County Council,1111/1001,Adult Social Care and Health,ASCH,Third Party Payments,ECA,03/11/2014,10-10199,443.56,Ashcroft,,,,,,,,,,,
Nottinghamshire County Council,1111/1001,Adult Social Care and Health,ASCH,Third Party Payments,ECA,03/11/2014,10-10202,443.56,Ashcroft,,,,,,,,,,,
Nottinghamshire County Council,1111/1001,Adult Social Care and Health,ASCH,Third Party Payments,ECA,03/11/2014,10-10205,443.56,Ashcroft,,,,,,,,,,,
Nottinghamshire County Council,1111/1001,Adult Social Care and Health,ASCH,Third Party Payments,ECA,03/11/2014,10-10208,443.56,Ashcroft,,,,,,,,,,,
Nottinghamshire County Council,1111/1001,Adult Social Care and Health,ASCH,Third Party Payments,ECA,03/11/2014,10-10213,443.56,Ashcroft,,,,,,,,,,,
Nottinghamshire County Council,1111/1001,Adult Social Care and Health,ASCH,Third Party Payments,ECA,03/11/2014,10-10215,443.56,Ashcroft,,,,,,,,,,,
Nottinghamshire County Council,1111/1001,Adult Social Care and Health,ASCH,Third Party Payments,ECA,03/11/2014,10-10220,443.56,Ashcroft,,,,,,,,,,,
Nottinghamshire County Council,1111/1001,Adult Social Care and Health,ASCH,Third Party Payments,ECA,03/11/2014,10-10225,443.56,Ashcroft,,,,,,,,,,,
Nottinghamshire County Council,1111/1001,Adult Social Care and Health,ASCH,Third Party Payments,ECA,03/11/2014,10-10227,1203.95,Ashcroft,,,,,,,,,,,
Nottinghamshire County Council,1111/1001,Adult Social Care and Health,ASCH,Third Party Payments,ECA,03/11/2014,10-10229,443.56,Ashcroft,,,,,,,,,,,
Nottinghamshire County Council,1111/1001,Adult Social Care and Health,ASCH,Third Party Payments,ECA,03/11/2014,10-10231,443.56,Ashcroft,,,,,,,,,,,
Nottinghamshire County Council,1111/1001,Adult Social Care and Health,ASCH,Third Party Payments,ECA,03/11/2014,10-10234,443.56,Kingsthorpe View Nursing Home,,,,,,,,,,,
Nottinghamshire County Council,1111/1001,Adult Social Care and Health,ASCH,Third Party Payments,ECA,03/11/2014,10-10243,443.56,Kingsthorpe View Nursing Home,,,,,,,,,,,
Nottinghamshire County Council,1111/1001,Adult Social Care and Health,ASCH,Third Party Payments,ECA,03/11/2014,10-10246,855.44,Kingsthorpe View Nursing Home,,,,,,,,,,,
Nottinghamshire County Council,1111/1001,Adult Social Care and Health,ASCH,Third Party Payments,ECA,03/11/2014,10-10256,443.56,Beauvale Nursing Home,,,,,,,,,,,
Nottinghamshire County Council,1111/1001,Adult Social Care and Health,ASCH,Third Party Payments,ECA,03/11/2014,10-10258,443.56,Beauvale Nursing Home,,,,,,,,,,,
Nottinghamshire County Council,1111/1001,Adult Social Care and Health,ASCH,Third Party Payments,ECA,03/11/2014,10-10261,443.56,Beauvale Nursing Home,,,,,,,,,,,
Nottinghamshire County Council,1111/1001,Adult Social Care and Health,ASCH,Third Party Payments,ECA,03/11/2014,10-10264,47.52,Beauvale Nursing Home,,,,,,,,,,,
Nottinghamshire County Council,1111/1001,Adult Social Care and Health,ASCH,Third Party Payments,ECA,03/11/2014,10-10266,443.56,Beauvale Nursing Home,,,,,,,,,,,
Nottinghamshire County Council,1111/1001,Adult Social Care and Health,ASCH,Third Party Payments,ECA,03/11/2014,10-10268,1045.53,Beauvale Nursing Home,,,,,,,,,,,
Nottinghamshire County Council,1111/1001,Adult Social Care and Health,ASCH,Third Party Payments,ECA,03/11/2014,10-10269,443.56,Beauvale Nursing Home,,,,,,,,,,,
Nottinghamshire County Council,1111/1001,Adult Social Care and Health,ASCH,Third Party Payments,ECA,03/11/2014,10-10271,1077.22,Beauvale Nursing Home,,,,,,,,,,,
Nottinghamshire County Council,1111/1001,Adult Social Care and Health,ASCH,Third Party Payments,ECA,03/11/2014,10-10272,443.56,Beauvale Nursing Home,,,,,,,,,,,
Nottinghamshire County Council,1111/1001,Adult Social Care and Health,ASCH,Third Party Payments,ECA,03/11/2014,10-10274,443.56,Beauvale Nursing Home,,,,,,,,,,,
Nottinghamshire County Council,1111/1001,Adult Social Care and Health,ASCH,Third Party Payments,ECA,03/11/2014,10-10276,443.56,Beauvale Nursing Home,,,,,,,,,,,
Nottinghamshire County Council,1111/1001,Adult Social Care and Health,ASCH,Third Party Payments,ECA,03/11/2014,10-10279,443.56,Beauvale Nursing Home,,,,,,,,,,,
Nottinghamshire County Council,1111/1001,Adult Social Care and Health,ASCH,Third Party Payments,ECA,03/11/2014,10-10281,443.56,Beauvale Nursing Home,,,,,,,,,,,
Nottinghamshire County Council,1111/1001,Adult Social Care and Health,ASCH,Third Party Payments,ECA,03/11/2014,10-10284,443.56,Beauvale Nursing Home,,,,,,,,,,,
Nottinghamshire County Council,1111/1001,Adult Social Care and Health,ASCH,Third Party Payments,ECA,03/11/2014,10-10294,443.56,Avalon Nursing Home,,,,,,,,,,,
Nottinghamshire County Council,1111/1001,Adult Social Care and Health,ASCH,Third Party Payments,ECA,03/11/2014,10-10297,443.56,Avalon Nursing Home,,,,,,,,,,,
Nottinghamshire County Council,1111/1001,Adult Social Care and Health,ASCH,Third Party Payments,ECA,03/11/2014,10-10301,871.28,Avalon Nursing Home,,,,,,,,,,,
Nottinghamshire County Council,1111/1001,Adult Social Care and Health,ASCH,Third Party Payments,ECA,03/11/2014,10-10302,443.56,Avalon Nursing Home,,,,,,,,,,,
Nottinghamshire County Council,1111/1001,Adult Social Care and Health,ASCH,Third Party Payments,ECA,03/11/2014,10-10304,760.39,Avalon Nursing Home,,,,,,,,,,,
Nottinghamshire County Council,1111/1001,Adult Social Care and Health,ASCH,Third Party Payments,ECA,03/11/2014,10-10305,443.56,Avalon Nursing Home,,,,,,,,,,,
Nottinghamshire County Council,1111/1001,Adult Social Care and Health,ASCH,Third Party Payments,ECA,03/11/2014,10-10307,443.56,Avalon Nursing Home,,,,,,,,,,,
Nottinghamshire County Council,1111/1001,Adult Social Care and Health,ASCH,Third Party Payments,ECA,03/11/2014,10-10309,443.56,Avalon Nursing Home,,,,,,,,,,,
Nottinghamshire County Council,1111/1001,Adult Social Care and Health,ASCH,Third Party Payments,ECA,03/11/2014,10-10315,443.56,Avalon Nursing Home,,,,,,,,,,,
Nottinghamshire County Council,1111/1001,Adult Social Care and Health,ASCH,Third Party Payments,ECA,03/11/2014,10-10317,443.56,Avalon Nursing Home,,,,,,,,,,,
Nottinghamshire County Council,1111/1001,Adult Social Care and Health,ASCH,Third Party Payments,ECA,03/11/2014,10-10319,443.56,Avalon Nursing Home,,,,,,,,,,,
Nottinghamshire County Council,1111/1001,Adult Social Care and Health,ASCH,Third Party Payments,ECA,03/11/2014,10-10325,1885.13,Silverwood Care Home,,,,,,,,,,,
Nottinghamshire County Council,1111/1001,Adult Social Care and Health,ASCH,Third Party Payments,ECA,03/11/2014,10-10327,443.56,Silverwood Care Home,,,,,,,,,,,
Nottinghamshire County Council,1111/1001,Adult Social Care and Health,ASCH,Third Party Payments,ECA,03/11/2014,10-10330,443.56,Silverwood Care Home,,,,,,,,,,,
Nottinghamshire County Council,1111/1001,Adult Social Care and Health,ASCH,Third Party Payments,ECA,03/11/2014,10-10332,443.56,Silverwood Care Home,,,,,,,,,,,
Nottinghamshire County Council,1111/1001,Adult Social Care and Health,ASCH,Third Party Payments,ECA,03/11/2014,10-10336,443.56,Silverwood Care Home,,,,,,,,,,,
Nottinghamshire County Council,1111/1001,Adult Social Care and Health,ASCH,Third Party Payments,ECA,03/11/2014,10-10342,443.56,Silverwood Care Home,,,,,,,,,,,
Nottinghamshire County Council,1111/1001,Adult Social Care and Health,ASCH,Third Party Payments,ECA,03/11/2014,10-10344,443.56,Silverwood Care Home,,,,,,,,,,,
Nottinghamshire County Council,1111/1001,Adult Social Care and Health,ASCH,Third Party Payments,ECA,03/11/2014,10-10347,443.56,Silverwood Care Home,,,,,,,,,,,
Nottinghamshire County Council,1111/1001,Adult Social Care and Health,ASCH,Third Party Payments,ECA,03/11/2014,10-10351,443.56,Silverwood Care Home,,,,,,,,,,,
Nottinghamshire County Council,1111/1001,Adult Social Care and Health,ASCH,Third Party Payments,ECA,03/11/2014,10-10353,443.56,Silverwood Care Home,,,,,,,,,,,
Nottinghamshire County Council,1111/1001,Adult Social Care and Health,ASCH,Third Party Payments,ECA,03/11/2014,10-10360,443.56,Silverwood Care Home,,,,,,,,,,,
Nottinghamshire County Council,1111/1001,Adult Social Care and Health,ASCH,Third Party Payments,ECA,03/11/2014,10-10362,443.56,Silverwood Care Home,,,,,,,,,,,
Nottinghamshire County Council,1111/1001,Adult Social Care and Health,ASCH,Third Party Payments,ECA,03/11/2014,10-10364,443.56,Silverwood Care Home,,,,,,,,,,,
Nottinghamshire County Council,1111/1001,Adult Social Care and Health,ASCH,Third Party Payments,ECA,03/11/2014,10-10373,443.56,Spring Water Lodge,,,,,,,,,,,
Nottinghamshire County Council,1111/1001,Adult Social Care and Health,ASCH,Third Party Payments,ECA,03/11/2014,10-10376,443.56,Spring Water Lodge,,,,,,,,,,,
Nottinghamshire County Council,1111/1001,Adult Social Care and Health,ASCH,Third Party Payments,ECA,03/11/2014,10-10378,443.56,Spring Water Lodge,,,,,,,,,,,
Nottinghamshire County Council,1111/1001,Adult Social Care and Health,ASCH,Third Party Payments,ECA,03/11/2014,10-10382,443.56,Spring Water Lodge,,,,,,,,,,,
Nottinghamshire County Council,1111/1001,Adult Social Care and Health,ASCH,Third Party Payments,ECA,03/11/2014,10-10388,443.56,Spring Water Lodge,,,,,,,,,,,
Nottinghamshire County Council,1111/1001,Adult Social Care and Health,ASCH,Third Party Payments,ECA,03/11/2014,10-10426,443.56,Oaks Care Centre,,,,,,,,,,,
Nottinghamshire County Council,1111/1001,Adult Social Care and Health,ASCH,Third Party Payments,ECA,03/11/2014,10-10432,443.56,Oaks Care Centre,,,,,,,,,,,
Nottinghamshire County Council,1111/1001,Adult Social Care and Health,ASCH,Third Party Payments,ECA,03/11/2014,10-10434,443.56,Oaks Care Centre,,,,,,,,,,,
Nottinghamshire County Council,1111/1001,Adult Social Care and Health,ASCH,Third Party Payments,ECA,03/11/2014,10-10436,443.56,Oaks Care Centre,,,,,,,,,,,
Nottinghamshire County Council,1111/1001,Adult Social Care and Health,ASCH,Third Party Payments,ECA,03/11/2014,10-10439,443.56,Oaks Care Centre,,,,,,,,,,,
Nottinghamshire County Council,1111/1001,Adult Social Care and Health,ASCH,Third Party Payments,ECA,03/11/2014,10-10447,443.56,Oaks Care Centre,,,,,,,,,,,
Nottinghamshire County Council,1111/1001,Adult Social Care and Health,ASCH,Third Party Payments,ECA,03/11/2014,10-10454,443.56,Oaks Care Centre,,,,,,,,,,,
Nottinghamshire County Council,1111/1001,Adult Social Care and Health,ASCH,Third Party Payments,ECA,03/11/2014,10-10456,443.56,Oaks Care Centre,,,,,,,,,,,
Nottinghamshire County Council,1111/1001,Adult Social Care and Health,ASCH,Third Party Payments,ECA,03/11/2014,10-10458,443.56,Oaks Care Centre,,,,,,,,,,,
Nottinghamshire County Council,1111/1001,Adult Social Care and Health,ASCH,Third Party Payments,ECA,03/11/2014,10-10465,443.56,Oaks Care Centre,,,,,,,,,,,
Nottinghamshire County Council,1111/1001,Adult Social Care and Health,ASCH,Third Party Payments,ECA,03/11/2014,10-10469,443.56,Oaks Care Centre,,,,,,,,,,,
Nottinghamshire County Council,1111/1001,Adult Social Care and Health,ASCH,Third Party Payments,ECA,03/11/2014,10-10488,443.56,Charnwood House,,,,,,,,,,,
Nottinghamshire County Council,1111/1001,Adult Social Care and Health,ASCH,Third Party Payments,ECA,03/11/2014,10-10490,443.56,Charnwood House,,,,,,,,,,,
Nottinghamshire County Council,1111/1001,Adult Social Care and Health,ASCH,Third Party Payments,ECA,03/11/2014,10-10496,443.56,Charnwood House,,,,,,,,,,,
Nottinghamshire County Council,1111/1001,Adult Social Care and Health,ASCH,Third Party Payments,ECA,03/11/2014,10-10499,443.56,Charnwood House,,,,,,,,,,,
Nottinghamshire County Council,1111/1001,Adult Social Care and Health,ASCH,Third Party Payments,ECA,03/11/2014,10-10502,443.56,Charnwood House,,,,,,,,,,,
Nottinghamshire County Council,1111/1001,Adult Social Care and Health,ASCH,Third Party Payments,ECA,03/11/2014,10-10506,443.56,Charnwood House,,,,,,,,,,,
Nottinghamshire County Council,1111/1001,Adult Social Care and Health,ASCH,Third Party Payments,ECA,03/11/2014,10-10512,443.56,Charnwood House,,,,,,,,,,,
Nottinghamshire County Council,1111/1001,Adult Social Care and Health,ASCH,Third Party Payments,ECA,03/11/2014,10-10514,62.11,Charnwood House,,,,,,,,,,,
Nottinghamshire County Council,1111/1001,Adult Social Care and Health,ASCH,Third Party Payments,ECA,03/11/2014,10-10516,443.56,Charnwood House,,,,,,,,,,,
Nottinghamshire County Council,1111/1001,Adult Social Care and Health,ASCH,Third Party Payments,ECA,03/11/2014,10-10521,443.56,Charnwood House,,,,,,,,,,,
Nottinghamshire County Council,1111/1001,Adult Social Care and Health,ASCH,Third Party Payments,ECA,03/11/2014,10-10525,443.56,Charnwood House,,,,,,,,,,,
Nottinghamshire County Council,1111/1001,Adult Social Care and Health,ASCH,Third Party Payments,ECA,03/11/2014,10-10527,443.56,Four Seasons (Evedale) Ltd Re Charn,,,,,,,,,,,
Nottinghamshire County Council,1111/1001,Adult Social Care and Health,ASCH,Third Party Payments,ECA,03/11/2014,10-10529,443.56,Four Seasons (Evedale) Ltd Re Charn,,,,,,,,,,,
Nottinghamshire County Council,1111/1001,Adult Social Care and Health,ASCH,Third Party Payments,ECA,03/11/2014,10-10534,443.56,Four Seasons (Evedale) Ltd Re Sycam,,,,,,,,,,,
Nottinghamshire County Council,1111/1001,Adult Social Care and Health,ASCH,Third Party Payments,ECA,03/11/2014,10-10538,443.56,Four Seasons (Evedale) Ltd Re Sycam,,,,,,,,,,,
Nottinghamshire County Council,1111/1001,Adult Social Care and Health,ASCH,Third Party Payments,ECA,03/11/2014,10-10553,443.56,Four Seasons (Evedale) Ltd Re Sycam,,,,,,,,,,,
Nottinghamshire County Council,1111/1001,Adult Social Care and Health,ASCH,Third Party Payments,ECA,03/11/2014,10-10561,443.56,Ferndene Care Home,,,,,,,,,,,
Nottinghamshire County Council,1111/1001,Adult Social Care and Health,ASCH,Third Party Payments,ECA,03/11/2014,10-10572,443.56,Churchfield Drive Care Home,,,,,,,,,,,
Nottinghamshire County Council,1111/1001,Adult Social Care and Health,ASCH,Third Party Payments,ECA,03/11/2014,10-10574,443.56,Churchfield Drive Care Home,,,,,,,,,,,
Nottinghamshire County Council,1111/1001,Adult Social Care and Health,ASCH,Third Party Payments,ECA,03/11/2014,10-10576,443.56,Churchfield Drive Care Home,,,,,,,,,,,
Nottinghamshire County Council,1111/1001,Adult Social Care and Health,ASCH,Third Party Payments,ECA,03/11/2014,10-10579,443.56,Churchfield Drive Care Home,,,,,,,,,,,
Nottinghamshire County Council,1111/1001,Adult Social Care and Health,ASCH,Third Party Payments,ECA,03/11/2014,10-10581,443.56,Churchfield Drive Care Home,,,,,,,,,,,
Nottinghamshire County Council,1111/1001,Adult Social Care and Health,ASCH,Third Party Payments,ECA,03/11/2014,10-10583,443.56,Churchfield Drive Care Home,,,,,,,,,,,
Nottinghamshire County Council,1111/1001,Adult Social Care and Health,ASCH,Third Party Payments,ECA,03/11/2014,10-10590,443.56,Churchfield Drive Care Home,,,,,,,,,,,
Nottinghamshire County Council,1111/1001,Adult Social Care and Health,ASCH,Third Party Payments,ECA,03/11/2014,10-10593,443.56,Churchfield Drive Care Home,,,,,,,,,,,
Nottinghamshire County Council,1111/1001,Adult Social Care and Health,ASCH,Third Party Payments,ECA,03/11/2014,10-10599,443.56,Churchfield Drive Care Home,,,,,,,,,,,
Nottinghamshire County Council,1111/1001,Adult Social Care and Health,ASCH,Third Party Payments,ECA,03/11/2014,10-10601,443.56,Churchfield Drive Care Home,,,,,,,,,,,
Nottinghamshire County Council,1111/1001,Adult Social Care and Health,ASCH,Third Party Payments,ECA,03/11/2014,10-10628,443.56,Churchfield Nursing Home,,,,,,,,,,,
Nottinghamshire County Council,1111/1001,Adult Social Care and Health,ASCH,Third Party Payments,ECA,03/11/2014,10-10630,1156.42,Churchfield Nursing Home,,,,,,,,,,,
Nottinghamshire County Council,1111/1001,Adult Social Care and Health,ASCH,Third Party Payments,ECA,03/11/2014,10-10644,443.56,Kirkby Manor Care Home,,,,,,,,,,,
Nottinghamshire County Council,1111/1001,Adult Social Care and Health,ASCH,Third Party Payments,ECA,03/11/2014,10-10646,610.44,Kirkby Manor Care Home,,,,,,,,,,,
Nottinghamshire County Council,1111/1001,Adult Social Care and Health,ASCH,Third Party Payments,ECA,03/11/2014,10-10648,443.56,Kirkby Manor Care Home,,,,,,,,,,,
Nottinghamshire County Council,1111/1001,Adult Social Care and Health,ASCH,Third Party Payments,ECA,03/11/2014,10-10650,443.55,Kirkby Manor Care Home,,,,,,,,,,,
Nottinghamshire County Council,1111/1001,Adult Social Care and Health,ASCH,Third Party Payments,ECA,03/11/2014,10-10653,443.56,Kirkby Manor Care Home,,,,,,,,,,,
Nottinghamshire County Council,1111/1001,Adult Social Care and Health,ASCH,Third Party Payments,ECA,03/11/2014,10-10680,443.56,Stoneyford Christian Nursing Home,,,,,,,,,,,
Nottinghamshire County Council,1111/1001,Adult Social Care and Health,ASCH,Third Party Payments,ECA,03/11/2014,10-10684,-190.1,Stoneyford Christian Nursing Home,,,,,,,,,,,
Nottinghamshire County Council,1111/1001,Adult Social Care and Health,ASCH,Third Party Payments,ECA,03/11/2014,10-10686,79.21,Stoneyford Christian Nursing Home,,,,,,,,,,,
Nottinghamshire County Council,1111/1001,Adult Social Care and Health,ASCH,Third Party Payments,ECA,03/11/2014,10-10688,443.56,Stoneyford Christian Nursing Home,,,,,,,,,,,
Nottinghamshire County Council,1111/1001,Adult Social Care and Health,ASCH,Third Party Payments,ECA,03/11/2014,10-10690,443.56,Stoneyford Christian Nursing Home,,,,,,,,,,,
Nottinghamshire County Council,1111/1001,Adult Social Care and Health,ASCH,Third Party Payments,ECA,03/11/2014,10-10692,443.56,Stoneyford Christian Nursing Home,,,,,,,,,,,
Nottinghamshire County Council,1111/1001,Adult Social Care and Health,ASCH,Third Party Payments,ECA,03/11/2014,10-10695,443.56,Stoneyford Christian Nursing Home,,,,,,,,,,,
Nottinghamshire County Council,1111/1001,Adult Social Care and Health,ASCH,Third Party Payments,ECA,03/11/2014,10-10697,443.56,Stoneyford Christian Nursing Home,,,,,,,,,,,
Nottinghamshire County Council,1111/1001,Adult Social Care and Health,ASCH,Third Party Payments,ECA,03/11/2014,10-10701,443.56,Stoneyford Christian Nursing Home,,,,,,,,,,,
Nottinghamshire County Council,1111/1001,Adult Social Care and Health,ASCH,Third Party Payments,ECA,03/11/2014,10-10703,443.56,Stoneyford Christian Nursing Home,,,,,,,,,,,
Nottinghamshire County Council,1111/1001,Adult Social Care and Health,ASCH,Third Party Payments,ECA,03/11/2014,10-10705,443.56,Stoneyford Christian Nursing Home,,,,,,,,,,,
Nottinghamshire County Council,1111/1001,Adult Social Care and Health,ASCH,Third Party Payments,ECA,03/11/2014,10-10707,443.56,Stoneyford Christian Nursing Home,,,,,,,,,,,
Nottinghamshire County Council,1111/1001,Adult Social Care and Health,ASCH,Third Party Payments,ECA,03/11/2014,10-10709,443.56,Stoneyford Christian Nursing Home,,,,,,,,,,,
Nottinghamshire County Council,1111/1001,Adult Social Care and Health,ASCH,Third Party Payments,ECA,03/11/2014,10-10713,443.56,Stoneyford Christian Nursing Home,,,,,,,,,,,
Nottinghamshire County Council,1111/1001,Adult Social Care and Health,ASCH,Third Party Payments,ECA,03/11/2014,10-10715,443.56,Stoneyford Christian Nursing Home,,,,,,,,,,,
Nottinghamshire County Council,1111/1001,Adult Social Care and Health,ASCH,Third Party Payments,ECA,03/11/2014,10-10720,443.56,Stoneyford Christian Nursing Home,,,,,,,,,,,
Nottinghamshire County Council,1111/1001,Adult Social Care and Health,ASCH,Third Party Payments,ECA,03/11/2014,10-10722,443.56,Stoneyford Christian Nursing Home,,,,,,,,,,,
Nottinghamshire County Council,1111/1001,Adult Social Care and Health,ASCH,Third Party Payments,ECA,03/11/2014,10-10724,443.56,Stoneyford Christian Nursing Home,,,,,,,,,,,
Nottinghamshire County Council,1111/1001,Adult Social Care and Health,ASCH,Third Party Payments,ECA,03/11/2014,10-10727,443.56,Stoneyford Christian Nursing Home,,,,,,,,,,,
Nottinghamshire County Council,1111/1001,Adult Social Care and Health,ASCH,Third Party Payments,ECA,03/11/2014,10-10738,443.56,Beeches Nursing Home,,,,,,,,,,,
Nottinghamshire County Council,1111/1001,Adult Social Care and Health,ASCH,Third Party Payments,ECA,03/11/2014,10-10740,443.56,Beeches Nursing Home,,,,,,,,,,,
Nottinghamshire County Council,1111/1001,Adult Social Care and Health,ASCH,Third Party Payments,ECA,03/11/2014,10-10743,443.56,Beeches Nursing Home,,,,,,,,,,,
Nottinghamshire County Council,1111/1001,Adult Social Care and Health,ASCH,Third Party Payments,ECA,03/11/2014,10-10748,443.56,Beeches Nursing Home,,,,,,,,,,,
Nottinghamshire County Council,1111/1001,Adult Social Care and Health,ASCH,Third Party Payments,ECA,03/11/2014,10-10750,443.56,Beeches Nursing Home,,,,,,,,,,,
Nottinghamshire County Council,1111/1001,Adult Social Care and Health,ASCH,Third Party Payments,ECA,03/11/2014,10-10752,443.56,Beeches Nursing Home,,,,,,,,,,,
Nottinghamshire County Council,1111/1001,Adult Social Care and Health,ASCH,Third Party Payments,ECA,03/11/2014,10-10754,443.56,Beeches Nursing Home,,,,,,,,,,,
Nottinghamshire County Council,1111/1001,Adult Social Care and Health,ASCH,Third Party Payments,ECA,03/11/2014,10-10756,443.56,Beeches Nursing Home,,,,,,,,,,,
Nottinghamshire County Council,1111/1001,Adult Social Care and Health,ASCH,Third Party Payments,ECA,03/11/2014,10-10758,443.56,Beeches Nursing Home,,,,,,,,,,,
Nottinghamshire County Council,1111/1001,Adult Social Care and Health,ASCH,Third Party Payments,ECA,03/11/2014,10-10761,443.56,Berry Hill Park,,,,,,,,,,,
Nottinghamshire County Council,1111/1001,Adult Social Care and Health,ASCH,Third Party Payments,ECA,03/11/2014,10-10764,443.56,Berry Hill Park,,,,,,,,,,,
Nottinghamshire County Council,1111/1001,Adult Social Care and Health,ASCH,Third Party Payments,ECA,03/11/2014,10-10768,443.56,Berry Hill Park,,,,,,,,,,,
Nottinghamshire County Council,1111/1001,Adult Social Care and Health,ASCH,Third Party Payments,ECA,03/11/2014,10-10770,443.56,Berry Hill Park,,,,,,,,,,,
Nottinghamshire County Council,1111/1001,Adult Social Care and Health,ASCH,Third Party Payments,ECA,03/11/2014,10-10774,443.56,Berry Hill Park,,,,,,,,,,,
Nottinghamshire County Council,1111/1001,Adult Social Care and Health,ASCH,Third Party Payments,ECA,03/11/2014,10-10776,443.56,Berry Hill Park,,,,,,,,,,,
Nottinghamshire County Council,1111/1001,Adult Social Care and Health,ASCH,Third Party Payments,ECA,03/11/2014,10-10779,443.56,Berry Hill Park,,,,,,,,,,,
Nottinghamshire County Council,1111/1001,Adult Social Care and Health,ASCH,Third Party Payments,ECA,03/11/2014,10-10782,443.56,Berry Hill Park,,,,,,,,,,,
Nottinghamshire County Council,1111/1001,Adult Social Care and Health,ASCH,Third Party Payments,ECA,03/11/2014,10-10784,443.56,Berry Hill Park,,,,,,,,,,,
Nottinghamshire County Council,1111/1001,Adult Social Care and Health,ASCH,Third Party Payments,ECA,03/11/2014,10-10786,443.56,Berry Hill Park,,,,,,,,,,,
Nottinghamshire County Council,1111/1001,Adult Social Care and Health,ASCH,Third Party Payments,ECA,03/11/2014,10-10788,443.56,Berry Hill Park,,,,,,,,,,,
Nottinghamshire County Council,1111/1001,Adult Social Care and Health,ASCH,Third Party Payments,ECA,03/11/2014,10-10790,443.56,Berry Hill Park,,,,,,,,,,,
Nottinghamshire County Council,1111/1001,Adult Social Care and Health,ASCH,Third Party Payments,ECA,03/11/2014,10-10793,-871.28,Berry Hill Park,,,,,,,,,,,
Nottinghamshire County Council,1111/1001,Adult Social Care and Health,ASCH,Third Party Payments,ECA,03/11/2014,10-10795,443.56,Berry Hill Park,,,,,,,,,,,
Nottinghamshire County Council,1111/1001,Adult Social Care and Health,ASCH,Third Party Payments,ECA,03/11/2014,10-10823,443.56,Countrywide Care Homes Ltd T/A Clum,,,,,,,,,,,
Nottinghamshire County Council,1111/1001,Adult Social Care and Health,ASCH,Third Party Payments,ECA,03/11/2014,10-10825,443.56,Countrywide Care Homes Ltd T/A Clum,,,,,,,,,,,
Nottinghamshire County Council,1111/1001,Adult Social Care and Health,ASCH,Third Party Payments,ECA,03/11/2014,10-10827,443.56,Countrywide Care Homes Ltd T/A Clum,,,,,,,,,,,
Nottinghamshire County Council,1111/1001,Adult Social Care and Health,ASCH,Third Party Payments,ECA,03/11/2014,10-10830,443.56,Countrywide Care Homes Ltd T/A Clum,,,,,,,,,,,
Nottinghamshire County Council,1111/1001,Adult Social Care and Health,ASCH,Third Party Payments,ECA,03/11/2014,10-10832,443.56,Countrywide Care Homes Ltd T/A Clum,,,,,,,,,,,
Nottinghamshire County Council,1111/1001,Adult Social Care and Health,ASCH,Third Party Payments,ECA,03/11/2014,10-10834,443.56,Countrywide Care Homes Ltd T/A Clum,,,,,,,,,,,
Nottinghamshire County Council,1111/1001,Adult Social Care and Health,ASCH,Third Party Payments,ECA,03/11/2014,10-10836,443.56,Countrywide Care Homes Ltd T/A Clum,,,,,,,,,,,
Nottinghamshire County Council,1111/1001,Adult Social Care and Health,ASCH,Third Party Payments,ECA,03/11/2014,10-10838,443.56,Countrywide Care Homes Ltd T/A Clum,,,,,,,,,,,
Nottinghamshire County Council,1111/1001,Adult Social Care and Health,ASCH,Third Party Payments,ECA,03/11/2014,10-10842,443.56,Countrywide Care Homes Ltd T/A Clum,,,,,,,,,,,
Nottinghamshire County Council,1111/1001,Adult Social Care and Health,ASCH,Third Party Payments,ECA,03/11/2014,10-10845,443.56,Countrywide Care Homes Ltd T/A Clum,,,,,,,,,,,
Nottinghamshire County Council,1111/1001,Adult Social Care and Health,ASCH,Third Party Payments,ECA,03/11/2014,10-10847,610.44,Countrywide Care Homes Ltd T/A Clum,,,,,,,,,,,
Nottinghamshire County Council,1111/1001,Adult Social Care and Health,ASCH,Third Party Payments,ECA,03/11/2014,10-10848,443.56,Countrywide Care Homes Ltd T/A Clum,,,,,,,,,,,
Nottinghamshire County Council,1111/1001,Adult Social Care and Health,ASCH,Third Party Payments,ECA,03/11/2014,10-10850,443.56,Countrywide Care Homes Ltd T/A Clum,,,,,,,,,,,
Nottinghamshire County Council,1111/1001,Adult Social Care and Health,ASCH,Third Party Payments,ECA,03/11/2014,10-10852,610.44,Countrywide Care Homes Ltd T/A Clum,,,,,,,,,,,
Nottinghamshire County Council,1111/1001,Adult Social Care and Health,ASCH,Third Party Payments,ECA,03/11/2014,10-10854,443.56,Countrywide Care Homes Ltd T/A Clum,,,,,,,,,,,
Nottinghamshire County Council,1111/1001,Adult Social Care and Health,ASCH,Third Party Payments,ECA,03/11/2014,10-10856,443.56,Countrywide Care Homes Ltd T/A Clum,,,,,,,,,,,
Nottinghamshire County Council,1111/1001,Adult Social Care and Health,ASCH,Third Party Payments,ECA,03/11/2014,10-10859,443.56,Countrywide Care Homes Ltd T/A Clum,,,,,,,,,,,
Nottinghamshire County Council,1111/1001,Adult Social Care and Health,ASCH,Third Party Payments,ECA,03/11/2014,10-10861,443.56,Countrywide Care Homes Ltd T/A Clum,,,,,,,,,,,
Nottinghamshire County Council,1111/1001,Adult Social Care and Health,ASCH,Third Party Payments,ECA,03/11/2014,10-10867,443.56,Landermeads Nursing Home,,,,,,,,,,,
Nottinghamshire County Council,1111/1001,Adult Social Care and Health,ASCH,Third Party Payments,ECA,03/11/2014,10-10869,443.56,Landermeads Nursing Home,,,,,,,,,,,
Nottinghamshire County Council,1111/1001,Adult Social Care and Health,ASCH,Third Party Payments,ECA,03/11/2014,10-10873,443.56,Landermeads Nursing Home,,,,,,,,,,,
Nottinghamshire County Council,1111/1001,Adult Social Care and Health,ASCH,Third Party Payments,ECA,03/11/2014,10-10875,443.56,Landermeads Nursing Home,,,,,,,,,,,
Nottinghamshire County Council,1111/1001,Adult Social Care and Health,ASCH,Third Party Payments,ECA,03/11/2014,10-10877,443.56,Landermeads Nursing Home,,,,,,,,,,,
Nottinghamshire County Council,1111/1001,Adult Social Care and Health,ASCH,Third Party Payments,ECA,03/11/2014,10-10879,443.57,Landermeads Nursing Home,,,,,,,,,,,
Nottinghamshire County Council,1111/1001,Adult Social Care and Health,ASCH,Third Party Payments,ECA,03/11/2014,10-10881,610.44,Landermeads Nursing Home,,,,,,,,,,,
Nottinghamshire County Council,1111/1001,Adult Social Care and Health,ASCH,Third Party Payments,ECA,03/11/2014,10-10883,610.44,Landermeads Nursing Home,,,,,,,,,,,
Nottinghamshire County Council,1111/1001,Adult Social Care and Health,ASCH,Third Party Payments,ECA,03/11/2014,10-10887,443.56,Landermeads Nursing Home,,,,,,,,,,,
Nottinghamshire County Council,1111/1001,Adult Social Care and Health,ASCH,Third Party Payments,ECA,03/11/2014,10-10889,443.56,Landermeads Nursing Home,,,,,,,,,,,
Nottinghamshire County Council,1111/1001,Adult Social Care and Health,ASCH,Third Party Payments,ECA,03/11/2014,10-10891,443.56,Landermeads Nursing Home,,,,,,,,,,,
Nottinghamshire County Council,1111/1001,Adult Social Care and Health,ASCH,Third Party Payments,ECA,03/11/2014,10-10893,443.56,Landermeads Nursing Home,,,,,,,,,,,
Nottinghamshire County Council,1111/1001,Adult Social Care and Health,ASCH,Third Party Payments,ECA,03/11/2014,10-10895,443.56,Landermeads Nursing Home,,,,,,,,,,,
Nottinghamshire County Council,1111/1001,Adult Social Care and Health,ASCH,Third Party Payments,ECA,03/11/2014,10-10899,443.56,Landermeads Nursing Home,,,,,,,,,,,
Nottinghamshire County Council,1111/1001,Adult Social Care and Health,ASCH,Third Party Payments,ECA,03/11/2014,10-10902,443.56,Landermeads Nursing Home,,,,,,,,,,,
Nottinghamshire County Council,1111/1001,Adult Social Care and Health,ASCH,Third Party Payments,ECA,03/11/2014,10-10904,443.56,Landermeads Nursing Home,,,,,,,,,,,
Nottinghamshire County Council,1111/1001,Adult Social Care and Health,ASCH,Third Party Payments,ECA,03/11/2014,10-10906,443.56,Landermeads Nursing Home,,,,,,,,,,,
Nottinghamshire County Council,1111/1001,Adult Social Care and Health,ASCH,Third Party Payments,ECA,03/11/2014,10-10908,443.56,Landermeads Nursing Home,,,,,,,,,,,
Nottinghamshire County Council,1111/1001,Adult Social Care and Health,ASCH,Third Party Payments,ECA,03/11/2014,10-10910,443.56,Landermeads Nursing Home,,,,,,,,,,,
Nottinghamshire County Council,1111/1001,Adult Social Care and Health,ASCH,Third Party Payments,ECA,03/11/2014,10-10912,443.56,Landermeads Nursing Home,,,,,,,,,,,
Nottinghamshire County Council,1111/1001,Adult Social Care and Health,ASCH,Third Party Payments,ECA,03/11/2014,10-11000,934.64,Albemarle Hall Nursing Home,,,,,,,,,,,
